Workbook

Sheet Main
B10: 2019-07-10
B12: Sheet No. | C12: Template Name | D12: Summary
B13: 1 | C13: Future Intra | D13: For Intraday trading in F&O segment
B14: 2 | C14: Cash Intra | D14: For Intraday trading in cash market segment
B15: 3 | C15: Mid-cap Intra | D15: For Intraday trading in Mid-cap stocks
B16: 4 | C16: Bulk Deals | D16: Reveals Bulk Deals carried on NSE & BSE
B17: 5 | C17: Call Tracker
K27: `

Sheet Future Intra
M5: Back to Main Page
A6: FOR INTRA DAY TRADING | L6: =Main!B10 -> 2019-07-10
A9: Sr.no | B9: Sector | C9: Scrip | D9: CLOSE RATE | E9: Pivot Point | F9: Supports | I9: Resistances
B10: Sector | D10: Point | E10: Point | F10: S1 | G10: S2 | H10: S3 | I10: R1 | J10: R2 | K10: R3 | L10: HIGH | M10: LOW | N10: OI | O10: % Change in OI
A11: 1 | B11: Index | C11: BANKNIFTY | D11: 30639.65 | E11: 30623.55 | F11: 30467.10 | G11: 30294.55 | H11: 30138.10 | I11: 30796.10 | J11: 30952.55 | K11: 31125.10 | L11: 30780 | M11: 30451 | N11: 1891840 | O11: -3.63%
A12: 2 | B12: Index | C12: NIFTY | D12: 11552.60 | E12: 11544.42 | F12: 11494.73 | G12: 11436.87 | H12: 11387.18 | I12: 11602.28 | J12: 11651.97 | K12: 11709.83 | L12: 11594.1 | M12: 11486.55 | N12: 20935350 | O12: 3.92%
A13: 3 | B13: Index | C13: NIFTYIT | D13: 15297.00 | E13: 15310.00 | F13: 15187.00 | G13: 15077.00 | H13: 14954.00 | I13: 15420.00 | J13: 15543.00 | K13: 15653.00 | L13: 15433 | M13: 15200 | N13: 21700 | O13: 1.40%
A14: 4 | B14: Cement | C14: ACC | D14: 1551.75 | E14: 1531.55 | F14: 1506.65 | G14: 1461.55 | H14: 1436.65 | I14: 1576.65 | J14: 1601.55 | K14: 1646.65 | L14: 1556.45 | M14: 1486.45 | N14: 1918400 | O14: -2.18%
A15: 5 | B15: Others | C15: ADANIENT | D15: 141.20 | E15: 140.05 | F15: 137.00 | G15: 132.80 | H15: 129.75 | I15: 144.25 | J15: 147.30 | K15: 151.50 | L15: 143.1 | M15: 135.85 | N15: 29076000 | O15: -0.26%
A16: 6 | B16: Others | C16: ADANIPORTS | D16: 405.70 | E16: 402.17 | F16: 397.63 | G16: 389.57 | H16: 385.03 | I16: 410.23 | J16: 414.77 | K16: 422.83 | L16: 406.7 | M16: 394.1 | N16: 15005000 | O16: -1.96%
A17: 7 | B17: Power | C17: ADANIPOWER | D17: 67.50 | E17: 65.87 | F17: 62.68 | G17: 57.87 | H17: 54.68 | I17: 70.68 | J17: 73.87 | K17: 78.68 | L17: 69.05 | M17: 61.05 | N17: 138700000 | O17: 3.60%
A18: 8 | B18: Automobile | C18: AMARAJABAT | D18: 638.60 | E18: 633.73 | F18: 626.87 | G18: 615.13 | H18: 608.27 | I18: 645.47 | J18: 652.33 | K18: 664.07 | L18: 640.6 | M18: 622 | N18: 1129100 | O18: 0.06%
A19: 9 | B19: Cement | C19: AMBUJACEM | D19: 211.90 | E19: 209.70 | F19: 206.80 | G19: 201.70 | H19: 198.80 | I19: 214.80 | J19: 217.70 | K19: 222.80 | L19: 212.6 | M19: 204.6 | N19: 16812500 | O19: 0.04%
A20: 10 | B20: Others | C20: APOLLOHOSP | D20: 1334.15 | E20: 1332.97 | F20: 1307.78 | G20: 1281.42 | H20: 1256.23 | I20: 1359.33 | J20: 1384.52 | K20: 1410.88 | L20: 1358.15 | M20: 1306.6 | N20: 1623000 | O20: 0.03%
A21: 11 | B21: Automobile | C21: APOLLOTYRE | D21: 183.95 | E21: 184.38 | F21: 182.12 | G21: 180.28 | H21: 178.02 | I21: 186.22 | J21: 188.48 | K21: 190.32 | L21: 186.65 | M21: 182.55 | N21: 9483000 | O21: 4.50%
A22: 12 | B22: Textile | C22: ARVIND | D22: 63.50 | E22: 63.18 | F22: 62.32 | G22: 61.13 | H22: 60.27 | I22: 64.37 | J22: 65.23 | K22: 66.42 | L22: 64.05 | M22: 62 | N22: 7542000 | O22: 3.20%
A23: 13 | B23: Automobile | C23: ASHOKLEY | D23: 81.05 | E23: 81.55 | F23: 79.55 | G23: 78.05 | H23: 76.05 | I23: 83.05 | J23: 85.05 | K23: 86.55 | L23: 83.55 | M23: 80.05 | N23: 78732000 | O23: 6.06%
A24: 14 | B24: FMCG | C24: ASIANPAINT | D24: 1321.95 | E24: 1319.47 | F24: 1297.83 | G24: 1273.72 | H24: 1252.08 | I24: 1343.58 | J24: 1365.22 | K24: 1389.33 | L24: 1341.1 | M24: 1295.35 | N24: 6317400 | O24: 0.62%
A25: 15 | B25: Pharma | C25: AUROPHARMA | D25: 606.30 | E25: 600.22 | F25: 590.63 | G25: 574.97 | H25: 565.38 | I25: 615.88 | J25: 625.47 | K25: 641.13 | L25: 609.8 | M25: 584.55 | N25: 15870000 | O25: 0.41%
A26: 16 | B26: Banking | C26: AXISBANK | D26: 789.45 | E26: 787.33 | F26: 782.47 | G26: 775.48 | H26: 770.62 | I26: 794.32 | J26: 799.18 | K26: 806.17 | L26: 792.2 | M26: 780.35 | N26: 42835200 | O26: 0.75%
A27: 17 | B27: Automobile | C27: BAJAJ-AUTO | D27: 2733.30 | E27: 2728.25 | F27: 2712.50 | G27: 2691.70 | H27: 2675.95 | I27: 2749.05 | J27: 2764.80 | K27: 2785.60 | L27: 2744 | M27: 2707.45 | N27: 2330750 | O27: -0.77%
A28: 18 | B28: Finance | C28: BAJAJFINSV | D28: 7878.30 | E28: 7764.57 | F28: 7567.93 | G28: 7257.57 | H28: 7060.93 | I28: 8074.93 | J28: 8271.57 | K28: 8581.93 | L28: 7961.2 | M28: 7454.2 | N28: 894250 | O28: 6.41%
A29: 19 | B29: Finance | C29: BAJFINANCE | D29: 3610.90 | E29: 3530.97 | F29: 3427.93 | G29: 3244.97 | H29: 3141.93 | I29: 3713.93 | J29: 3816.97 | K29: 3999.93 | L29: 3634 | M29: 3348 | N29: 5654500 | O29: 0.48%
A30: 20 | B30: Automobile | C30: BALKRISIND | D30: 729.10 | E30: 724.67 | F30: 718.58 | G30: 708.07 | H30: 701.98 | I30: 735.18 | J30: 741.27 | K30: 751.78 | L30: 730.75 | M30: 714.15 | N30: 2185600 | O30: -3.97%
A31: 21 | B31: Banking | C31: BANKBARODA | D31: 126.05 | E31: 125.30 | F31: 123.70 | G31: 121.35 | H31: 119.75 | I31: 127.65 | J31: 129.25 | K31: 131.60 | L31: 126.9 | M31: 122.95 | N31: 50454000 | O31: -1.91%
A32: 22 | B32: Banking | C32: BANKINDIA | D32: 85.80 | E32: 85.13 | F32: 83.77 | G32: 81.73 | H32: 80.37 | I32: 87.17 | J32: 88.53 | K32: 90.57 | L32: 86.5 | M32: 83.1 | N32: 29004000 | O32: -0.23%
A33: 23 | B33: FMCG | C33: BATAINDIA | D33: 1384.95 | E33: 1381.35 | F33: 1355.60 | G33: 1326.25 | H33: 1300.50 | I33: 1410.70 | J33: 1436.45 | K33: 1465.80 | L33: 1407.1 | M33: 1352 | N33: 1527900 | O33: 1.17%
A34: 24 | B34: Capital_Goods | C34: BEL | D34: 106.65 | E34: 104.80 | F34: 102.00 | G34: 97.35 | H34: 94.55 | I34: 109.45 | J34: 112.25 | K34: 116.90 | L34: 107.6 | M34: 100.15 | N34: 26592000 | O34: 1.26%
A35: 25 | B35: FMCG | C35: BERGEPAINT | D35: 307.25 | E35: 305.40 | F35: 302.50 | G35: 297.75 | H35: 294.85 | I35: 310.15 | J35: 313.05 | K35: 317.80 | L35: 308.3 | M35: 300.65 | N35: 2373800 | O35: 2.57%
A36: 26 | B36: Automobile | C36: BHARATFORG | D36: 454.00 | E36: 449.07 | F36: 442.73 | G36: 431.47 | H36: 425.13 | I36: 460.33 | J36: 466.67 | K36: 477.93 | L36: 455.4 | M36: 437.8 | N36: 7086000 | O36: 0.54%
A37: 27 | B37: Telecom | C37: BHARTIARTL | D37: 362.75 | E37: 360.48 | F37: 357.32 | G37: 351.88 | H37: 348.72 | I37: 365.92 | J37: 369.08 | K37: 374.52 | L37: 363.65 | M37: 355.05 | N37: 33538269 | O37: 0.34%
A38: 28 | B38: Capital_Goods | C38: BHEL | D38: 67.40 | E38: 67.10 | F38: 66.25 | G38: 65.10 | H38: 64.25 | I38: 68.25 | J38: 69.10 | K38: 70.25 | L38: 67.95 | M38: 65.95 | N38: 41865000 | O38: -0.45%
A39: 29 | B39: Pharma | C39: BIOCON | D39: 245.50 | E39: 244.13 | F39: 240.47 | G39: 235.43 | H39: 231.77 | I39: 249.17 | J39: 252.83 | K39: 257.87 | L39: 247.8 | M39: 239.1 | N39: 13438800 | O39: -0.93%
A40: 30 | B40: Automobile | C40: BOSCHLTD | D40: 16037.60 | E40: 15999.13 | F40: 15908.42 | G40: 15779.23 | H40: 15688.52 | I40: 16128.32 | J40: 16219.03 | K40: 16348.22 | L40: 16089.85 | M40: 15869.95 | N40: 158040 | O40: 0.06%
A41: 31 | B41: Oil_Gas | C41: BPCL | D41: 361.90 | E41: 363.62 | F41: 358.33 | G41: 354.77 | H41: 349.48 | I41: 367.18 | J41: 372.47 | K41: 376.03 | L41: 368.9 | M41: 360.05 | N41: 12085200 | O41: 5.09%
A42: 32 | B42: FMCG | C42: BRITANNIA | D42: 2774.70 | E42: 2769.02 | F42: 2749.13 | G42: 2723.57 | H42: 2703.68 | I42: 2794.58 | J42: 2814.47 | K42: 2840.03 | L42: 2788.9 | M42: 2743.45 | N42: 2361000 | O42: 2.63%
A43: 33 | B43: Technology | C43: CADILAHC | D43: 227.85 | E43: 225.35 | F43: 222.25 | G43: 216.65 | H43: 213.55 | I43: 230.95 | J43: 234.05 | K43: 239.65 | L43: 228.45 | M43: 219.75 | N43: 16484800 | O43: 1.07%
A44: 34 | B44: Pharma | C44: CANBK | D44: 275.40 | E44: 273.15 | F44: 269.75 | G44: 264.10 | H44: 260.70 | I44: 278.80 | J44: 282.20 | K44: 287.85 | L44: 276.55 | M44: 267.5 | N44: 11414000 | O44: -3.61%
A45: 35 | B45: Banking | C45: CASTROLIND | D45: 126.65 | E45: 126.38 | F45: 125.27 | G45: 123.88 | H45: 122.77 | I45: 127.77 | J45: 128.88 | K45: 130.27 | L45: 127.5 | M45: 125 | N45: 9203800 | O45: 1.46%
A46: 36 | B46: Oil_Gas | C46: CENTURYTEX | D46: 905.85 | E46: 902.08 | F46: 891.57 | G46: 877.28 | H46: 866.77 | I46: 916.37 | J46: 926.88 | K46: 941.17 | L46: 912.6 | M46: 887.8 | N46: 4504200 | O46: 2.21%
A47: 37 | B47: Textile | C47: CESC | D47: 786.55 | E47: 782.17 | F47: 774.63 | G47: 762.72 | H47: 755.18 | I47: 794.08 | J47: 801.62 | K47: 813.53 | L47: 789.7 | M47: 770.25 | N47: 952800 | O47: -6.51%
A48: 38 | B48: Power | C48: CHOLAFIN | D48: 281.25 | E48: 278.48 | F48: 274.57 | G48: 267.88 | H48: 263.97 | I48: 285.17 | J48: 289.08 | K48: 295.77 | L48: 282.4 | M48: 271.8 | N48: 3092500 | O48: -1.20%
A49: 39 | B49: Finance | C49: CIPLA | D49: 549.35 | E49: 547.80 | F49: 542.10 | G49: 534.85 | H49: 529.15 | I49: 555.05 | J49: 560.75 | K49: 568.00 | L49: 553.5 | M49: 540.55 | N49: 11135000 | O49: -0.75%
A50: 40 | B50: Pharma | C50: COALINDIA | D50: 229.10 | E50: 230.55 | F50: 226.15 | G50: 223.20 | H50: 218.80 | I50: 233.50 | J50: 237.90 | K50: 240.85 | L50: 234.95 | M50: 227.6 | N50: 29194000 | O50: 7.03%
A51: 41 | B51: Others | C51: COLPAL | D51: 1162.95 | E51: 1160.98 | F51: 1150.57 | G51: 1138.18 | H51: 1127.77 | I51: 1173.37 | J51: 1183.78 | K51: 1196.17 | L51: 1171.4 | M51: 1148.6 | N51: 1896300 | O51: 2.23%
A52: 42 | B52: FMCG | C52: CONCOR | D52: 549.80 | E52: 541.12 | F52: 528.68 | G52: 507.57 | H52: 495.13 | I52: 562.23 | J52: 574.67 | K52: 595.78 | L52: 553.55 | M52: 520 | N52: 2544564 | O52: 24.94%
A53: 43 | B53: Others | C53: CUMMINSIND | D53: 738.25 | E53: 736.75 | F53: 728.25 | G53: 718.25 | H53: 709.75 | I53: 746.75 | J53: 755.25 | K53: 765.25 | L53: 745.25 | M53: 726.75 | N53: 1876000 | O53: 0.41%
A54: 44 | B54: Capital_Goods | C54: DABUR | D54: 407.25 | E54: 404.83 | F54: 401.42 | G54: 395.58 | H54: 392.17 | I54: 410.67 | J54: 414.08 | K54: 419.92 | L54: 408.25 | M54: 399 | N54: 11011250 | O54: -2.20%
A55: 45 | B55: FMCG | C55: DHFL | D55: 65.50 | E55: 67.52 | F55: 60.88 | G55: 56.27 | H55: 49.63 | I55: 72.13 | J55: 78.77 | K55: 83.38 | L55: 74.15 | M55: 62.9 | N55: 20372000 | O55: 0.02%
A56: 46 | B56: Finance | C56: DISHTV | D56: 28.10 | E56: 28.63 | F56: 27.02 | G56: 25.93 | H56: 24.32 | I56: 29.72 | J56: 31.33 | K56: 32.42 | L56: 30.25 | M56: 27.55 | N56: 101150000 | O56: 12.56%
A57: 47 | B57: Media | C57: DIVISLAB | D57: 1611.15 | E57: 1600.57 | F57: 1582.73 | G57: 1554.32 | H57: 1536.48 | I57: 1628.98 | J57: 1646.82 | K57: 1675.23 | L57: 1618.4 | M57: 1572.15 | N57: 2870800 | O57: 2.15%
A58: 48 | B58: Pharma | C58: DLF | D58: 181.80 | E58: 181.50 | F58: 179.20 | G58: 176.60 | H58: 174.30 | I58: 184.10 | J58: 186.40 | K58: 189.00 | L58: 183.8 | M58: 178.9 | N58: 39317600 | O58: -0.43%
A59: 49 | B59: Realty | C59: DRREDDY | D59: 2589.55 | E59: 2588.68 | F59: 2558.37 | G59: 2527.18 | H59: 2496.87 | I59: 2619.87 | J59: 2650.18 | K59: 2681.37 | L59: 2619 | M59: 2557.5 | N59: 3745000 | O59: -0.83%
A60: 50 | B60: Pharma | C60: EICHERMOT | D60: 18886.15 | E60: 18873.85 | F60: 18602.30 | G60: 18318.45 | H60: 18046.90 | I60: 19157.70 | J60: 19429.25 | K60: 19713.10 | L60: 19145.4 | M60: 18590 | N60: 381475 | O60: 2.31%
A61: 51 | B61: Automobile | C61: ENGINERSIN | D61: 109.75 | E61: 109.37 | F61: 108.03 | G61: 106.32 | H61: 104.98 | I61: 111.08 | J61: 112.42 | K61: 114.13 | L61: 110.7 | M61: 107.65 | N61: 9039000 | O61: -1.55%
A62: 52 | B62: Infrastructure | C62: EQUITAS | D62: 117.75 | E62: 117.53 | F62: 115.72 | G62: 113.68 | H62: 111.87 | I62: 119.57 | J62: 121.38 | K62: 123.42 | L62: 119.35 | M62: 115.5 | N62: 11940000 | O62: 3.50%
A63: 53 | B63: Finance | C63: ESCORTS | D63: 533.30 | E63: 527.40 | F63: 516.05 | G63: 498.80 | H63: 487.45 | I63: 544.65 | J63: 556.00 | K63: 573.25 | L63: 538.75 | M63: 510.15 | N63: 6121500 | O63: -4.71%
A64: 54 | B64: Automobile | C64: EXIDEIND | D64: 199.75 | E64: 198.93 | F64: 197.62 | G64: 195.48 | H64: 194.17 | I64: 201.07 | J64: 202.38 | K64: 204.52 | L64: 200.25 | M64: 196.8 | N64: 8157600 | O64: -1.79%
A65: 55 | B65: Automobile | C65: FEDERALBNK | D65: 105.55 | E65: 104.70 | F65: 103.65 | G65: 101.75 | H65: 100.70 | I65: 106.60 | J65: 107.65 | K65: 109.55 | L65: 105.75 | M65: 102.8 | N65: 44513000 | O65: -1.55%
A66: 56 | B66: Banking | C66: GAIL | D66: 147.75 | E66: 148.73 | F66: 145.52 | G66: 143.28 | H66: 140.07 | I66: 150.97 | J66: 154.18 | K66: 156.42 | L66: 151.95 | M66: 146.5 | N66: 32836104 | O66: 100.91%
A67: 57 | B67: Oil_Gas | C67: GLENMARK | D67: 449.75 | E67: 446.90 | F67: 440.75 | G67: 431.75 | H67: 425.60 | I67: 455.90 | J67: 462.05 | K67: 471.05 | L67: 453.05 | M67: 437.9 | N67: 7592000 | O67: -6.33%
A68: 58 | B68: Pharma | C68: GMRINFRA | D68: 15.20 | E68: 15.07 | F68: 14.83 | G68: 14.47 | H68: 14.23 | I68: 15.43 | J68: 15.67 | K68: 16.03 | L68: 15.3 | M68: 14.7 | N68: 180990000 | O68: -1.66%
A69: 59 | B69: Infrastructure | C69: GODREJCP | D69: 648.65 | E69: 648.93 | F69: 641.62 | G69: 634.58 | H69: 627.27 | I69: 655.97 | J69: 663.28 | K69: 670.32 | L69: 656.25 | M69: 641.9 | N69: 5500000 | O69: 0.69%
A70: 60 | B70: FMCG | C70: GRASIM | D70: 912.00 | E70: 903.87 | F70: 893.53 | G70: 875.07 | H70: 864.73 | I70: 922.33 | J70: 932.67 | K70: 951.13 | L70: 914.2 | M70: 885.4 | N70: 12211500 | O70: -0.48%
A71: 61 | B71: Cement | C71: HAVELLS | D71: 737.45 | E71: 736.82 | F71: 724.13 | G71: 710.82 | H71: 698.13 | I71: 750.13 | J71: 762.82 | K71: 776.13 | L71: 749.5 | M71: 723.5 | N71: 5807000 | O71: -3.02%
A72: 62 | B72: Others | C72: HCLTECH | D72: 1021.75 | E72: 1027.55 | F72: 1006.15 | G72: 990.55 | H72: 969.15 | I72: 1043.15 | J72: 1064.55 | K72: 1080.15 | L72: 1048.95 | M72: 1011.95 | N72: 10430000 | O72: -1.34%
A73: 63 | B73: Technology | C73: HDFC | D73: 2219.45 | E73: 2217.05 | F73: 2193.60 | G73: 2167.75 | H73: 2144.30 | I73: 2242.90 | J73: 2266.35 | K73: 2292.20 | L73: 2240.5 | M73: 2191.2 | N73: 27070500 | O73: -0.40%
A74: 64 | B74: Finance | C74: HDFCBANK | D74: 2388.15 | E74: 2396.45 | F74: 2373.90 | G74: 2359.65 | H74: 2337.10 | I74: 2410.70 | J74: 2433.25 | K74: 2447.50 | L74: 2419 | M74: 2382.2 | N74: 17083750 | O74: 1.01%
A75: 65 | B75: Banking | C75: HEROMOTOCO | D75: 2417.35 | E75: 2399.52 | F75: 2372.28 | G75: 2327.22 | H75: 2299.98 | I75: 2444.58 | J75: 2471.82 | K75: 2516.88 | L75: 2426.75 | M75: 2354.45 | N75: 2638200 | O75: -7.95%
A76: 66 | B76: Automobile | C76: HEXAWARE | D76: 356.15 | E76: 357.95 | F76: 352.35 | G76: 348.55 | H76: 342.95 | I76: 361.75 | J76: 367.35 | K76: 371.15 | L76: 363.55 | M76: 354.15 | N76: 2308500 | O76: -1.54%
A77: 67 | B77: Technology | C77: HINDALCO | D77: 198.25 | E77: 197.12 | F77: 194.98 | G77: 191.72 | H77: 189.58 | I77: 200.38 | J77: 202.52 | K77: 205.78 | L77: 199.25 | M77: 193.85 | N77: 35304500 | O77: -0.87%
A78: 68 | B78: Metals | C78: HINDPETRO | D78: 288.95 | E78: 287.35 | F78: 284.40 | G78: 279.85 | H78: 276.90 | I78: 291.90 | J78: 294.85 | K78: 299.40 | L78: 290.3 | M78: 282.8 | N78: 15676500 | O78: -0.68%
A79: 69 | B79: Oil_Gas | C79: HINDUNILVR | D79: 1742.00 | E79: 1743.95 | F79: 1726.05 | G79: 1710.10 | H79: 1692.20 | I79: 1759.90 | J79: 1777.80 | K79: 1793.75 | L79: 1761.85 | M79: 1728 | N79: 10964400 | O79: -0.03%
A80: 70 | B80: FMCG | C80: HINDZINC | D80: 230.85 | E80: 229.68 | F80: 228.22 | G80: 225.58 | H80: 224.12 | I80: 232.32 | J80: 233.78 | K80: 236.42 | L80: 231.15 | M80: 227.05 | N80: 7212800 | O80: 0.63%
A81: 71 | B81: Metals | C81: IBULHSGFIN | D81: 688.05 | E81: 688.58 | F81: 672.27 | G81: 656.48 | H81: 640.17 | I81: 704.37 | J81: 720.68 | K81: 736.47 | L81: 704.9 | M81: 672.8 | N81: 18361600 | O81: 1.09%
A82: 72 | B82: Finance | C82: ICICIBANK | D82: 428.95 | E82: 428.37 | F82: 425.98 | G82: 423.02 | H82: 420.63 | I82: 431.33 | J82: 433.72 | K82: 436.68 | L82: 430.75 | M82: 425.4 | N82: 90153250 | O82: -0.22%
A83: 73 | B83: Banking | C83: ICICIPRULI | D83: 377.25 | E83: 374.90 | F83: 370.40 | G83: 363.55 | H83: 359.05 | I83: 381.75 | J83: 386.25 | K83: 393.10 | L83: 379.4 | M83: 368.05 | N83: 3942000 | O83: -3.35%
A84: 74 | B84: Finance | C84: IDBI | D84: 34.30 | E84: 34.12 | F84: 33.73 | G84: 33.17 | H84: 32.78 | I84: 34.68 | J84: 35.07 | K84: 35.63 | L84: 34.5 | M84: 33.55 | N84: 28728000 | O84: 1.23%
A85: 75 | B85: Banking | C85: IDEA | D85: 11.40 | E85: 11.43 | F85: 11.27 | G85: 11.13 | H85: 10.97 | I85: 11.57 | J85: 11.73 | K85: 11.87 | L85: 11.6 | M85: 11.3 | N85: 393288000 | O85: 1.34%
A86: 76 | B86: Telecom | C86: IDFCFIRSTB | D86: 42.95 | E86: 42.48 | F86: 41.82 | G86: 40.68 | H86: 40.02 | I86: 43.62 | J86: 44.28 | K86: 45.42 | L86: 43.15 | M86: 41.35 | N86: 116460000 | O86: 0.50%
A87: 77 | B87: Banking | C87: IGL | D87: 303.25 | E87: 302.33 | F87: 298.12 | G87: 292.98 | H87: 288.77 | I87: 307.47 | J87: 311.68 | K87: 316.82 | L87: 306.55 | M87: 297.2 | N87: 4556750 | O87: -16.65%
A88: 78 | B88: Oil_Gas | C88: INDIGO | D88: 1572.95 | E88: 1556.15 | F88: 1533.10 | G88: 1493.25 | H88: 1470.20 | I88: 1596.00 | J88: 1619.05 | K88: 1658.90 | L88: 1579.2 | M88: 1516.3 | N88: 2841600 | O88: 7.15%
A89: 79 | B89: Others | C89: INDUSINDBK | D89: 1496.80 | E89: 1490.73 | F89: 1467.52 | G89: 1438.23 | H89: 1415.02 | I89: 1520.02 | J89: 1543.23 | K89: 1572.52 | L89: 1513.95 | M89: 1461.45 | N89: 12088400 | O89: 1.56%
A90: 80 | B90: Banking | C90: INFRATEL | D90: 261.35 | E90: 260.23 | F90: 258.52 | G90: 255.68 | H90: 253.97 | I90: 263.07 | J90: 264.78 | K90: 267.62 | L90: 261.95 | M90: 257.4 | N90: 6946000 | O90: -0.17%
A91: 81 | B91: Telecom | C91: INFY | D91: 717.90 | E91: 717.48 | F91: 711.97 | G91: 706.03 | H91: 700.52 | I91: 723.42 | J91: 728.93 | K91: 734.87 | L91: 723 | M91: 711.55 | N91: 58160400 | O91: -0.28%
A92: 82 | B92: Technology | C92: IOC | D92: 150.60 | E92: 148.85 | F92: 146.25 | G92: 141.90 | H92: 139.30 | I92: 153.20 | J92: 155.80 | K92: 160.15 | L92: 151.45 | M92: 144.5 | N92: 40845000 | O92: 0.78%
A93: 83 | B93: Oil_Gas | C93: ITC | D93: 273.40 | E93: 274.82 | F93: 271.58 | G93: 269.77 | H93: 266.53 | I93: 276.63 | J93: 279.87 | K93: 281.68 | L93: 278.05 | M93: 273 | N93: 93153600 | O93: 0.57%
A94: 84 | B94: FMCG | C94: JINDALSTEL | D94: 136.40 | E94: 135.48 | F94: 133.57 | G94: 130.73 | H94: 128.82 | I94: 138.32 | J94: 140.23 | K94: 143.07 | L94: 137.4 | M94: 132.65 | N94: 35331200 | O94: -0.34%
A95: 85 | B95: Metals | C95: JSWSTEEL | D95: 262.80 | E95: 263.32 | F95: 260.58 | G95: 258.37 | H95: 255.63 | I95: 265.53 | J95: 268.27 | K95: 270.48 | L95: 266.05 | M95: 261.1 | N95: 51216000 | O95: -0.27%
A96: 86 | B96: Metals | C96: JUBLFOOD | D96: 1219.50 | E96: 1217.07 | F96: 1196.63 | G96: 1173.77 | H96: 1153.33 | I96: 1239.93 | J96: 1260.37 | K96: 1283.23 | L96: 1237.5 | M96: 1194.2 | N96: 2784500 | O96: 1.44%
A97: 87 | B97: Others | C97: JUSTDIAL | D97: 784.70 | E97: 773.10 | F97: 749.80 | G97: 714.90 | H97: 691.60 | I97: 808.00 | J97: 831.30 | K97: 866.20 | L97: 796.4 | M97: 738.2 | N97: 2555000 | O97: 5.92%
A98: 88 | B98: Others | C98: KAJARIACER | D98: 568.65 | E98: 565.62 | F98: 560.63 | G98: 552.62 | H98: 547.63 | I98: 573.63 | J98: 578.62 | K98: 586.63 | L98: 570.6 | M98: 557.6 | N98: 2390700 | O98: -0.97%
A99: 89 | B99: Others | C99: KOTAKBANK | D99: 1463.25 | E99: 1460.80 | F99: 1447.85 | G99: 1432.45 | H99: 1419.50 | I99: 1476.20 | J99: 1489.15 | K99: 1504.55 | L99: 1473.75 | M99: 1445.4 | N99: 9148000 | O99: 1.67%
A100: 90 | B100: Banking | C100: BSOFT | D100: 82.00 | E100: 81.78 | F100: 80.97 | G100: 79.93 | H100: 79.12 | I100: 82.82 | J100: 83.63 | K100: 84.67 | L100: 82.6 | M100: 80.75 | N100: 3095700 | O100: 8.59%
A101: 91 | B101: Finance | C101: L&TFH | D101: 121.10 | E101: 120.73 | F101: 118.87 | G101: 116.63 | H101: 114.77 | I101: 122.97 | J101: 124.83 | K101: 127.07 | L101: 122.6 | M101: 118.5 | N101: 33511500 | O101: 1.22%
A102: 92 | B102: Finance | C102: LICHSGFIN | D102: 572.50 | E102: 565.50 | F102: 554.50 | G102: 536.50 | H102: 525.50 | I102: 583.50 | J102: 594.50 | K102: 612.50 | L102: 576.5 | M102: 547.5 | N102: 7642800 | O102: 0.90%
A103: 93 | B103: Capital_Goods | C103: LT | D103: 1510.50 | E103: 1501.30 | F103: 1480.40 | G103: 1450.30 | H103: 1429.40 | I103: 1531.40 | J103: 1552.30 | K103: 1582.40 | L103: 1522.2 | M103: 1471.2 | N103: 12071625 | O103: -3.56%
A104: 94 | B104: Pharma | C104: LUPIN | D104: 754.15 | E104: 747.87 | F104: 738.58 | G104: 723.02 | H104: 713.73 | I104: 763.43 | J104: 772.72 | K104: 788.28 | L104: 757.15 | M104: 732.3 | N104: 8735300 | O104: -0.31%
A105: 95 | B105: Automobile | C105: M&M | D105: 624.75 | E105: 626.65 | F105: 621.20 | G105: 617.65 | H105: 612.20 | I105: 630.20 | J105: 635.65 | K105: 639.20 | L105: 632.1 | M105: 623.1 | N105: 20036000 | O105: -0.46%
A106: 96 | B106: Finance | C106: M&MFIN | D106: 385.95 | E106: 385.57 | F106: 381.13 | G106: 376.32 | H106: 371.88 | I106: 390.38 | J106: 394.82 | K106: 399.63 | L106: 390 | M106: 380.75 | N106: 12950000 | O106: 2.11%
A107: 97 | B107: Finance | C107: MANAPPURAM | D107: 130.45 | E107: 130.28 | F107: 127.67 | G107: 124.88 | H107: 122.27 | I107: 133.07 | J107: 135.68 | K107: 138.47 | L107: 132.9 | M107: 127.5 | N107: 13650000 | O107: -2.74%
A108: 98 | B108: FMCG | C108: MARICO | D108: 371.50 | E108: 372.27 | F108: 366.68 | G108: 361.87 | H108: 356.28 | I108: 377.08 | J108: 382.67 | K108: 387.48 | L108: 377.85 | M108: 367.45 | N108: 7727200 | O108: -1.16%
A109: 99 | B109: Automobile | C109: MARUTI | D109: 5973.75 | E109: 6001.60 | F109: 5907.20 | G109: 5840.65 | H109: 5746.25 | I109: 6068.15 | J109: 6162.55 | K109: 6229.10 | L109: 6096 | M109: 5935.05 | N109: 3410250 | O109: 4.14%
A110: 100 | B110: FMCG | C110: MCDOWELL-N | D110: 570.25 | E110: 572.72 | F110: 561.33 | G110: 552.42 | H110: 541.03 | I110: 581.63 | J110: 593.02 | K110: 601.93 | L110: 584.1 | M110: 563.8 | N110: 9671250 | O110: 3.28%
A111: 101 | B111: Others | C111: MCX | D111: 829.45 | E111: 823.13 | F111: 809.37 | G111: 789.28 | H111: 775.52 | I111: 843.22 | J111: 856.98 | K111: 877.07 | L111: 836.9 | M111: 803.05 | N111: 1627500 | O111: -0.98%
A112: 102 | B112: Finance | C112: MFSL | D112: 418.50 | E112: 413.33 | F112: 406.52 | G112: 394.53 | H112: 387.72 | I112: 425.32 | J112: 432.13 | K112: 444.12 | L112: 420.15 | M112: 401.35 | N112: 2275200 | O112: -4.44%
A113: 103 | B113: Oil_Gas | C113: MGL | D113: 790.85 | E113: 792.52 | F113: 782.53 | G113: 774.22 | H113: 764.23 | I113: 800.83 | J113: 810.82 | K113: 819.13 | L113: 802.5 | M113: 784.2 | N113: 1097400 | O113: 7.97%
A114: 104 | B114: Technology | C114: MINDTREE | D114: 773.10 | E114: 766.18 | F114: 743.72 | G114: 714.33 | H114: 691.87 | I114: 795.57 | J114: 818.03 | K114: 847.42 | L114: 788.65 | M114: 736.8 | N114: 1729800 | O114: -6.79%
A115: 105 | B115: Automobile | C115: MOTHERSUMI | D115: 118.35 | E115: 118.53 | F115: 117.42 | G115: 116.48 | H115: 115.37 | I115: 119.47 | J115: 120.58 | K115: 121.52 | L115: 119.65 | M115: 117.6 | N115: 25182300 | O115: 0.17%
A116: 106 | B116: Automobile | C116: MRF | D116: 54563.05 | E116: 54468.73 | F116: 54037.52 | G116: 53511.98 | H116: 53080.77 | I116: 54994.27 | J116: 55425.48 | K116: 55951.02 | L116: 54899.95 | M116: 53943.2 | N116: 31280 | O116: -4.28%
A117: 107 | B117: Finance | C117: MUTHOOTFIN | D117: 616.35 | E117: 610.65 | F117: 599.55 | G117: 582.75 | H117: 571.65 | I117: 627.45 | J117: 638.55 | K117: 655.35 | L117: 621.75 | M117: 593.85 | N117: 3453000 | O117: 2.04%
A118: 108 | B118: Metals | C118: NATIONALUM | D118: 47.95 | E118: 47.85 | F118: 47.40 | G118: 46.85 | H118: 46.40 | I118: 48.40 | J118: 48.85 | K118: 49.40 | L118: 48.3 | M118: 47.3 | N118: 45420000 | O118: 5.11%
A119: 109 | B119: Infrastructure | C119: NBCC | D119: 55.90 | E119: 55.23 | F119: 53.87 | G119: 51.83 | H119: 50.47 | I119: 57.27 | J119: 58.63 | K119: 60.67 | L119: 56.6 | M119: 53.2 | N119: 32504000 | O119: -1.85%
A120: 110 | B120: Infrastructure | C120: NCC | D120: 93.50 | E120: 93.38 | F120: 92.37 | G120: 91.23 | H120: 90.22 | I120: 94.52 | J120: 95.53 | K120: 96.67 | L120: 94.4 | M120: 92.25 | N120: 32120000 | O120: -1.42%
A121: 111 | B121: FMCG | C121: NESTLEIND | D121: 11707.80 | E121: 11728.93 | F121: 11627.87 | G121: 11547.93 | H121: 11446.87 | I121: 11808.87 | J121: 11909.93 | K121: 11989.87 | L121: 11830 | M121: 11649 | N121: 348350 | O121: -0.49%
A122: 112 | B122: Technology | C122: NIITTECH | D122: 1263.45 | E122: 1280.57 | F122: 1235.63 | G122: 1207.82 | H122: 1162.88 | I122: 1308.38 | J122: 1353.32 | K122: 1381.13 | L122: 1325.5 | M122: 1252.75 | N122: 1176750 | O122: -23.16%
A123: 113 | B123: Metals | C123: NMDC | D123: 109.60 | E123: 108.87 | F123: 107.48 | G123: 105.37 | H123: 103.98 | I123: 110.98 | J123: 112.37 | K123: 114.48 | L123: 110.25 | M123: 106.75 | N123: 29610000 | O123: -0.54%
A124: 114 | B124: Power | C124: NTPC | D124: 128.95 | E124: 129.05 | F124: 126.80 | G124: 124.65 | H124: 122.40 | I124: 131.20 | J124: 133.45 | K124: 135.60 | L124: 131.3 | M124: 126.9 | N124: 74040000 | O124: 6.96%
A125: 115 | B125: Technology | C125: OFSS | D125: 3245.35 | E125: 3236.55 | F125: 3209.25 | G125: 3173.15 | H125: 3145.85 | I125: 3272.65 | J125: 3299.95 | K125: 3336.05 | L125: 3263.85 | M125: 3200.45 | N125: 259650 | O125: 0.17%
A126: 116 | B126: Oil_Gas | C126: OIL | D126: 174.80 | E126: 170.93 | F126: 166.32 | G126: 157.83 | H126: 153.22 | I126: 179.42 | J126: 184.03 | K126: 192.52 | L126: 175.55 | M126: 162.45 | N126: 7423416 | O126: 11.89%
A127: 117 | B127: Oil_Gas | C127: ONGC | D127: 152.60 | E127: 152.60 | F127: 150.20 | G127: 147.80 | H127: 145.40 | I127: 155.00 | J127: 157.40 | K127: 159.80 | L127: 155 | M127: 150.2 | N127: 53820000 | O127: 2.82%
A128: 118 | B128: Textile | C128: PAGEIND | D128: 19702.05 | E128: 19560.70 | F128: 19321.40 | G128: 18940.75 | H128: 18701.45 | I128: 19941.35 | J128: 20180.65 | K128: 20561.30 | L128: 19800 | M128: 19180.05 | N128: 165675 | O128: -0.30%
A129: 119 | B129: Pharma | C129: PEL | D129: 1964.15 | E129: 1943.58 | F129: 1908.57 | G129: 1852.98 | H129: 1817.97 | I129: 1999.17 | J129: 2034.18 | K129: 2089.77 | L129: 1978.6 | M129: 1888 | N129: 3450350 | O129: 1.90%
A130: 120 | B130: Oil_Gas | C130: PETRONET | D130: 242.85 | E130: 243.85 | F130: 240.10 | G130: 237.35 | H130: 233.60 | I130: 246.60 | J130: 250.35 | K130: 253.10 | L130: 247.6 | M130: 241.1 | N130: 12480000 | O130: 6.23%
A131: 121 | B131: Finance | C131: PFC | D131: 127.25 | E131: 125.30 | F131: 121.25 | G131: 115.25 | H131: 111.20 | I131: 131.30 | J131: 135.35 | K131: 141.35 | L131: 129.35 | M131: 119.3 | N131: 37175200 | O131: 7.92%
A132: 122 | B132: FMCG | C132: PIDILITIND | D132: 1178.40 | E132: 1181.85 | F132: 1166.70 | G132: 1155.00 | H132: 1139.85 | I132: 1193.55 | J132: 1208.70 | K132: 1220.40 | L132: 1197 | M132: 1170.15 | N132: 2643000 | O132: -3.35%
A133: 123 | B133: Banking | C133: PNB | D133: 74.65 | E133: 73.62 | F133: 72.28 | G133: 69.92 | H133: 68.58 | I133: 75.98 | J133: 77.32 | K133: 79.68 | L133: 74.95 | M133: 71.25 | N133: 115325000 | O133: -2.68%
A134: 124 | B134: Power | C134: POWERGRID | D134: 204.95 | E134: 203.67 | F134: 201.78 | G134: 198.62 | H134: 196.73 | I134: 206.83 | J134: 208.72 | K134: 211.88 | L134: 205.55 | M134: 200.5 | N134: 31684000 | O134: -2.20%
A135: 125 | B135: Media | C135: PVR | D135: 1657.20 | E135: 1644.82 | F135: 1623.53 | G135: 1589.87 | H135: 1568.58 | I135: 1678.48 | J135: 1699.77 | K135: 1733.43 | L135: 1666.1 | M135: 1611.15 | N135: 625200 | O135: 1.17%
A136: 126 | B136: Cement | C136: RAMCOCEM | D136: 781.85 | E136: 779.57 | F136: 763.68 | G136: 745.52 | H136: 729.63 | I136: 797.73 | J136: 813.62 | K136: 831.78 | L136: 795.45 | M136: 761.4 | N136: 1044800 | O136: -3.90%
A137: 127 | B137: Textile | C137: RAYMOND | D137: 714.95 | E137: 709.97 | F137: 701.93 | G137: 688.92 | H137: 680.88 | I137: 722.98 | J137: 731.02 | K137: 744.03 | L137: 718 | M137: 696.95 | N137: 2682400 | O137: -0.62%
A138: 128 | B138: Banking | C138: RBLBANK | D138: 629.55 | E138: 626.95 | F138: 623.05 | G138: 616.55 | H138: 612.65 | I138: 633.45 | J138: 637.35 | K138: 643.85 | L138: 630.85 | M138: 620.45 | N138: 5534400 | O138: 0.11%
A139: 129 | B139: Power | C139: RECLTD | D139: 137.50 | E139: 141.27 | F139: 130.53 | G139: 123.57 | H139: 112.83 | I139: 148.23 | J139: 158.97 | K139: 165.93 | L139: 152 | M139: 134.3 | N139: 54954000 | O139: 72.26%
A140: 130 | B140: Finance | C140: RELCAPITAL | D140: 53.60 | E140: 52.73 | F140: 50.42 | G140: 47.23 | H140: 44.92 | I140: 55.92 | J140: 58.23 | K140: 61.42 | L140: 55.05 | M140: 49.55 | N140: 15366000 | O140: -2.40%
A141: 131 | B141: Oil_Gas | C141: RELIANCE | D141: 1280.60 | E141: 1271.10 | F141: 1258.20 | G141: 1235.80 | H141: 1222.90 | I141: 1293.50 | J141: 1306.40 | K141: 1328.80 | L141: 1284 | M141: 1248.7 | N141: 43475000 | O141: -2.90%
A142: 132 | B142: Power | C142: RELINFRA | D142: 46.50 | E142: 46.55 | F142: 45.30 | G142: 44.10 | H142: 42.85 | I142: 47.75 | J142: 49.00 | K142: 50.20 | L142: 47.8 | M142: 45.35 | N142: 16492000 | O142: 4.04%
A143: 133 | B143: Metals | C143: SAIL | D143: 47.00 | E143: 46.78 | F143: 46.42 | G143: 45.83 | H143: 45.47 | I143: 47.37 | J143: 47.73 | K143: 48.32 | L143: 47.15 | M143: 46.2 | N143: 102420000 | O143: -2.68%
A144: 134 | B144: Banking | C144: SBIN | D144: 360.55 | E144: 358.62 | F144: 356.03 | G144: 351.52 | H144: 348.93 | I144: 363.13 | J144: 365.72 | K144: 370.23 | L144: 361.2 | M144: 354.1 | N144: 70974000 | O144: -1.22%
A145: 135 | B145: Cement | C145: SHREECEM | D145: 21282.65 | E145: 21160.88 | F145: 20861.77 | G145: 20440.88 | H145: 20141.77 | I145: 21581.77 | J145: 21880.88 | K145: 22301.77 | L145: 21460 | M145: 20740 | N145: 127400 | O145: -0.04%
A146: 136 | B146: Capital_Goods | C146: SIEMENS | D146: 1264.30 | E146: 1258.25 | F146: 1243.10 | G146: 1221.90 | H146: 1206.75 | I146: 1279.45 | J146: 1294.60 | K146: 1315.80 | L146: 1273.4 | M146: 1237.05 | N146: 1465200 | O146: 0.87%
A147: 137 | B147: Textile | C147: SRF | D147: 2805.65 | E147: 2827.42 | F147: 2745.93 | G147: 2686.22 | H147: 2604.73 | I147: 2887.13 | J147: 2968.62 | K147: 3028.33 | L147: 2908.9 | M147: 2767.7 | N147: 1114750 | O147: 18.15%
A148: 138 | B148: Finance | C148: SRTRANSFIN | D148: 1054.15 | E148: 1049.75 | F148: 1036.05 | G148: 1017.95 | H148: 1004.25 | I148: 1067.85 | J148: 1081.55 | K148: 1099.65 | L148: 1063.45 | M148: 1031.65 | N148: 4793400 | O148: -1.86%
A149: 139 | B149: Pharma | C149: STAR | D149: 377.40 | E149: 375.87 | F149: 370.38 | G149: 363.37 | H149: 357.88 | I149: 382.88 | J149: 388.37 | K149: 395.38 | L149: 381.35 | M149: 368.85 | N149: 3602400 | O149: -1.02%
A150: 140 | B150: Pharma | C150: SUNPHARMA | D150: 388.00 | E150: 384.33 | F150: 371.52 | G150: 355.03 | H150: 342.22 | I150: 400.82 | J150: 413.63 | K150: 430.12 | L150: 397.15 | M150: 367.85 | N150: 56563100 | O150: 1.30%
A151: 141 | B151: Media | C151: SUNTV | D151: 470.75 | E151: 471.12 | F151: 465.73 | G151: 460.72 | H151: 455.33 | I151: 476.13 | J151: 481.52 | K151: 486.53 | L151: 476.5 | M151: 466.1 | N151: 6321000 | O151: 0.13%
A152: 142 | B152: Fertilisers | C152: TATACHEM | D152: 593.45 | E152: 593.15 | F152: 588.55 | G152: 583.65 | H152: 579.05 | I152: 598.05 | J152: 602.65 | K152: 607.55 | L152: 597.75 | M152: 588.25 | N152: 2653200 | O152: -0.54%
A153: 143 | B153: Technology | C153: TATAELXSI | D153: 855.20 | E153: 854.92 | F153: 845.38 | G153: 835.57 | H153: 826.03 | I153: 864.73 | J153: 874.27 | K153: 884.08 | L153: 864.45 | M153: 845.1 | N153: 1603800 | O153: 0.38%
A154: 144 | B154: FMCG | C154: TATAGLOBAL | D154: 264.50 | E154: 264.68 | F154: 262.12 | G154: 259.73 | H154: 257.17 | I154: 267.07 | J154: 269.63 | K154: 272.02 | L154: 267.25 | M154: 262.3 | N154: 6895800 | O154: -4.70%
A155: 145 | B155: Automobile | C155: TATAMOTORS | D155: 156.10 | E155: 155.72 | F155: 153.78 | G155: 151.47 | H155: 149.53 | I155: 158.03 | J155: 159.97 | K155: 162.28 | L155: 157.65 | M155: 153.4 | N155: 69843000 | O155: 0.34%
A156: 146 | B156: Automobile | C156: TATAMTRDVR | D156: 75.10 | E156: 75.10 | F156: 74.15 | G156: 73.20 | H156: 72.25 | I156: 76.05 | J156: 77.00 | K156: 77.95 | L156: 76.05 | M156: 74.15 | N156: 32076000 | O156: 1.98%
A157: 147 | B157: Power | C157: TATAPOWER | D157: 68.65 | E157: 68.58 | F157: 68.07 | G157: 67.48 | H157: 66.97 | I157: 69.17 | J157: 69.68 | K157: 70.27 | L157: 69.1 | M157: 68 | N157: 53883000 | O157: -0.08%
A158: 148 | B158: Metals | C158: TATASTEEL | D158: 470.30 | E158: 469.55 | F158: 465.15 | G158: 460.00 | H158: 455.60 | I158: 474.70 | J158: 479.10 | K158: 484.25 | L158: 473.95 | M158: 464.4 | N158: 32327609 | O158: 0.70%
A159: 149 | B159: Technology | C159: TCS | D159: 2127.40 | E159: 2133.40 | F159: 2097.00 | G159: 2066.60 | H159: 2030.20 | I159: 2163.80 | J159: 2200.20 | K159: 2230.60 | L159: 2169.8 | M159: 2103 | N159: 15338000 | O159: 3.92%
A160: 150 | B160: Technology | C160: TECHM | D160: 663.50 | E160: 664.62 | F160: 656.93 | G160: 650.37 | H160: 642.68 | I160: 671.18 | J160: 678.87 | K160: 685.43 | L160: 672.3 | M160: 658.05 | N160: 16678800 | O160: 0.29%
A161: 151 | B161: FMCG | C161: TITAN | D161: 1103.10 | E161: 1121.07 | F161: 1060.03 | G161: 1016.97 | H161: 955.93 | I161: 1164.13 | J161: 1225.17 | K161: 1268.23 | L161: 1182.1 | M161: 1078 | N161: 10418250 | O161: 24.13%
A162: 152 | B162: Pharma | C162: TORNTPHARM | D162: 1539.75 | E162: 1534.25 | F162: 1514.55 | G162: 1489.35 | H162: 1469.65 | I162: 1559.45 | J162: 1579.15 | K162: 1604.35 | L162: 1553.95 | M162: 1509.05 | N162: 613500 | O162: -2.77%
A163: 153 | B163: Power | C163: TORNTPOWER | D163: 300.40 | E163: 298.22 | F163: 294.53 | G163: 288.67 | H163: 284.98 | I163: 304.08 | J163: 307.77 | K163: 313.63 | L163: 301.9 | M163: 292.35 | N163: 4188000 | O163: 3.79%
A164: 154 | B164: Automobile | C164: TVSMOTOR | D164: 422.55 | E164: 417.00 | F164: 409.85 | G164: 397.15 | H164: 390.00 | I164: 429.70 | J164: 436.85 | K164: 449.55 | L164: 424.15 | M164: 404.3 | N164: 6772700 | O164: -0.26%
A165: 155 | B165: FMCG | C165: UBL | D165: 1352.85 | E165: 1357.25 | F165: 1342.60 | G165: 1332.35 | H165: 1317.70 | I165: 1367.50 | J165: 1382.15 | K165: 1392.40 | L165: 1371.9 | M165: 1347 | N165: 1129100 | O165: -3.47%
A166: 156 | B166: Finance | C166: UJJIVAN | D166: 283.95 | E166: 279.55 | F166: 273.65 | G166: 263.35 | H166: 257.45 | I166: 289.85 | J166: 295.75 | K166: 306.05 | L166: 285.45 | M166: 269.25 | N166: 5998400 | O166: 0.92%
A167: 157 | B167: Cement | C167: ULTRACEMCO | D167: 4494.10 | E167: 4461.25 | F167: 4383.05 | G167: 4272.00 | H167: 4193.80 | I167: 4572.30 | J167: 4650.50 | K167: 4761.55 | L167: 4539.45 | M167: 4350.2 | N167: 2272800 | O167: -2.15%
A168: 158 | B168: Banking | C168: UNIONBANK | D168: 78.35 | E168: 77.80 | F168: 76.90 | G168: 75.45 | H168: 74.55 | I168: 79.25 | J168: 80.15 | K168: 81.60 | L168: 78.7 | M168: 76.35 | N168: 32403000 | O168: -1.93%
A169: 159 | B169: Fertilisers | C169: UPL | D169: 639.80 | E169: 643.90 | F169: 629.05 | G169: 618.30 | H169: 603.45 | I169: 654.65 | J169: 669.50 | K169: 680.25 | L169: 658.75 | M169: 633.15 | N169: 16676100 | O169: 3.28%
A170: 160 | B170: Metals | C170: VEDL | D170: 162.15 | E170: 162.25 | F170: 160.35 | G170: 158.55 | H170: 156.65 | I170: 164.05 | J170: 165.95 | K170: 167.75 | L170: 164.15 | M170: 160.45 | N170: 58485000 | O170: 0.55%
A171: 161 | B171: Capital_Goods | C171: VOLTAS | D171: 594.95 | E171: 595.25 | F171: 585.00 | G171: 575.05 | H171: 564.80 | I171: 605.20 | J171: 615.45 | K171: 625.40 | L171: 605.5 | M171: 585.3 | N171: 4284000 | O171: -0.76%
A172: 162 | B172: Technology | C172: WIPRO | D172: 266.75 | E172: 267.75 | F172: 264.25 | G172: 261.75 | H172: 258.25 | I172: 270.25 | J172: 273.75 | K172: 276.25 | L172: 271.25 | M172: 265.25 | N172: 30464000 | O172: 0.51%
A173: 163 | B173: Banking | C173: YESBANK | D173: 91.75 | E173: 93.27 | F173: 88.98 | G173: 86.22 | H173: 81.93 | I173: 96.03 | J173: 100.32 | K173: 103.08 | L173: 97.55 | M173: 90.5 | N173: 130545800 | O173: -3.54%
A174: 164 | B174: Media | C174: ZEEL | D174: 329.70 | E174: 331.00 | F174: 323.55 | G174: 317.40 | H174: 309.95 | I174: 337.15 | J174: 344.60 | K174: 350.75 | L174: 338.45 | M174: 324.85 | N174: 22252100 | O174: 2.82%
A221: Pivot Point: This is trigger point for intra day buy/sell based on the price range of the previous day
A222: As per the tool,the trader should take BUY position just above Pivot and keep the stop loss of pivot point and the first target would be Resistance 1(R1)
A223: If R1 is crossed then R2 becomes the next target with stop loss of at R1
A224: Similarly if price goes below pivot point then the trader should sell and keep a stop loss of pivot point and the first target would be S1
A225: If S1 is crossed then S2 becomes the next target with stop loss of at S1
A227: Disclaimer:
A228: This document has been prepared by the Retail Research Desk of Asit C Mehta
A229: Investment Intermediates Ltd. and is meant for use of the recipient only
A230: and is not for circulation. This document is not to be reported or
A231: copied or made available to others. It should not be considered to be
A232: taken as an offer to sell or a solicitation to buy any security. The
A233: information contained herein is from sources believed reliable. We do
A234: not represent that it is accurate or complete and it should not be
A235: relied upon as such. We may from time to time have positions in and buy
A236: and sell securities referred to herein

Sheet Cash Intra
M5: Back to Main Page
A6: FOR INTRA DAY TRADING | K6: =Main!B10 -> 2019-07-10
A8: Sr.no | B8: Scrip | C8: CLOSE RATE | D8: Pivot Point | E8: Supports | H8: Resistances
C9: Point | E9: S1 | F9: S2 | G9: S3 | H9: R1 | I9: R2 | J9: R3 | K9: HIGH | L9: LOW | M9: Total Trade Quanity in Lakhs
A10: 1 | B10: Nifty 50 | C10: 11555.9 | D10: 11533.15 | E10: 11483.75 | F10: 11411.60 | G10: 11362.20 | H10: 11605.30 | I10: 11654.70 | J10: 11726.85 | K10: 11582.55 | L10: 11461
A11: 2 | B11: Nifty Bank | C11: 30569.15 | D11: 30539.32 | E11: 30376.53 | F11: 30183.92 | G11: 30021.13 | H11: 30731.93 | I11: 30894.72 | J11: 31087.33 | K11: 30702.1 | L11: 30346.7
A12: 3 | B12: Nifty CPSE | C12: 2188.6 | D12: 2184.73 | E12: 2161.42 | F12: 2134.23 | G12: 2110.92 | H12: 2211.92 | I12: 2235.23 | J12: 2262.42 | K12: 2208.05 | L12: 2157.55
A13: 4 | B13: Nifty Infra | C13: 3314.1 | D13: 3294.98 | E13: 3271.17 | F13: 3228.23 | G13: 3204.42 | H13: 3337.92 | I13: 3361.73 | J13: 3404.67 | K13: 3318.8 | L13: 3252.05
A14: 5 | B14: Nifty IT | C14: 15254.5 | D14: 15270.70 | E14: 15107.40 | F14: 14960.30 | G14: 14797.00 | H14: 15417.80 | I14: 15581.10 | J14: 15728.20 | K14: 15434 | L14: 15123.6
A15: 6 | B15: Nifty PSE | C15: 3437.9 | D15: 3433.05 | E15: 3408.50 | F15: 3379.10 | G15: 3354.55 | H15: 3462.45 | I15: 3487.00 | J15: 3516.40 | K15: 3457.6 | L15: 3403.65
A16: 7 | B16: Nifty Midcap 50 | C16: 4733.25 | D16: 4713.33 | E16: 4685.27 | F16: 4637.28 | G16: 4609.22 | H16: 4761.32 | I16: 4789.38 | J16: 4837.37 | K16: 4741.4 | L16: 4665.35
A17: 8 | B17: ABB | C17: 1531.6 | D17: 1521.37 | E17: 1484.73 | F17: 1437.87 | G17: 1401.23 | H17: 1568.23 | I17: 1604.87 | J17: 1651.73 | K17: 1558 | L17: 1474.5 | M17: 2.02265
A18: 9 | B18: ACC | C18: 1554.3 | D18: 1531.58 | E18: 1503.37 | F18: 1452.43 | G18: 1424.22 | H18: 1582.52 | I18: 1610.73 | J18: 1661.67 | K18: 1559.8 | L18: 1480.65 | M18: 9.03575
A19: 10 | B19: AUBANK | C19: 663.8 | D19: 670.93 | E19: 652.87 | F19: 641.93 | G19: 623.87 | H19: 681.87 | I19: 699.93 | J19: 710.87 | K19: 689 | L19: 660 | M19: 1.82166
A20: 11 | B20: ADANIPORTS | C20: 405 | D20: 401.22 | E20: 396.43 | F20: 387.87 | G20: 383.08 | H20: 409.78 | I20: 414.57 | J20: 423.13 | K20: 406 | L20: 392.65 | M20: 19.5228
A21: 12 | B21: ADANIPOWER | C21: 67.15 | D21: 65.57 | E21: 62.38 | F21: 57.62 | G21: 54.43 | H21: 70.33 | I21: 73.52 | J21: 78.28 | K21: 68.75 | L21: 60.8 | M21: 516.54011
A22: 13 | B22: ABCAPITAL | C22: 89.9 | D22: 89.67 | E22: 88.33 | F22: 86.77 | G22: 85.43 | H22: 91.23 | I22: 92.57 | J22: 94.13 | K22: 91 | L22: 88.1 | M22: 9.86561
A23: 14 | B23: ABFRL | C23: 203.3 | D23: 205.20 | E23: 200.30 | F23: 197.30 | G23: 192.40 | H23: 208.20 | I23: 213.10 | J23: 216.10 | K23: 210.1 | L23: 202.2 | M23: 3.04285
A24: 15 | B24: AJANTPHARM | C24: 916.2 | D24: 919.00 | E24: 908.30 | F24: 900.40 | G24: 889.70 | H24: 926.90 | I24: 937.60 | J24: 945.50 | K24: 929.7 | L24: 911.1 | M24: 2.04262
A25: 16 | B25: ALKEM | C25: 1772.95 | D25: 1764.65 | E25: 1751.30 | F25: 1729.65 | G25: 1716.30 | H25: 1786.30 | I25: 1799.65 | J25: 1821.30 | K25: 1778 | L25: 1743 | M25: 0.08391
A26: 17 | B26: AMARAJABAT | C26: 644.95 | D26: 640.30 | E26: 631.95 | F26: 618.95 | G26: 610.60 | H26: 653.30 | I26: 661.65 | J26: 674.65 | K26: 648.65 | L26: 627.3 | M26: 3.72955
A27: 18 | B27: AMBUJACEM | C27: 211.1 | D27: 208.92 | E27: 205.93 | F27: 200.77 | G27: 197.78 | H27: 214.08 | I27: 217.07 | J27: 222.23 | K27: 211.9 | L27: 203.75 | M27: 22.89398
A28: 19 | B28: APOLLOHOSP | C28: 1328.65 | D28: 1328.10 | E28: 1303.30 | F28: 1277.95 | G28: 1253.15 | H28: 1353.45 | I28: 1378.25 | J28: 1403.60 | K28: 1352.9 | L28: 1302.75 | M28: 8.06802
A29: 20 | B29: APOLLOTYRE | C29: 186.35 | D29: 187.00 | E29: 184.50 | F29: 182.65 | G29: 180.15 | H29: 188.85 | I29: 191.35 | J29: 193.20 | K29: 189.5 | L29: 185.15 | M29: 17.63656
A30: 21 | B30: ASHOKLEY | C30: 83.8 | D30: 84.28 | E30: 82.37 | F30: 80.93 | G30: 79.02 | H30: 85.72 | I30: 87.63 | J30: 89.07 | K30: 86.2 | L30: 82.85 | M30: 178.91519
A31: 22 | B31: ASIANPAINT | C31: 1321 | D31: 1319.05 | E31: 1293.20 | F31: 1265.40 | G31: 1239.55 | H31: 1346.85 | I31: 1372.70 | J31: 1400.50 | K31: 1344.9 | L31: 1291.25 | M31: 20.37332
A32: 23 | B32: AUROPHARMA | C32: 603.8 | D32: 597.70 | E32: 587.90 | F32: 572.00 | G32: 562.20 | H32: 613.60 | I32: 623.40 | J32: 639.30 | K32: 607.5 | L32: 581.8 | M32: 29.38178
A33: 24 | B33: DMART | C33: 1374.95 | D33: 1367.93 | E33: 1342.02 | F33: 1309.08 | G33: 1283.17 | H33: 1400.87 | I33: 1426.78 | J33: 1459.72 | K33: 1393.85 | L33: 1335 | M33: 4.1131
A34: 25 | B34: AXISBANK | C34: 786.2 | D34: 783.80 | E34: 778.80 | F34: 771.40 | G34: 766.40 | H34: 791.20 | I34: 796.20 | J34: 803.60 | K34: 788.8 | L34: 776.4 | M34: 64.4892
A35: 26 | B35: BAJAJ-AUTO | C35: 2786.4 | D35: 2779.30 | E35: 2762.10 | F35: 2737.80 | G35: 2720.60 | H35: 2803.60 | I35: 2820.80 | J35: 2845.10 | K35: 2796.5 | L35: 2755 | M35: 2.53454
A36: 27 | B36: BAJFINANCE | C36: 3603.1 | D36: 3521.50 | E36: 3418.00 | F36: 3232.90 | G36: 3129.40 | H36: 3706.60 | I36: 3810.10 | J36: 3995.20 | K36: 3625 | L36: 3336.4 | M36: 51.96125
A37: 28 | B37: BAJAJFINSV | C37: 7855.4 | D37: 7736.23 | E37: 7538.12 | F37: 7220.83 | G37: 7022.72 | H37: 8053.52 | I37: 8251.63 | J37: 8568.92 | K37: 7934.35 | L37: 7418.95 | M37: 12.67816
A38: 29 | B38: BAJAJHLDNG | C38: 3618.85 | D38: 3582.28 | E38: 3520.62 | F38: 3422.38 | G38: 3360.72 | H38: 3680.52 | I38: 3742.18 | J38: 3840.42 | K38: 3643.95 | L38: 3484.05 | M38: 0.43802
A39: 30 | B39: BALKRISIND | C39: 726.6 | D39: 723.53 | E39: 714.12 | F39: 701.63 | G39: 692.22 | H39: 736.02 | I39: 745.43 | J39: 757.92 | K39: 732.95 | L39: 711.05 | M39: 3.98285
A40: 31 | B40: BANDHANBNK | C40: 524.2 | D40: 528.12 | E40: 518.08 | F40: 511.97 | G40: 501.93 | H40: 534.23 | I40: 544.27 | J40: 550.38 | K40: 538.15 | L40: 522 | M40: 3.43479
A41: 32 | B41: BANKBARODA | C41: 125.9 | D41: 125.02 | E41: 123.63 | F41: 121.37 | G41: 119.98 | H41: 127.28 | I41: 128.67 | J41: 130.93 | K41: 126.4 | L41: 122.75 | M41: 148.69226
A42: 33 | B42: BANKINDIA | C42: 85.6 | D42: 85.18 | E42: 83.87 | F42: 82.13 | G42: 80.82 | H42: 86.92 | I42: 88.23 | J42: 89.97 | K42: 86.5 | L42: 83.45 | M42: 110.74406
A43: 34 | B43: BATAINDIA | C43: 1389.9 | D43: 1387.18 | E43: 1360.47 | F43: 1331.03 | G43: 1304.32 | H43: 1416.62 | I43: 1443.33 | J43: 1472.77 | K43: 1413.9 | L43: 1357.75 | M43: 8.56652
A44: 35 | B44: BERGEPAINT | C44: 306.75 | D44: 304.92 | E44: 301.93 | F44: 297.12 | G44: 294.13 | H44: 309.73 | I44: 312.72 | J44: 317.53 | K44: 307.9 | L44: 300.1 | M44: 5.90563
A45: 36 | B45: BEL | C45: 107.35 | D45: 105.15 | E45: 102.20 | F45: 97.05 | G45: 94.10 | H45: 110.30 | I45: 113.25 | J45: 118.40 | K45: 108.1 | L45: 100 | M45: 239.59721
A46: 37 | B46: BHARATFORG | C46: 454.1 | D46: 448.50 | E46: 441.10 | F46: 428.10 | G46: 420.70 | H46: 461.50 | I46: 468.90 | J46: 481.90 | K46: 455.9 | L46: 435.5 | M46: 17.74858
A47: 38 | B47: BHEL | C47: 67.2 | D47: 66.93 | E47: 66.12 | F47: 65.03 | G47: 64.22 | H47: 68.02 | I47: 68.83 | J47: 69.92 | K47: 67.75 | L47: 65.85 | M47: 81.78805
A48: 39 | B48: BPCL | C48: 360.1 | D48: 362.18 | E48: 356.52 | F48: 352.93 | G48: 347.27 | H48: 365.77 | I48: 371.43 | J48: 375.02 | K48: 367.85 | L48: 358.6 | M48: 37.77964
A49: 40 | B49: BHARTIARTL | C49: 362.3 | D49: 359.88 | E49: 356.52 | F49: 350.73 | G49: 347.37 | H49: 365.67 | I49: 369.03 | J49: 374.82 | K49: 363.25 | L49: 354.1 | M49: 38.59398
A50: 41 | B50: INFRATEL | C50: 260.7 | D50: 259.42 | E50: 257.33 | F50: 253.97 | G50: 251.88 | H50: 262.78 | I50: 264.87 | J50: 268.23 | K50: 261.5 | L50: 256.05 | M50: 11.81573
A51: 42 | B51: BIOCON | C51: 244.95 | D51: 243.57 | E51: 239.98 | F51: 235.02 | G51: 231.43 | H51: 248.53 | I51: 252.12 | J51: 257.08 | K51: 247.15 | L51: 238.6 | M51: 20.57019
A52: 43 | B52: BBTC | C52: 898.35 | D52: 902.03 | E52: 890.12 | F52: 881.88 | G52: 869.97 | H52: 910.27 | I52: 922.18 | J52: 930.42 | K52: 913.95 | L52: 893.8 | M52: 0.40015
A53: 44 | B53: BOSCHLTD | C53: 15982.55 | D53: 15972.07 | E53: 15872.53 | F53: 15762.52 | G53: 15662.98 | H53: 16082.08 | I53: 16181.62 | J53: 16291.63 | K53: 16071.6 | L53: 15862.05 | M53: 0.0724
A54: 45 | B54: BRITANNIA | C54: 2762.65 | D54: 2757.07 | E54: 2735.73 | F54: 2708.82 | G54: 2687.48 | H54: 2783.98 | I54: 2805.32 | J54: 2832.23 | K54: 2778.4 | L54: 2730.15 | M54: 3.14268
A55: 46 | B55: CADILAHC | C55: 230.75 | D55: 228.27 | E55: 225.03 | F55: 219.32 | G55: 216.08 | H55: 233.98 | I55: 237.22 | J55: 242.93 | K55: 231.5 | L55: 222.55 | M55: 12.15726
A56: 47 | B56: CANBK | C56: 275.25 | D56: 272.87 | E56: 268.83 | F56: 262.42 | G56: 258.38 | H56: 279.28 | I56: 283.32 | J56: 289.73 | K56: 276.9 | L56: 266.45 | M56: 71.46079
A57: 48 | B57: CASTROLIND | C57: 126.15 | D57: 125.75 | E57: 124.65 | F57: 123.15 | G57: 122.05 | H57: 127.25 | I57: 128.35 | J57: 129.85 | K57: 126.85 | L57: 124.25 | M57: 13.45073
A58: 49 | B58: CHOLAFIN | C58: 283.1 | D58: 280.03 | E58: 275.57 | F58: 268.03 | G58: 263.57 | H58: 287.57 | I58: 292.03 | J58: 299.57 | K58: 284.5 | L58: 272.5 | M58: 8.97385
A59: 50 | B59: CIPLA | C59: 548.8 | D59: 546.02 | E59: 539.58 | F59: 530.37 | G59: 523.93 | H59: 555.23 | I59: 561.67 | J59: 570.88 | K59: 552.45 | L59: 536.8 | M59: 14.72836
A60: 51 | B60: COALINDIA | C60: 229.6 | D60: 231.00 | E60: 226.80 | F60: 224.00 | G60: 219.80 | H60: 233.80 | I60: 238.00 | J60: 240.80 | K60: 235.2 | L60: 228.2 | M60: 91.58261
A61: 52 | B61: COLPAL | C61: 1164.45 | D61: 1162.78 | E61: 1150.57 | F61: 1136.68 | G61: 1124.47 | H61: 1176.67 | I61: 1188.88 | J61: 1202.77 | K61: 1175 | L61: 1148.9 | M61: 6.31732
A62: 53 | B62: CONCOR | C62: 549 | D62: 540.12 | E62: 526.88 | F62: 504.77 | G62: 491.53 | H62: 562.23 | I62: 575.47 | J62: 597.58 | K62: 553.35 | L62: 518 | M62: 25.02559
A63: 54 | B63: COROMANDEL | C63: 401.9 | D63: 403.85 | E63: 397.70 | F63: 393.50 | G63: 387.35 | H63: 408.05 | I63: 414.20 | J63: 418.40 | K63: 410 | L63: 399.65 | M63: 0.41124
A64: 55 | B64: CROMPTON | C64: 227.8 | D64: 228.77 | E64: 223.73 | F64: 219.67 | G64: 214.63 | H64: 232.83 | I64: 237.87 | J64: 241.93 | K64: 233.8 | L64: 224.7 | M64: 6.50359
A65: 56 | B65: CUMMINSIND | C65: 747.05 | D65: 744.77 | E65: 736.58 | F65: 726.12 | G65: 717.93 | H65: 755.23 | I65: 763.42 | J65: 773.88 | K65: 752.95 | L65: 734.3 | M65: 2.98463
A66: 57 | B66: DLF | C66: 183.65 | D66: 183.12 | E66: 180.93 | F66: 178.22 | G66: 176.03 | H66: 185.83 | I66: 188.02 | J66: 190.73 | K66: 185.3 | L66: 180.4 | M66: 53.11932
A67: 58 | B67: DABUR | C67: 406.25 | D67: 403.60 | E67: 399.95 | F67: 393.65 | G67: 390.00 | H67: 409.90 | I67: 413.55 | J67: 419.85 | K67: 407.25 | L67: 397.3 | M67: 16.26488
A68: 59 | B68: DHFL | C68: 71 | D68: 72.85 | E68: 66.85 | F68: 62.70 | G68: 56.70 | H68: 77.00 | I68: 83.00 | J68: 87.15 | K68: 78.85 | L68: 68.7 | M68: 254.63821
A69: 60 | B69: DBL | C69: 428.55 | D69: 426.55 | E69: 415.60 | F69: 402.65 | G69: 391.70 | H69: 439.50 | I69: 450.45 | J69: 463.40 | K69: 437.5 | L69: 413.6 | M69: 3.99132
A70: 61 | B70: DISHTV | C70: 27.9 | D70: 28.48 | E70: 26.82 | F70: 25.73 | G70: 24.07 | H70: 29.57 | I70: 31.23 | J70: 32.32 | K70: 30.15 | L70: 27.4 | M70: 421.38711
A71: 62 | B71: DIVISLAB | C71: 1605.1 | D71: 1596.30 | E71: 1576.75 | F71: 1548.40 | G71: 1528.85 | H71: 1624.65 | I71: 1644.20 | J71: 1672.55 | K71: 1615.85 | L71: 1567.95 | M71: 5.48646
A72: 63 | B72: DRREDDY | C72: 2598.85 | D72: 2598.38 | E72: 2571.77 | F72: 2544.68 | G72: 2518.07 | H72: 2625.47 | I72: 2652.08 | J72: 2679.17 | K72: 2625 | L72: 2571.3 | M72: 4.08296
A73: 64 | B73: EDELWEISS | C73: 157.65 | D73: 159.28 | E73: 153.92 | F73: 150.18 | G73: 144.82 | H73: 163.02 | I73: 168.38 | J73: 172.12 | K73: 164.65 | L73: 155.55 | M73: 21.81862
A74: 65 | B74: EICHERMOT | C74: 19038.6 | D74: 19021.35 | E74: 18747.30 | F74: 18456.00 | G74: 18181.95 | H74: 19312.65 | I74: 19586.70 | J74: 19878.00 | K74: 19295.4 | L74: 18730.05 | M74: 1.29564
A75: 66 | B75: ENDURANCE | C75: 1000.1 | D75: 1003.03 | E75: 990.67 | F75: 981.23 | G75: 968.87 | H75: 1012.47 | I75: 1024.83 | J75: 1034.27 | K75: 1015.4 | L75: 993.6 | M75: 0.67725
A76: 67 | B76: ENGINERSIN | C76: 109.7 | D76: 109.22 | E76: 107.68 | F76: 105.67 | G76: 104.13 | H76: 111.23 | I76: 112.77 | J76: 114.78 | K76: 110.75 | L76: 107.2 | M76: 8.91021
A77: 68 | B77: ESCORTS | C77: 535.55 | D77: 529.97 | E77: 519.08 | F77: 502.62 | G77: 491.73 | H77: 546.43 | I77: 557.32 | J77: 573.78 | K77: 540.85 | L77: 513.5 | M77: 27.50805
A78: 69 | B78: EXIDEIND | C78: 199.8 | D78: 199.12 | E78: 197.78 | F78: 195.77 | G78: 194.43 | H78: 201.13 | I78: 202.47 | J78: 204.48 | K78: 200.45 | L78: 197.1 | M78: 7.92009
A79: 70 | B79: FEDERALBNK | C79: 106.75 | D79: 105.85 | E79: 104.45 | F79: 102.15 | G79: 100.75 | H79: 108.15 | I79: 109.55 | J79: 111.85 | K79: 107.25 | L79: 103.55 | M79: 69.71536
A80: 71 | B80: FCONSUMER | C80: 40.35 | D80: 40.05 | E80: 39.50 | F80: 38.65 | G80: 38.10 | H80: 40.90 | I80: 41.45 | J80: 42.30 | K80: 40.6 | L80: 39.2 | M80: 6.00084
A81: 72 | B81: FRETAIL | C81: 478.45 | D81: 472.50 | E81: 465.00 | F81: 451.55 | G81: 444.05 | H81: 485.95 | I81: 493.45 | J81: 506.90 | K81: 480 | L81: 459.05 | M81: 4.18977
A82: 73 | B82: GAIL | C82: 147.1 | D82: 148.35 | E82: 144.50 | F82: 141.90 | G82: 138.05 | H82: 150.95 | I82: 154.80 | J82: 157.40 | K82: 152.2 | L82: 145.75 | M82: 71.04004
A83: 74 | B83: GMRINFRA | C83: 15.3 | D83: 15.17 | E83: 14.93 | F83: 14.57 | G83: 14.33 | H83: 15.53 | I83: 15.77 | J83: 16.13 | K83: 15.4 | L83: 14.8 | M83: 85.00098
A84: 75 | B84: GICRE | C84: 224.35 | D84: 224.85 | E84: 222.40 | F84: 220.45 | G84: 218.00 | H84: 226.80 | I84: 229.25 | J84: 231.20 | K84: 227.3 | L84: 222.9 | M84: 1.04856
A85: 76 | B85: GSKCONS | C85: 7653.35 | D85: 7661.57 | E85: 7593.18 | F85: 7533.02 | G85: 7464.63 | H85: 7721.73 | I85: 7790.12 | J85: 7850.28 | K85: 7729.95 | L85: 7601.4 | M85: 0.11112
A86: 77 | B86: GLENMARK | C86: 449.2 | D86: 446.17 | E86: 439.58 | F86: 429.97 | G86: 423.38 | H86: 455.78 | I86: 462.37 | J86: 471.98 | K86: 452.75 | L86: 436.55 | M86: 24.23296
A87: 78 | B87: GODREJAGRO | C87: 497.6 | D87: 492.53 | E87: 485.07 | F87: 472.53 | G87: 465.07 | H87: 505.07 | I87: 512.53 | J87: 525.07 | K87: 500 | L87: 480 | M87: 0.71995
A88: 79 | B88: GODREJCP | C88: 646.75 | D88: 646.53 | E88: 639.87 | F88: 632.98 | G88: 626.32 | H88: 653.42 | I88: 660.08 | J88: 666.97 | K88: 653.2 | L88: 639.65 | M88: 13.09462
A89: 80 | B89: GODREJIND | C89: 484.15 | D89: 486.75 | E89: 478.50 | F89: 472.85 | G89: 464.60 | H89: 492.40 | I89: 500.65 | J89: 506.30 | K89: 495 | L89: 481.1 | M89: 1.52031
A90: 81 | B90: GRAPHITE | C90: 304.35 | D90: 307.42 | E90: 300.43 | F90: 296.52 | G90: 289.53 | H90: 311.33 | I90: 318.32 | J90: 322.23 | K90: 314.4 | L90: 303.5 | M90: 6.24346
A91: 82 | B91: GRASIM | C91: 910.95 | D91: 902.32 | E91: 891.13 | F91: 871.32 | G91: 860.13 | H91: 922.13 | I91: 933.32 | J91: 953.13 | K91: 913.5 | L91: 882.5 | M91: 13.03425
A92: 83 | B92: GRUH | C92: 280.5 | D92: 280.67 | E92: 277.48 | F92: 274.47 | G92: 271.28 | H92: 283.68 | I92: 286.87 | J92: 289.88 | K92: 283.85 | L92: 277.65 | M92: 3.6109
A93: 84 | B93: GSPL | C93: 184.95 | D93: 184.03 | E93: 181.07 | F93: 177.18 | G93: 174.22 | H93: 187.92 | I93: 190.88 | J93: 194.77 | K93: 187 | L93: 180.15 | M93: 1.70935
A94: 85 | B94: HEG | C94: 1276.35 | D94: 1280.45 | E94: 1255.90 | F94: 1235.45 | G94: 1210.90 | H94: 1300.90 | I94: 1325.45 | J94: 1345.90 | K94: 1305 | L94: 1260 | M94: 1.8737
A95: 86 | B95: HCLTECH | C95: 1020.75 | D95: 1025.52 | E95: 1003.23 | F95: 985.72 | G95: 963.43 | H95: 1043.03 | I95: 1065.32 | J95: 1082.83 | K95: 1047.8 | L95: 1008 | M95: 16.02967
A96: 87 | B96: HDFCAMC | C96: 1946.1 | D96: 1938.67 | E96: 1907.43 | F96: 1868.77 | G96: 1837.53 | H96: 1977.33 | I96: 2008.57 | J96: 2047.23 | K96: 1969.9 | L96: 1900 | M96: 1.939
A97: 88 | B97: HDFCBANK | C97: 2379.15 | D97: 2387.65 | E97: 2364.50 | F97: 2349.85 | G97: 2326.70 | H97: 2402.30 | I97: 2425.45 | J97: 2440.10 | K97: 2410.8 | L97: 2373 | M97: 41.20672
A98: 89 | B98: HDFCLIFE | C98: 455.75 | D98: 458.15 | E98: 450.70 | F98: 445.65 | G98: 438.20 | H98: 463.20 | I98: 470.65 | J98: 475.70 | K98: 465.6 | L98: 453.1 | M98: 20.5351
A99: 90 | B99: HAVELLS | C99: 738.85 | D99: 738.28 | E99: 724.57 | F99: 710.28 | G99: 696.57 | H99: 752.57 | I99: 766.28 | J99: 780.57 | K99: 752 | L99: 724 | M99: 17.90858
A100: 91 | B100: HEROMOTOCO | C100: 2444.1 | D100: 2425.40 | E100: 2392.30 | F100: 2340.50 | G100: 2307.40 | H100: 2477.20 | I100: 2510.30 | J100: 2562.10 | K100: 2458.5 | L100: 2373.6 | M100: 7.63513
A101: 92 | B101: HEXAWARE | C101: 355.45 | D101: 357.23 | E101: 351.07 | F101: 346.68 | G101: 340.52 | H101: 361.62 | I101: 367.78 | J101: 372.17 | K101: 363.4 | L101: 352.85 | M101: 4.74146
A102: 93 | B102: HINDALCO | C102: 197.9 | D102: 196.67 | E102: 194.33 | F102: 190.77 | G102: 188.43 | H102: 200.23 | I102: 202.57 | J102: 206.13 | K102: 199 | L102: 193.1 | M102: 63.55556
A103: 94 | B103: HINDPETRO | C103: 287.9 | D103: 286.27 | E103: 282.73 | F103: 277.57 | G103: 274.03 | H103: 291.43 | I103: 294.97 | J103: 300.13 | K103: 289.8 | L103: 281.1 | M103: 39.73364
A104: 95 | B104: HINDUNILVR | C104: 1740.25 | D104: 1740.12 | E104: 1724.23 | F104: 1708.22 | G104: 1692.33 | H104: 1756.13 | I104: 1772.02 | J104: 1788.03 | K104: 1756 | L104: 1724.1 | M104: 14.62668
A105: 96 | B105: HINDZINC | C105: 230.45 | D105: 229.15 | E105: 227.30 | F105: 224.15 | G105: 222.30 | H105: 232.30 | I105: 234.15 | J105: 237.30 | K105: 231 | L105: 226 | M105: 4.94281
A106: 97 | B106: HUDCO | C106: 39 | D106: 38.67 | E106: 38.08 | F106: 37.17 | G106: 36.58 | H106: 39.58 | I106: 40.17 | J106: 41.08 | K106: 39.25 | L106: 37.75 | M106: 8.71067
A107: 98 | B107: HDFC | C107: 2232.8 | D107: 2226.30 | E107: 2203.75 | F107: 2174.70 | G107: 2152.15 | H107: 2255.35 | I107: 2277.90 | J107: 2306.95 | K107: 2248.85 | L107: 2197.25 | M107: 28.99589
A108: 99 | B108: ICICIBANK | C108: 428.5 | D108: 427.65 | E108: 425.50 | F108: 422.50 | G108: 420.35 | H108: 430.65 | I108: 432.80 | J108: 435.80 | K108: 429.8 | L108: 424.65 | M108: 116.79067
A109: 100 | B109: ICICIGI | C109: 1075.45 | D109: 1072.55 | E109: 1064.10 | F109: 1052.75 | G109: 1044.30 | H109: 1083.90 | I109: 1092.35 | J109: 1103.70 | K109: 1081 | L109: 1061.2 | M109: 3.44068
A110: 101 | B110: ICICIPRULI | C110: 381.35 | D110: 379.95 | E110: 369.50 | F110: 357.65 | G110: 347.20 | H110: 391.80 | I110: 402.25 | J110: 414.10 | K110: 390.4 | L110: 368.1 | M110: 18.80927
A111: 102 | B111: IDBI | C111: 34.75 | D111: 34.55 | E111: 34.10 | F111: 33.45 | G111: 33.00 | H111: 35.20 | I111: 35.65 | J111: 36.30 | K111: 35 | L111: 33.9 | M111: 45.16154
A112: 103 | B112: IDFCFIRSTB | C112: 42.95 | D112: 42.17 | E112: 41.08 | F112: 39.22 | G112: 38.13 | H112: 44.03 | I112: 45.12 | J112: 46.98 | K112: 43.25 | L112: 40.3 | M112: 96.72354
A113: 104 | B113: ITC | C113: 273.1 | D113: 274.27 | E113: 270.98 | F113: 268.87 | G113: 265.58 | H113: 276.38 | I113: 279.67 | J113: 281.78 | K113: 277.55 | L113: 272.15 | M113: 77.0649
A114: 105 | B114: IBULHSGFIN | C114: 687.1 | D114: 686.80 | E114: 670.70 | F114: 654.30 | G114: 638.20 | H114: 703.20 | I114: 719.30 | J114: 735.70 | K114: 702.9 | L114: 670.4 | M114: 143.48907
A115: 106 | B115: IBVENTURES | C115: 301.15 | D115: 300.78 | E115: 292.37 | F115: 283.58 | G115: 275.17 | H115: 309.57 | I115: 317.98 | J115: 326.77 | K115: 309.2 | L115: 292 | M115: 11.02358
A116: 107 | B116: INDIANB | C116: 242.7 | D116: 241.57 | E116: 238.13 | F116: 233.57 | G116: 230.13 | H116: 246.13 | I116: 249.57 | J116: 254.13 | K116: 245 | L116: 237 | M116: 4.97464
A117: 108 | B117: INDHOTEL | C117: 147.75 | D117: 148.58 | E117: 145.67 | F117: 143.58 | G117: 140.67 | H117: 150.67 | I117: 153.58 | J117: 155.67 | K117: 151.5 | L117: 146.5 | M117: 9.57307
A118: 109 | B118: IOC | C118: 151.4 | D118: 149.30 | E118: 145.90 | F118: 140.40 | G118: 137.00 | H118: 154.80 | I118: 158.20 | J118: 163.70 | K118: 152.7 | L118: 143.8 | M118: 325.32552
A119: 110 | B119: IGL | C119: 303.9 | D119: 302.45 | E119: 298.30 | F119: 292.70 | G119: 288.55 | H119: 308.05 | I119: 312.20 | J119: 317.80 | K119: 306.6 | L119: 296.85 | M119: 30.30253
A120: 111 | B120: INDUSINDBK | C120: 1492.1 | D120: 1486.18 | E120: 1463.02 | F120: 1433.93 | G120: 1410.77 | H120: 1515.27 | I120: 1538.43 | J120: 1567.52 | K120: 1509.35 | L120: 1457.1 | M120: 37.33488
A121: 112 | B121: NAUKRI | C121: 2223.15 | D121: 2247.53 | E121: 2187.17 | F121: 2151.18 | G121: 2090.82 | H121: 2283.52 | I121: 2343.88 | J121: 2379.87 | K121: 2307.9 | L121: 2211.55 | M121: 1.00464
A122: 113 | B122: INFY | C122: 715.5 | D122: 714.80 | E122: 709.75 | F122: 704.00 | G122: 698.95 | H122: 720.55 | I122: 725.60 | J122: 731.35 | K122: 719.85 | L122: 709.05 | M122: 50.22638
A123: 114 | B123: INDIGO | C123: 1566.3 | D123: 1550.65 | E123: 1524.30 | F123: 1482.30 | G123: 1455.95 | H123: 1592.65 | I123: 1619.00 | J123: 1661.00 | K123: 1577 | L123: 1508.65 | M123: 12.63684
A124: 115 | B124: JSWENERGY | C124: 70.95 | D124: 70.80 | E124: 69.75 | F124: 68.55 | G124: 67.50 | H124: 72.00 | I124: 73.05 | J124: 74.25 | K124: 71.85 | L124: 69.6 | M124: 3.85785
A125: 116 | B125: JSWSTEEL | C125: 262.35 | D125: 262.78 | E125: 260.07 | F125: 257.78 | G125: 255.07 | H125: 265.07 | I125: 267.78 | J125: 270.07 | K125: 265.5 | L125: 260.5 | M125: 32.1095
A126: 117 | B126: JINDALSTEL | C126: 135.85 | D126: 134.98 | E126: 133.12 | F126: 130.38 | G126: 128.52 | H126: 137.72 | I126: 139.58 | J126: 142.32 | K126: 136.85 | L126: 132.25 | M126: 117.56179
A127: 118 | B127: JUBLFOOD | C127: 1221.75 | D127: 1221.52 | E127: 1203.93 | F127: 1186.12 | G127: 1168.53 | H127: 1239.33 | I127: 1256.92 | J127: 1274.73 | K127: 1239.1 | L127: 1203.7 | M127: 11.00333
A128: 119 | B128: JUBILANT | C128: 486.35 | D128: 485.42 | E128: 476.83 | F128: 467.32 | G128: 458.73 | H128: 494.93 | I128: 503.52 | J128: 513.03 | K128: 494 | L128: 475.9 | M128: 2.22509
A129: 120 | B129: KOTAKBANK | C129: 1462.85 | D129: 1458.62 | E129: 1444.23 | F129: 1425.62 | G129: 1411.23 | H129: 1477.23 | I129: 1491.62 | J129: 1510.23 | K129: 1473 | L129: 1440 | M129: 22.9742
A130: 121 | B130: L&TFH | C130: 121.75 | D130: 121.40 | E130: 119.70 | F130: 117.65 | G130: 115.95 | H130: 123.45 | I130: 125.15 | J130: 127.20 | K130: 123.1 | L130: 119.35 | M130: 72.73036
A131: 122 | B131: LTTS | C131: 1656.4 | D131: 1655.47 | E131: 1630.93 | F131: 1605.47 | G131: 1580.93 | H131: 1680.93 | I131: 1705.47 | J131: 1730.93 | K131: 1680 | L131: 1630 | M131: 0.58183
A132: 123 | B132: LICHSGFIN | C132: 571.7 | D132: 565.17 | E132: 553.33 | F132: 534.97 | G132: 523.13 | H132: 583.53 | I132: 595.37 | J132: 613.73 | K132: 577 | L132: 546.8 | M132: 24.21372
A133: 124 | B133: LTI | C133: 1600.65 | D133: 1611.75 | E133: 1583.95 | F133: 1567.25 | G133: 1539.45 | H133: 1628.45 | I133: 1656.25 | J133: 1672.95 | K133: 1639.55 | L133: 1595.05 | M133: 1.43205
A134: 125 | B134: LT | C134: 1526.6 | D134: 1516.78 | E134: 1495.17 | F134: 1463.73 | G134: 1442.12 | H134: 1548.22 | I134: 1569.83 | J134: 1601.27 | K134: 1538.4 | L134: 1485.35 | M134: 43.29323
A135: 126 | B135: LUPIN | C135: 751.05 | D135: 745.10 | E135: 736.25 | F135: 721.45 | G135: 712.60 | H135: 759.90 | I135: 768.75 | J135: 783.55 | K135: 753.95 | L135: 730.3 | M135: 9.85434
A136: 127 | B136: MRF | C136: 54571.2 | D136: 54483.73 | E136: 54067.47 | F136: 53563.73 | G136: 53147.47 | H136: 54987.47 | I136: 55403.73 | J136: 55907.47 | K136: 54900 | L136: 53980 | M136: 0.0605
A137: 128 | B137: MGL | C137: 787.15 | D137: 789.07 | E137: 778.13 | F137: 769.12 | G137: 758.18 | H137: 798.08 | I137: 809.02 | J137: 818.03 | K137: 800 | L137: 780.05 | M137: 3.39894
A138: 129 | B138: M&MFIN | C138: 390.9 | D138: 390.20 | E138: 385.95 | F138: 381.00 | G138: 376.75 | H138: 395.15 | I138: 399.40 | J138: 404.35 | K138: 394.45 | L138: 385.25 | M138: 10.16191
A139: 130 | B139: M&M | C139: 632.7 | D139: 633.73 | E139: 628.97 | F139: 625.23 | G139: 620.47 | H139: 637.47 | I139: 642.23 | J139: 645.97 | K139: 638.5 | L139: 630 | M139: 12.60744
A140: 131 | B140: MANAPPURAM | C140: 129.9 | D140: 129.75 | E140: 127.00 | F140: 124.10 | G140: 121.35 | H140: 132.65 | I140: 135.40 | J140: 138.30 | K140: 132.5 | L140: 126.85 | M140: 46.14236
A141: 132 | B141: MRPL | C141: 58.7 | D141: 58.68 | E141: 58.17 | F141: 57.63 | G141: 57.12 | H141: 59.22 | I141: 59.73 | J141: 60.27 | K141: 59.2 | L141: 58.15 | M141: 3.00259
A142: 133 | B142: MARICO | C142: 370.4 | D142: 371.65 | E142: 366.00 | F142: 361.60 | G142: 355.95 | H142: 376.05 | I142: 381.70 | J142: 386.10 | K142: 377.3 | L142: 367.25 | M142: 16.47678
A143: 134 | B143: MARUTI | C143: 5945.45 | D143: 5975.15 | E143: 5880.30 | F143: 5815.15 | G143: 5720.30 | H143: 6040.30 | I143: 6135.15 | J143: 6200.30 | K143: 6070 | L143: 5910 | M143: 13.37999
A144: 135 | B144: MFSL | C144: 417.15 | D144: 412.13 | E144: 405.02 | F144: 392.88 | G144: 385.77 | H144: 424.27 | I144: 431.38 | J144: 443.52 | K144: 419.25 | L144: 400 | M144: 4.38728
A145: 136 | B145: MINDTREE | C145: 772.45 | D145: 765.85 | E145: 741.80 | F145: 711.15 | G145: 687.10 | H145: 796.50 | I145: 820.55 | J145: 851.20 | K145: 789.9 | L145: 735.2 | M145: 53.95733
A146: 137 | B146: MOTHERSUMI | C146: 118.2 | D146: 118.38 | E146: 117.42 | F146: 116.63 | G146: 115.67 | H146: 119.17 | I146: 120.13 | J146: 120.92 | K146: 119.35 | L146: 117.6 | M146: 40.66266
A147: 138 | B147: MPHASIS | C147: 943 | D147: 955.38 | E147: 925.77 | F147: 908.53 | G147: 878.92 | H147: 972.62 | I147: 1002.23 | J147: 1019.47 | K147: 985 | L147: 938.15 | M147: 1.82904
A148: 139 | B148: MUTHOOTFIN | C148: 614.45 | D148: 608.40 | E148: 598.30 | F148: 582.15 | G148: 572.05 | H148: 624.55 | I148: 634.65 | J148: 650.80 | K148: 618.5 | L148: 592.25 | M148: 6.78509
A149: 140 | B149: NATCOPHARM | C149: 534.15 | D149: 532.02 | E149: 524.13 | F149: 514.12 | G149: 506.23 | H149: 542.03 | I149: 549.92 | J149: 559.93 | K149: 539.9 | L149: 522 | M149: 6.70597
A150: 141 | B150: NBCC | C150: 56.45 | D150: 55.62 | E150: 54.33 | F150: 52.22 | G150: 50.93 | H150: 57.73 | I150: 59.02 | J150: 61.13 | K150: 56.9 | L150: 53.5 | M150: 145.14708
A151: 142 | B151: NHPC | C151: 24.15 | D151: 24.15 | E151: 23.85 | F151: 23.55 | G151: 23.25 | H151: 24.45 | I151: 24.75 | J151: 25.05 | K151: 24.45 | L151: 23.85 | M151: 17.27353
A152: 143 | B152: NMDC | C152: 109.15 | D152: 108.47 | E152: 107.13 | F152: 105.12 | G152: 103.78 | H152: 110.48 | I152: 111.82 | J152: 113.83 | K152: 109.8 | L152: 106.45 | M152: 26.17262
A153: 144 | B153: NTPC | C153: 129.55 | D153: 129.72 | E153: 127.43 | F153: 125.32 | G153: 123.03 | H153: 131.83 | I153: 134.12 | J153: 136.23 | K153: 132 | L153: 127.6 | M153: 193.74808
A154: 145 | B154: NATIONALUM | C154: 47.8 | D154: 47.75 | E154: 47.30 | F154: 46.80 | G154: 46.35 | H154: 48.25 | I154: 48.70 | J154: 49.20 | K154: 48.2 | L154: 47.25 | M154: 73.70073
A155: 146 | B155: OBEROIRLTY | C155: 592.4 | D155: 574.45 | E155: 550.20 | F155: 508.00 | G155: 483.75 | H155: 616.65 | I155: 640.90 | J155: 683.10 | K155: 598.7 | L155: 532.25 | M155: 7.5714
A156: 147 | B156: ONGC | C156: 153.4 | D156: 153.17 | E156: 150.88 | F156: 148.37 | G156: 146.08 | H156: 155.68 | I156: 157.97 | J156: 160.48 | K156: 155.45 | L156: 150.65 | M156: 150.33604
A157: 148 | B157: OIL | C157: 177.35 | D157: 174.28 | E157: 169.47 | F157: 161.58 | G157: 156.77 | H157: 182.17 | I157: 186.98 | J157: 194.87 | K157: 179.1 | L157: 166.4 | M157: 58.42543
A158: 149 | B158: OFSS | C158: 3243.5 | D158: 3238.17 | E158: 3205.33 | F158: 3167.17 | G158: 3134.33 | H158: 3276.33 | I158: 3309.17 | J158: 3347.33 | K158: 3271 | L158: 3200 | M158: 0.37635
A159: 150 | B159: PIIND | C159: 1159.25 | D159: 1148.92 | E159: 1128.33 | F159: 1097.42 | G159: 1076.83 | H159: 1179.83 | I159: 1200.42 | J159: 1231.33 | K159: 1169.5 | L159: 1118 | M159: 1.09511
A160: 151 | B160: PNBHOUSING | C160: 777.15 | D160: 776.05 | E160: 762.65 | F160: 748.15 | G160: 734.75 | H160: 790.55 | I160: 803.95 | J160: 818.45 | K160: 789.45 | L160: 761.55 | M160: 1.3657
A161: 152 | B161: PAGEIND | C161: 19882.3 | D161: 19759.40 | E161: 19437.95 | F161: 18993.60 | G161: 18672.15 | H161: 20203.75 | I161: 20525.20 | J161: 20969.55 | K161: 20080.85 | L161: 19315.05 | M161: 0.45338
A162: 153 | B162: PETRONET | C162: 241.95 | D162: 242.73 | E162: 238.97 | F162: 235.98 | G162: 232.22 | H162: 245.72 | I162: 249.48 | J162: 252.47 | K162: 246.5 | L162: 239.75 | M162: 50.43072
A163: 154 | B163: PFIZER | C163: 3283.55 | D163: 3281.85 | E163: 3236.80 | F163: 3190.05 | G163: 3145.00 | H163: 3328.60 | I163: 3373.65 | J163: 3420.40 | K163: 3326.9 | L163: 3235.1 | M163: 0.10287
A164: 155 | B164: PIDILITIND | C164: 1177.75 | D164: 1181.95 | E164: 1163.90 | F164: 1150.05 | G164: 1132.00 | H164: 1195.80 | I164: 1213.85 | J164: 1227.70 | K164: 1200 | L164: 1168.1 | M164: 4.1903
A165: 156 | B165: PEL | C165: 1990.3 | D165: 1969.32 | E165: 1933.63 | F165: 1876.97 | G165: 1841.28 | H165: 2025.98 | I165: 2061.67 | J165: 2118.33 | K165: 2005 | L165: 1912.65 | M165: 14.34175
A166: 157 | B166: PFC | C166: 128.35 | D166: 126.22 | E166: 122.13 | F166: 115.92 | G166: 111.83 | H166: 132.43 | I166: 136.52 | J166: 142.73 | K166: 130.3 | L166: 120 | M166: 253.30094
A167: 158 | B167: POWERGRID | C167: 204.75 | D167: 203.18 | E167: 201.17 | F167: 197.58 | G167: 195.57 | H167: 206.77 | I167: 208.78 | J167: 212.37 | K167: 205.2 | L167: 199.6 | M167: 38.67555
A168: 159 | B168: PRESTIGE | C168: 275.95 | D168: 271.68 | E168: 262.52 | F168: 249.08 | G168: 239.92 | H168: 285.12 | I168: 294.28 | J168: 307.72 | K168: 280.85 | L168: 258.25 | M168: 4.50999
A169: 160 | B169: PGHH | C169: 10962.8 | D169: 10969.85 | E169: 10894.70 | F169: 10826.60 | G169: 10751.45 | H169: 11037.95 | I169: 11113.10 | J169: 11181.20 | K169: 11045 | L169: 10901.75 | M169: 0.03892
A170: 161 | B170: PNB | C170: 74.35 | D170: 73.33 | E170: 72.02 | F170: 69.68 | G170: 68.37 | H170: 75.67 | I170: 76.98 | J170: 79.32 | K170: 74.65 | L170: 71 | M170: 436.27267
A171: 162 | B171: QUESS | C171: 428.4 | D171: 430.47 | E171: 412.93 | F171: 397.47 | G171: 379.93 | H171: 445.93 | I171: 463.47 | J171: 478.93 | K171: 448 | L171: 415 | M171: 5.06081
A172: 163 | B172: RBLBANK | C172: 627.45 | D172: 626.52 | E172: 621.23 | F172: 615.02 | G172: 609.73 | H172: 632.73 | I172: 638.02 | J172: 644.23 | K172: 631.8 | L172: 620.3 | M172: 13.86907
A173: 164 | B173: RECLTD | C173: 137.3 | D173: 141.42 | E173: 130.48 | F173: 123.67 | G173: 112.73 | H173: 148.23 | I173: 159.17 | J173: 165.98 | K173: 152.35 | L173: 134.6 | M173: 334.90923
A174: 165 | B174: RAJESHEXPO | C174: 691.7 | D174: 692.02 | E174: 685.18 | F174: 678.67 | G174: 671.83 | H174: 698.53 | I174: 705.37 | J174: 711.88 | K174: 698.85 | L174: 685.5 | M174: 2.71465
A175: 166 | B175: RELCAPITAL | C175: 59.25 | D175: 59.75 | E175: 57.80 | F175: 56.35 | G175: 54.40 | H175: 61.20 | I175: 63.15 | J175: 64.60 | K175: 61.7 | L175: 58.3 | M175: 152.67676
A176: 167 | B176: RELIANCE | C176: 1280.1 | D176: 1269.70 | E176: 1255.90 | F176: 1231.70 | G176: 1217.90 | H176: 1293.90 | I176: 1307.70 | J176: 1331.90 | K176: 1283.5 | L176: 1245.5 | M176: 80.16757
A177: 168 | B177: RELINFRA | C177: 48.95 | D177: 49.35 | E177: 48.00 | F177: 47.05 | G177: 45.70 | H177: 50.30 | I177: 51.65 | J177: 52.60 | K177: 50.7 | L177: 48.4 | M177: 183.40068
A178: 169 | B178: RPOWER | C178: 4.05 | D178: 4.03 | E178: 3.97 | F178: 3.88 | G178: 3.82 | H178: 4.12 | I178: 4.18 | J178: 4.27 | K178: 4.1 | L178: 3.95 | M178: 116.41609
A179: 170 | B179: SBILIFE | C179: 759 | D179: 756.53 | E179: 750.07 | F179: 741.13 | G179: 734.67 | H179: 765.47 | I179: 771.93 | J179: 780.87 | K179: 763 | L179: 747.6 | M179: 5.94218
A180: 171 | B180: SRF | C180: 2796 | D180: 2815.83 | E180: 2736.22 | F180: 2676.43 | G180: 2596.82 | H180: 2875.62 | I180: 2955.23 | J180: 3015.02 | K180: 2895.45 | L180: 2756.05 | M180: 6.16186
A181: 172 | B181: SHREECEM | C181: 21205.75 | D181: 21073.07 | E181: 20782.73 | F181: 20359.72 | G181: 20069.38 | H181: 21496.08 | I181: 21786.42 | J181: 22209.43 | K181: 21363.4 | L181: 20650.05 | M181: 0.16588
A182: 173 | B182: SRTRANSFIN | C182: 1052.4 | D182: 1047.13 | E182: 1035.27 | F182: 1018.13 | G182: 1006.27 | H182: 1064.27 | I182: 1076.13 | J182: 1093.27 | K182: 1059 | L182: 1030 | M182: 14.48397
A183: 174 | B183: SIEMENS | C183: 1260.1 | D183: 1254.62 | E183: 1238.53 | F183: 1216.97 | G183: 1200.88 | H183: 1276.18 | I183: 1292.27 | J183: 1313.83 | K183: 1270.7 | L183: 1233.05 | M183: 5.44818
A184: 175 | B184: SBIN | C184: 359.5 | D184: 357.33 | E184: 354.67 | F184: 349.83 | G184: 347.17 | H184: 362.17 | I184: 364.83 | J184: 369.67 | K184: 360 | L184: 352.5 | M184: 165.79914
A185: 176 | B185: SAIL | C185: 46.9 | D185: 46.73 | E185: 46.37 | F185: 45.83 | G185: 45.47 | H185: 47.27 | I185: 47.63 | J185: 48.17 | K185: 47.1 | L185: 46.2 | M185: 182.40378
A186: 177 | B186: STRTECH | C186: 161.7 | D186: 161.28 | E186: 157.57 | F186: 153.43 | G186: 149.72 | H186: 165.42 | I186: 169.13 | J186: 173.27 | K186: 165 | L186: 157.15 | M186: 10.35579
A187: 178 | B187: SPARC | C187: 118.65 | D187: 117.75 | E187: 113.50 | F187: 108.35 | G187: 104.10 | H187: 122.90 | I187: 127.15 | J187: 132.30 | K187: 122 | L187: 112.6 | M187: 16.68875
A188: 179 | B188: SUNPHARMA | C188: 386.4 | D188: 382.80 | E188: 370.60 | F188: 354.80 | G188: 342.60 | H188: 398.60 | I188: 410.80 | J188: 426.60 | K188: 395 | L188: 367 | M188: 154.28006
A189: 180 | B189: SUNTV | C189: 469.1 | D189: 469.33 | E189: 463.77 | F189: 458.43 | G189: 452.87 | H189: 474.67 | I189: 480.23 | J189: 485.57 | K189: 474.9 | L189: 464 | M189: 13.90594
A190: 181 | B190: SYNGENE | C190: 315.55 | D190: 313.90 | E190: 308.10 | F190: 300.65 | G190: 294.85 | H190: 321.35 | I190: 327.15 | J190: 334.60 | K190: 319.7 | L190: 306.45 | M190: 3.04748
A191: 182 | B191: TVSMOTOR | C191: 427.05 | D191: 421.03 | E191: 413.02 | F191: 398.98 | G191: 390.97 | H191: 435.07 | I191: 443.08 | J191: 457.12 | K191: 429.05 | L191: 407 | M191: 13.28288
A192: 183 | B192: TATACHEM | C192: 593.8 | D192: 593.38 | E192: 588.57 | F192: 583.33 | G192: 578.52 | H192: 598.62 | I192: 603.43 | J192: 608.67 | K192: 598.2 | L192: 588.15 | M192: 5.02415
A193: 184 | B193: TCS | C193: 2133.35 | D193: 2137.43 | E193: 2100.47 | F193: 2067.58 | G193: 2030.62 | H193: 2170.32 | I193: 2207.28 | J193: 2240.17 | K193: 2174.4 | L193: 2104.55 | M193: 39.77224
A194: 185 | B194: TATAGLOBAL | C194: 263.55 | D194: 263.75 | E194: 261.25 | F194: 258.95 | G194: 256.45 | H194: 266.05 | I194: 268.55 | J194: 270.85 | K194: 266.25 | L194: 261.45 | M194: 17.23027
A195: 186 | B195: TATAMTRDVR | C195: 74.8 | D195: 74.88 | E195: 73.92 | F195: 73.03 | G195: 72.07 | H195: 75.77 | I195: 76.73 | J195: 77.62 | K195: 75.85 | L195: 74 | M195: 20.76193
A196: 187 | B196: TATAMOTORS | C196: 155.8 | D196: 155.23 | E196: 153.32 | F196: 150.83 | G196: 148.92 | H196: 157.72 | I196: 159.63 | J196: 162.12 | K196: 157.15 | L196: 152.75 | M196: 161.12345
A197: 188 | B197: TATAPOWER | C197: 68.5 | D197: 68.47 | E197: 67.88 | F197: 67.27 | G197: 66.68 | H197: 69.08 | I197: 69.67 | J197: 70.28 | K197: 69.05 | L197: 67.85 | M197: 48.35452
A198: 189 | B198: TATASTEEL | C198: 468.45 | D198: 467.67 | E198: 463.33 | F198: 458.22 | G198: 453.88 | H198: 472.78 | I198: 477.12 | J198: 482.23 | K198: 472 | L198: 462.55 | M198: 68.5858
A199: 190 | B199: TECHM | C199: 675.9 | D199: 676.17 | E199: 668.33 | F199: 660.77 | G199: 652.93 | H199: 683.73 | I199: 691.57 | J199: 699.13 | K199: 684 | L199: 668.6 | M199: 21.80104
A200: 191 | B200: NIACL | C200: 144.3 | D200: 144.43 | E200: 142.87 | F200: 141.43 | G200: 139.87 | H200: 145.87 | I200: 147.43 | J200: 148.87 | K200: 146 | L200: 143 | M200: 0.52819
A201: 192 | B201: RAMCOCEM | C201: 778.9 | D201: 774.95 | E201: 758.30 | F201: 737.70 | G201: 721.05 | H201: 795.55 | I201: 812.20 | J201: 832.80 | K201: 791.6 | L201: 754.35 | M201: 3.09799
A202: 193 | B202: TITAN | C202: 1098.95 | D202: 1115.65 | E202: 1056.30 | F202: 1013.65 | G202: 954.30 | H202: 1158.30 | I202: 1217.65 | J202: 1260.30 | K202: 1175 | L202: 1073 | M202: 221.43587
A203: 194 | B203: TORNTPHARM | C203: 1546.25 | D203: 1541.23 | E203: 1522.02 | F203: 1497.78 | G203: 1478.57 | H203: 1565.47 | I203: 1584.68 | J203: 1608.92 | K203: 1560.45 | L203: 1517 | M203: 1.28721
A204: 195 | B204: TORNTPOWER | C204: 299.15 | D204: 297.08 | E204: 293.47 | F204: 287.78 | G204: 284.17 | H204: 302.77 | I204: 306.38 | J204: 312.07 | K204: 300.7 | L204: 291.4 | M204: 13.58745
A205: 196 | B205: UPL | C205: 640.05 | D205: 644.10 | E205: 628.20 | F205: 616.35 | G205: 600.45 | H205: 655.95 | I205: 671.85 | J205: 683.70 | K205: 660 | L205: 632.25 | M205: 74.34335
... 30 more rows

Sheet MidCap Intra
L5: Back To Main Page
A6: FOR INTRA DAY TRADING | K6: =Main!B10 -> 2019-07-10
A9: Sr.no | B9: Scrip | C9: CLOSE RATE | D9: Pivot Point | E9: Supports | H9: Resistances
C10: Point | E10: S1 | F10: S2 | G10: S3 | H10: R1 | I10: R2 | J10: R3 | K10: HIGH | L10: LOW | M10: Total Trade Quanity in Lakhs
A11: 1 | B11: 3MINDIA | C11: 21848.55 | D11: 21949.47 | E11: 21699.08 | F11: 21549.62 | G11: 21299.23 | H11: 22098.93 | I11: 22349.32 | J11: 22498.78 | K11: 22199.85 | L11: 21800 | M11: 0.02673
A12: 2 | B12: ABB | C12: 1531.6 | D12: 1521.37 | E12: 1484.73 | F12: 1437.87 | G12: 1401.23 | H12: 1568.23 | I12: 1604.87 | J12: 1651.73 | K12: 1558 | L12: 1474.5 | M12: 2.02265
A13: 3 | B13: ACC | C13: 1554.3 | D13: 1531.58 | E13: 1503.37 | F13: 1452.43 | G13: 1424.22 | H13: 1582.52 | I13: 1610.73 | J13: 1661.67 | K13: 1559.8 | L13: 1480.65 | M13: 9.03575
A14: 4 | B14: AIAENG | C14: 1775.3 | D14: 1783.42 | E14: 1756.88 | F14: 1738.47 | G14: 1711.93 | H14: 1801.83 | I14: 1828.37 | J14: 1846.78 | K14: 1809.95 | L14: 1765 | M14: 0.11388
A15: 5 | B15: APLAPOLLO | C15: 1597.95 | D15: 1599.63 | E15: 1568.32 | F15: 1538.68 | G15: 1507.37 | H15: 1629.27 | I15: 1660.58 | J15: 1690.22 | K15: 1630.95 | L15: 1570 | M15: 0.52676
A16: 6 | B16: AUBANK | C16: 663.8 | D16: 670.93 | E16: 652.87 | F16: 641.93 | G16: 623.87 | H16: 681.87 | I16: 699.93 | J16: 710.87 | K16: 689 | L16: 660 | M16: 1.82166
A17: 7 | B17: AAVAS | C17: 1496.65 | D17: 1507.22 | E17: 1474.43 | F17: 1452.22 | G17: 1419.43 | H17: 1529.43 | I17: 1562.22 | J17: 1584.43 | K17: 1540 | L17: 1485 | M17: 0.74064
A18: 8 | B18: ADANIGREEN | C18: 49.6 | D18: 48.22 | E18: 44.63 | F18: 39.67 | G18: 36.08 | H18: 53.18 | I18: 56.77 | J18: 61.73 | K18: 51.8 | L18: 43.25 | M18: 58.77043
A19: 9 | B19: ADANIPORTS | C19: 405 | D19: 401.22 | E19: 396.43 | F19: 387.87 | G19: 383.08 | H19: 409.78 | I19: 414.57 | J19: 423.13 | K19: 406 | L19: 392.65 | M19: 19.5228
A20: 10 | B20: ADANIPOWER | C20: 67.15 | D20: 65.57 | E20: 62.38 | F20: 57.62 | G20: 54.43 | H20: 70.33 | I20: 73.52 | J20: 78.28 | K20: 68.75 | L20: 60.8 | M20: 516.54011
A21: 11 | B21: ADANITRANS | C21: 221.8 | D21: 222.98 | E21: 219.52 | F21: 217.23 | G21: 213.77 | H21: 225.27 | I21: 228.73 | J21: 231.02 | K21: 226.45 | L21: 220.7 | M21: 0.97016
A22: 12 | B22: ABCAPITAL | C22: 89.9 | D22: 89.67 | E22: 88.33 | F22: 86.77 | G22: 85.43 | H22: 91.23 | I22: 92.57 | J22: 94.13 | K22: 91 | L22: 88.1 | M22: 9.86561
A23: 13 | B23: ABFRL | C23: 203.3 | D23: 205.20 | E23: 200.30 | F23: 197.30 | G23: 192.40 | H23: 208.20 | I23: 213.10 | J23: 216.10 | K23: 210.1 | L23: 202.2 | M23: 3.04285
A24: 14 | B24: ADVENZYMES | C24: 163.55 | D24: 163.68 | E24: 161.52 | F24: 159.48 | G24: 157.32 | H24: 165.72 | I24: 167.88 | J24: 169.92 | K24: 165.85 | L24: 161.65 | M24: 0.45079
A25: 15 | B25: AEGISCHEM | C25: 214.05 | D25: 213.10 | E25: 210.95 | F25: 207.85 | G25: 205.70 | H25: 216.20 | I25: 218.35 | J25: 221.45 | K25: 215.25 | L25: 210 | M25: 1.04901
A26: 16 | B26: AJANTPHARM | C26: 916.2 | D26: 919.00 | E26: 908.30 | F26: 900.40 | G26: 889.70 | H26: 926.90 | I26: 937.60 | J26: 945.50 | K26: 929.7 | L26: 911.1 | M26: 2.04262
A27: 17 | B27: AKZOINDIA | C27: 1748 | D27: 1752.85 | E27: 1737.30 | F27: 1726.60 | G27: 1711.05 | H27: 1763.55 | I27: 1779.10 | J27: 1789.80 | K27: 1768.4 | L27: 1742.15 | M27: 0.01485
A28: 18 | B28: APLLTD | C28: 532.15 | D28: 534.40 | E28: 522.80 | F28: 513.45 | G28: 501.85 | H28: 543.75 | I28: 555.35 | J28: 564.70 | K28: 546 | L28: 525.05 | M28: 0.46712
A29: 19 | B29: ALKEM | C29: 1772.95 | D29: 1764.65 | E29: 1751.30 | F29: 1729.65 | G29: 1716.30 | H29: 1786.30 | I29: 1799.65 | J29: 1821.30 | K29: 1778 | L29: 1743 | M29: 0.08391
A30: 20 | B30: ALBK | C30: 48.35 | D30: 47.88 | E30: 46.27 | F30: 44.18 | G30: 42.57 | H30: 49.97 | I30: 51.58 | J30: 53.67 | K30: 49.5 | L30: 45.8 | M30: 35.33905
A31: 21 | B31: ALLCARGO | C31: 97.2 | D31: 98.05 | E31: 95.00 | F31: 92.80 | G31: 89.75 | H31: 100.25 | I31: 103.30 | J31: 105.50 | K31: 101.1 | L31: 95.85 | M31: 1.16774
A32: 22 | B32: AMARAJABAT | C32: 644.95 | D32: 640.30 | E32: 631.95 | F32: 618.95 | G32: 610.60 | H32: 653.30 | I32: 661.65 | J32: 674.65 | K32: 648.65 | L32: 627.3 | M32: 3.72955
A33: 23 | B33: AMBUJACEM | C33: 211.1 | D33: 208.92 | E33: 205.93 | F33: 200.77 | G33: 197.78 | H33: 214.08 | I33: 217.07 | J33: 222.23 | K33: 211.9 | L33: 203.75 | M33: 22.89398
A34: 24 | B34: ANDHRABANK | C34: 23 | D34: 22.92 | E34: 22.68 | F34: 22.37 | G34: 22.13 | H34: 23.23 | I34: 23.47 | J34: 23.78 | K34: 23.15 | L34: 22.6 | M34: 4.65913
A35: 25 | B35: APOLLOHOSP | C35: 1328.65 | D35: 1328.10 | E35: 1303.30 | F35: 1277.95 | G35: 1253.15 | H35: 1353.45 | I35: 1378.25 | J35: 1403.60 | K35: 1352.9 | L35: 1302.75 | M35: 8.06802
A36: 26 | B36: APOLLOTYRE | C36: 186.35 | D36: 187.00 | E36: 184.50 | F36: 182.65 | G36: 180.15 | H36: 188.85 | I36: 191.35 | J36: 193.20 | K36: 189.5 | L36: 185.15 | M36: 17.63656
A37: 27 | B37: ASHOKLEY | C37: 83.8 | D37: 84.28 | E37: 82.37 | F37: 80.93 | G37: 79.02 | H37: 85.72 | I37: 87.63 | J37: 89.07 | K37: 86.2 | L37: 82.85 | M37: 178.91519
A38: 28 | B38: ASHOKA | C38: 134.8 | D38: 134.30 | E38: 129.65 | F38: 124.50 | G38: 119.85 | H38: 139.45 | I38: 144.10 | J38: 149.25 | K38: 138.95 | L38: 129.15 | M38: 1.48336
A39: 29 | B39: ASIANPAINT | C39: 1321 | D39: 1319.05 | E39: 1293.20 | F39: 1265.40 | G39: 1239.55 | H39: 1346.85 | I39: 1372.70 | J39: 1400.50 | K39: 1344.9 | L39: 1291.25 | M39: 20.37332
A40: 30 | B40: ASTERDM | C40: 115.4 | D40: 116.58 | E40: 113.92 | F40: 112.43 | G40: 109.77 | H40: 118.07 | I40: 120.73 | J40: 122.22 | K40: 119.25 | L40: 115.1 | M40: 1.80308
A41: 31 | B41: ASTRAZEN | C41: 1999.85 | D41: 1984.72 | E41: 1930.43 | F41: 1861.02 | G41: 1806.73 | H41: 2054.13 | I41: 2108.42 | J41: 2177.83 | K41: 2039 | L41: 1915.3 | M41: 0.0717
A42: 32 | B42: ASTRAL | C42: 1292.35 | D42: 1295.97 | E42: 1273.93 | F42: 1255.52 | G42: 1233.48 | H42: 1314.38 | I42: 1336.42 | J42: 1354.83 | K42: 1318 | L42: 1277.55 | M42: 0.49363
A43: 33 | B43: ATUL | C43: 3901.1 | D43: 3904.98 | E43: 3849.87 | F43: 3798.63 | G43: 3743.52 | H43: 3956.22 | I43: 4011.33 | J43: 4062.57 | K43: 3960.1 | L43: 3853.75 | M43: 0.40119
A44: 34 | B44: AUROPHARMA | C44: 603.8 | D44: 597.70 | E44: 587.90 | F44: 572.00 | G44: 562.20 | H44: 613.60 | I44: 623.40 | J44: 639.30 | K44: 607.5 | L44: 581.8 | M44: 29.38178
A45: 35 | B45: AVANTIFEED | C45: 338.3 | D45: 337.17 | E45: 332.23 | F45: 326.17 | G45: 321.23 | H45: 343.23 | I45: 348.17 | J45: 354.23 | K45: 342.1 | L45: 331.1 | M45: 1.37745
A46: 36 | B46: DMART | C46: 1374.95 | D46: 1367.93 | E46: 1342.02 | F46: 1309.08 | G46: 1283.17 | H46: 1400.87 | I46: 1426.78 | J46: 1459.72 | K46: 1393.85 | L46: 1335 | M46: 4.1131
A47: 37 | B47: AXISBANK | C47: 786.2 | D47: 783.80 | E47: 778.80 | F47: 771.40 | G47: 766.40 | H47: 791.20 | I47: 796.20 | J47: 803.60 | K47: 788.8 | L47: 776.4 | M47: 64.4892
A48: 38 | B48: BASF | C48: 1239.65 | D48: 1239.50 | E48: 1215.15 | F48: 1190.65 | G48: 1166.30 | H48: 1264.00 | I48: 1288.35 | J48: 1312.85 | K48: 1263.85 | L48: 1215 | M48: 0.08382
A49: 39 | B49: BEML | C49: 877.35 | D49: 876.78 | E49: 864.57 | F49: 851.78 | G49: 839.57 | H49: 889.57 | I49: 901.78 | J49: 914.57 | K49: 889 | L49: 864 | M49: 8.89203
A50: 40 | B50: BSE | C50: 592.05 | D50: 593.35 | E50: 589.70 | F50: 587.35 | G50: 583.70 | H50: 595.70 | I50: 599.35 | J50: 601.70 | K50: 597 | L50: 591 | M50: 0.39492
A51: 41 | B51: BAJAJ-AUTO | C51: 2786.4 | D51: 2779.30 | E51: 2762.10 | F51: 2737.80 | G51: 2720.60 | H51: 2803.60 | I51: 2820.80 | J51: 2845.10 | K51: 2796.5 | L51: 2755 | M51: 2.53454
A52: 42 | B52: BAJAJCON | C52: 319.85 | D52: 320.63 | E52: 317.27 | F52: 314.68 | G52: 311.32 | H52: 323.22 | I52: 326.58 | J52: 329.17 | K52: 324 | L52: 318.05 | M52: 0.23145
A53: 43 | B53: BAJAJELEC | C53: 481.65 | D53: 488.05 | E53: 468.60 | F53: 455.55 | G53: 436.10 | H53: 501.10 | I53: 520.55 | J53: 533.60 | K53: 507.5 | L53: 475 | M53: 1.40475
A54: 44 | B54: BAJFINANCE | C54: 3603.1 | D54: 3521.50 | E54: 3418.00 | F54: 3232.90 | G54: 3129.40 | H54: 3706.60 | I54: 3810.10 | J54: 3995.20 | K54: 3625 | L54: 3336.4 | M54: 51.96125
A55: 45 | B55: BAJAJFINSV | C55: 7855.4 | D55: 7736.23 | E55: 7538.12 | F55: 7220.83 | G55: 7022.72 | H55: 8053.52 | I55: 8251.63 | J55: 8568.92 | K55: 7934.35 | L55: 7418.95 | M55: 12.67816
A56: 46 | B56: BAJAJHLDNG | C56: 3618.85 | D56: 3582.28 | E56: 3520.62 | F56: 3422.38 | G56: 3360.72 | H56: 3680.52 | I56: 3742.18 | J56: 3840.42 | K56: 3643.95 | L56: 3484.05 | M56: 0.43802
A57: 47 | B57: BALKRISIND | C57: 726.6 | D57: 723.53 | E57: 714.12 | F57: 701.63 | G57: 692.22 | H57: 736.02 | I57: 745.43 | J57: 757.92 | K57: 732.95 | L57: 711.05 | M57: 3.98285
A58: 48 | B58: BALMLAWRIE | C58: 180.05 | D58: 178.35 | E58: 176.10 | F58: 172.15 | G58: 169.90 | H58: 182.30 | I58: 184.55 | J58: 188.50 | K58: 180.6 | L58: 174.4 | M58: 0.27581
A59: 49 | B59: BALRAMCHIN | C59: 149.5 | D59: 151.35 | E59: 146.80 | F59: 144.10 | G59: 139.55 | H59: 154.05 | I59: 158.60 | J59: 161.30 | K59: 155.9 | L59: 148.65 | M59: 9.12051
A60: 50 | B60: BANDHANBNK | C60: 524.2 | D60: 528.12 | E60: 518.08 | F60: 511.97 | G60: 501.93 | H60: 534.23 | I60: 544.27 | J60: 550.38 | K60: 538.15 | L60: 522 | M60: 3.43479
A61: 51 | B61: BANKBARODA | C61: 125.9 | D61: 125.02 | E61: 123.63 | F61: 121.37 | G61: 119.98 | H61: 127.28 | I61: 128.67 | J61: 130.93 | K61: 126.4 | L61: 122.75 | M61: 148.69226
A62: 52 | B62: BANKINDIA | C62: 85.6 | D62: 85.18 | E62: 83.87 | F62: 82.13 | G62: 80.82 | H62: 86.92 | I62: 88.23 | J62: 89.97 | K62: 86.5 | L62: 83.45 | M62: 110.74406
A63: 53 | B63: MAHABANK | C63: 16 | D63: 15.88 | E63: 15.72 | F63: 15.43 | G63: 15.27 | H63: 16.17 | I63: 16.33 | J63: 16.62 | K63: 16.05 | L63: 15.6 | M63: 3.50418
A64: 54 | B64: BATAINDIA | C64: 1389.9 | D64: 1387.18 | E64: 1360.47 | F64: 1331.03 | G64: 1304.32 | H64: 1416.62 | I64: 1443.33 | J64: 1472.77 | K64: 1413.9 | L64: 1357.75 | M64: 8.56652
A65: 55 | B65: BERGEPAINT | C65: 306.75 | D65: 304.92 | E65: 301.93 | F65: 297.12 | G65: 294.13 | H65: 309.73 | I65: 312.72 | J65: 317.53 | K65: 307.9 | L65: 300.1 | M65: 5.90563
A66: 56 | B66: BDL | C66: 304 | D66: 301.82 | E66: 294.18 | F66: 284.37 | G66: 276.73 | H66: 311.63 | I66: 319.27 | J66: 329.08 | K66: 309.45 | L66: 292 | M66: 0.59053
A67: 57 | B67: BEL | C67: 107.35 | D67: 105.15 | E67: 102.20 | F67: 97.05 | G67: 94.10 | H67: 110.30 | I67: 113.25 | J67: 118.40 | K67: 108.1 | L67: 100 | M67: 239.59721
A68: 58 | B68: BHARATFORG | C68: 454.1 | D68: 448.50 | E68: 441.10 | F68: 428.10 | G68: 420.70 | H68: 461.50 | I68: 468.90 | J68: 481.90 | K68: 455.9 | L68: 435.5 | M68: 17.74858
A69: 59 | B69: BHEL | C69: 67.2 | D69: 66.93 | E69: 66.12 | F69: 65.03 | G69: 64.22 | H69: 68.02 | I69: 68.83 | J69: 69.92 | K69: 67.75 | L69: 65.85 | M69: 81.78805
A70: 60 | B70: BPCL | C70: 360.1 | D70: 362.18 | E70: 356.52 | F70: 352.93 | G70: 347.27 | H70: 365.77 | I70: 371.43 | J70: 375.02 | K70: 367.85 | L70: 358.6 | M70: 37.77964
A71: 61 | B71: BHARTIARTL | C71: 362.3 | D71: 359.88 | E71: 356.52 | F71: 350.73 | G71: 347.37 | H71: 365.67 | I71: 369.03 | J71: 374.82 | K71: 363.25 | L71: 354.1 | M71: 38.59398
A72: 62 | B72: INFRATEL | C72: 260.7 | D72: 259.42 | E72: 257.33 | F72: 253.97 | G72: 251.88 | H72: 262.78 | I72: 264.87 | J72: 268.23 | K72: 261.5 | L72: 256.05 | M72: 11.81573
A73: 63 | B73: BIOCON | C73: 244.95 | D73: 243.57 | E73: 239.98 | F73: 235.02 | G73: 231.43 | H73: 248.53 | I73: 252.12 | J73: 257.08 | K73: 247.15 | L73: 238.6 | M73: 20.57019
A74: 64 | B74: BIRLACORPN | C74: 617.2 | D74: 605.30 | E74: 590.60 | F74: 564.00 | G74: 549.30 | H74: 631.90 | I74: 646.60 | J74: 673.20 | K74: 620 | L74: 578.7 | M74: 1.08438
A75: 65 | B75: BLISSGVS | C75: 159.5 | D75: 158.45 | E75: 156.85 | F75: 154.20 | G75: 152.60 | H75: 161.10 | I75: 162.70 | J75: 165.35 | K75: 160.05 | L75: 155.8 | M75: 13.52117
A76: 66 | B76: BLUEDART | C76: 2602.45 | D76: 2631.15 | E76: 2572.30 | F76: 2542.15 | G76: 2483.30 | H76: 2661.30 | I76: 2720.15 | J76: 2750.30 | K76: 2690 | L76: 2601 | M76: 0.01504
A77: 67 | B77: BLUESTARCO | C77: 733.8 | D77: 741.68 | E77: 723.37 | F77: 712.93 | G77: 694.62 | H77: 752.12 | I77: 770.43 | J77: 780.87 | K77: 760 | L77: 731.25 | M77: 0.23387
A78: 68 | B78: BBTC | C78: 898.35 | D78: 902.03 | E78: 890.12 | F78: 881.88 | G78: 869.97 | H78: 910.27 | I78: 922.18 | J78: 930.42 | K78: 913.95 | L78: 893.8 | M78: 0.40015
A79: 69 | B79: BOMDYEING | C79: 102 | D79: 102.00 | E79: 99.50 | F79: 97.00 | G79: 94.50 | H79: 104.50 | I79: 107.00 | J79: 109.50 | K79: 104.5 | L79: 99.5 | M79: 8.73862
A80: 70 | B80: BOSCHLTD | C80: 15982.55 | D80: 15972.07 | E80: 15872.53 | F80: 15762.52 | G80: 15662.98 | H80: 16082.08 | I80: 16181.62 | J80: 16291.63 | K80: 16071.6 | L80: 15862.05 | M80: 0.0724
A81: 71 | B81: BRIGADE | C81: 274.55 | D81: 270.08 | E81: 263.02 | F81: 251.48 | G81: 244.42 | H81: 281.62 | I81: 288.68 | J81: 300.22 | K81: 277.15 | L81: 258.55 | M81: 0.62132
A82: 72 | B82: BRITANNIA | C82: 2762.65 | D82: 2757.07 | E82: 2735.73 | F82: 2708.82 | G82: 2687.48 | H82: 2783.98 | I82: 2805.32 | J82: 2832.23 | K82: 2778.4 | L82: 2730.15 | M82: 3.14268
A83: 73 | B83: CARERATING | C83: 892.55 | D83: 898.48 | E83: 883.07 | F83: 873.58 | G83: 858.17 | H83: 907.97 | I83: 923.38 | J83: 932.87 | K83: 913.9 | L83: 889 | M83: 0.12001
A84: 74 | B84: CCL | C84: 238.45 | D84: 240.15 | E84: 234.30 | F84: 230.15 | G84: 224.30 | H84: 244.30 | I84: 250.15 | J84: 254.30 | K84: 246 | L84: 236 | M84: 1.11868
A85: 75 | B85: CESC | C85: 785.4 | D85: 780.03 | E85: 771.12 | F85: 756.83 | G85: 747.92 | H85: 794.32 | I85: 803.23 | J85: 817.52 | K85: 788.95 | L85: 765.75 | M85: 5.93525
A86: 77 | B86: CGPOWER | C86: 23.3 | D86: 23.17 | E86: 22.73 | F86: 22.17 | G86: 21.73 | H86: 23.73 | I86: 24.17 | J86: 24.73 | K86: 23.6 | L86: 22.6 | M86: 26.49198
A87: 78 | B87: CRISIL | C87: 1432.7 | D87: 1434.30 | E87: 1418.60 | F87: 1404.50 | G87: 1388.80 | H87: 1448.40 | I87: 1464.10 | J87: 1478.20 | K87: 1450 | L87: 1420.2 | M87: 0.03878
A88: 79 | B88: CADILAHC | C88: 230.75 | D88: 228.27 | E88: 225.03 | F88: 219.32 | G88: 216.08 | H88: 233.98 | I88: 237.22 | J88: 242.93 | K88: 231.5 | L88: 222.55 | M88: 12.15726
A89: 80 | B89: CANFINHOME | C89: 366 | D89: 364.02 | E89: 359.78 | F89: 353.57 | G89: 349.33 | H89: 370.23 | I89: 374.47 | J89: 380.68 | K89: 368.25 | L89: 357.8 | M89: 4.11505
A90: 81 | B90: CANBK | C90: 275.25 | D90: 272.87 | E90: 268.83 | F90: 262.42 | G90: 258.38 | H90: 279.28 | I90: 283.32 | J90: 289.73 | K90: 276.9 | L90: 266.45 | M90: 71.46079
A91: 82 | B91: CAPLIPOINT | C91: 416.6 | D91: 419.87 | E91: 411.73 | F91: 406.87 | G91: 398.73 | H91: 424.73 | I91: 432.87 | J91: 437.73 | K91: 428 | L91: 415 | M91: 0.11376
A92: 83 | B92: CARBORUNIV | C92: 347 | D92: 347.40 | E92: 344.30 | F92: 341.60 | G92: 338.50 | H92: 350.10 | I92: 353.20 | J92: 355.90 | K92: 350.5 | L92: 344.7 | M92: 0.13485
A93: 84 | B93: CASTROLIND | C93: 126.15 | D93: 125.75 | E93: 124.65 | F93: 123.15 | G93: 122.05 | H93: 127.25 | I93: 128.35 | J93: 129.85 | K93: 126.85 | L93: 124.25 | M93: 13.45073
A94: 85 | B94: CEATLTD | C94: 903.7 | D94: 903.63 | E94: 895.32 | F94: 886.93 | G94: 878.62 | H94: 912.02 | I94: 920.33 | J94: 928.72 | K94: 911.95 | L94: 895.25 | M94: 1.55321
A95: 86 | B95: CENTRALBK | C95: 19.85 | D95: 19.83 | E95: 19.62 | F95: 19.38 | G95: 19.17 | H95: 20.07 | I95: 20.28 | J95: 20.52 | K95: 20.05 | L95: 19.6 | M95: 6.02608
A96: 87 | B96: CDSL | C96: 209.65 | D96: 211.22 | E96: 207.43 | F96: 205.22 | G96: 201.43 | H96: 213.43 | I96: 217.22 | J96: 219.43 | K96: 215 | L96: 209 | M96: 1.18672
A97: 88 | B97: CENTURYPLY | C97: 159.85 | D97: 160.65 | E97: 157.90 | F97: 155.95 | G97: 153.20 | H97: 162.60 | I97: 165.35 | J97: 167.30 | K97: 163.4 | L97: 158.7 | M97: 0.87909
A98: 89 | B98: CERA | C98: 2901.25 | D98: 2896.60 | E98: 2871.20 | F98: 2841.15 | G98: 2815.75 | H98: 2926.65 | I98: 2952.05 | J98: 2982.10 | K98: 2922 | L98: 2866.55 | M98: 0.07291
A99: 90 | B99: CHAMBLFERT | C99: 165.8 | D99: 167.27 | E99: 163.53 | F99: 161.27 | G99: 157.53 | H99: 169.53 | I99: 173.27 | J99: 175.53 | K99: 171 | L99: 165 | M99: 1.81833
A100: 91 | B100: CHENNPETRO | C100: 189 | D100: 189.67 | E100: 186.08 | F100: 183.17 | G100: 179.58 | H100: 192.58 | I100: 196.17 | J100: 199.08 | K100: 193.25 | L100: 186.75 | M100: 2.62941
A101: 92 | B101: CHOLAHLDNG | C101: 481.05 | D101: 478.13 | E101: 468.92 | F101: 456.78 | G101: 447.57 | H101: 490.27 | I101: 499.48 | J101: 511.62 | K101: 487.35 | L101: 466 | M101: 0.30028
A102: 93 | B102: CHOLAFIN | C102: 283.1 | D102: 280.03 | E102: 275.57 | F102: 268.03 | G102: 263.57 | H102: 287.57 | I102: 292.03 | J102: 299.57 | K102: 284.5 | L102: 272.5 | M102: 8.97385
A103: 94 | B103: CIPLA | C103: 548.8 | D103: 546.02 | E103: 539.58 | F103: 530.37 | G103: 523.93 | H103: 555.23 | I103: 561.67 | J103: 570.88 | K103: 552.45 | L103: 536.8 | M103: 14.72836
A104: 95 | B104: CUB | C104: 199.6 | D104: 199.88 | E104: 193.77 | F104: 187.93 | G104: 181.82 | H104: 205.72 | I104: 211.83 | J104: 217.67 | K104: 206 | L104: 194.05 | M104: 16.51118
A105: 96 | B105: COALINDIA | C105: 229.6 | D105: 231.00 | E105: 226.80 | F105: 224.00 | G105: 219.80 | H105: 233.80 | I105: 238.00 | J105: 240.80 | K105: 235.2 | L105: 228.2 | M105: 91.58261
A106: 97 | B106: COCHINSHIP | C106: 370.15 | D106: 372.32 | E106: 367.33 | F106: 364.52 | G106: 359.53 | H106: 375.13 | I106: 380.12 | J106: 382.93 | K106: 377.3 | L106: 369.5 | M106: 0.3961
A107: 98 | B107: COFFEEDAY | C107: 221.6 | D107: 221.67 | E107: 218.43 | F107: 215.27 | G107: 212.03 | H107: 224.83 | I107: 228.07 | J107: 231.23 | K107: 224.9 | L107: 218.5 | M107: 1.27696
A108: 99 | B108: COLPAL | C108: 1164.45 | D108: 1162.78 | E108: 1150.57 | F108: 1136.68 | G108: 1124.47 | H108: 1176.67 | I108: 1188.88 | J108: 1202.77 | K108: 1175 | L108: 1148.9 | M108: 6.31732
A109: 100 | B109: CONCOR | C109: 549 | D109: 540.12 | E109: 526.88 | F109: 504.77 | G109: 491.53 | H109: 562.23 | I109: 575.47 | J109: 597.58 | K109: 553.35 | L109: 518 | M109: 25.02559
A110: 101 | B110: COROMANDEL | C110: 401.9 | D110: 403.85 | E110: 397.70 | F110: 393.50 | G110: 387.35 | H110: 408.05 | I110: 414.20 | J110: 418.40 | K110: 410 | L110: 399.65 | M110: 0.41124
A111: 102 | B111: CORPBANK | C111: 27.95 | D111: 28.15 | E111: 27.70 | F111: 27.45 | G111: 27.00 | H111: 28.40 | I111: 28.85 | J111: 29.10 | K111: 28.6 | L111: 27.9 | M111: 2.08601
A112: 103 | B112: COX&KINGS | C112: 25.8 | D112: 25.80 | E112: 25.80 | F112: 25.80 | G112: 25.80 | H112: 25.80 | I112: 25.80 | J112: 25.80 | K112: 25.8 | L112: 25.8 | M112: 0.36776
A113: 104 | B113: CREDITACC | C113: 496.9 | D113: 492.67 | E113: 485.33 | F113: 473.77 | G113: 466.43 | H113: 504.23 | I113: 511.57 | J113: 523.13 | K113: 500 | L113: 481.1 | M113: 0.61252
A114: 105 | B114: CROMPTON | C114: 227.8 | D114: 228.77 | E114: 223.73 | F114: 219.67 | G114: 214.63 | H114: 232.83 | I114: 237.87 | J114: 241.93 | K114: 233.8 | L114: 224.7 | M114: 6.50359
A115: 106 | B115: CUMMINSIND | C115: 747.05 | D115: 744.77 | E115: 736.58 | F115: 726.12 | G115: 717.93 | H115: 755.23 | I115: 763.42 | J115: 773.88 | K115: 752.95 | L115: 734.3 | M115: 2.98463
A116: 107 | B116: CYIENT | C116: 537.3 | D116: 533.22 | E116: 525.43 | F116: 513.57 | G116: 505.78 | H116: 545.08 | I116: 552.87 | J116: 564.73 | K116: 541 | L116: 521.35 | M116: 0.89245
A117: 108 | B117: DBCORP | C117: 187.95 | D117: 188.82 | E117: 184.13 | F117: 180.32 | G117: 175.63 | H117: 192.63 | I117: 197.32 | J117: 201.13 | K117: 193.5 | L117: 185 | M117: 0.16883
A118: 109 | B118: DCBBANK | C118: 228.9 | D118: 225.98 | E118: 222.27 | F118: 215.63 | G118: 211.92 | H118: 232.62 | I118: 236.33 | J118: 242.97 | K118: 229.7 | L118: 219.35 | M118: 6.79626
A119: 110 | B119: DCMSHRIRAM | C119: 565.7 | D119: 565.67 | E119: 541.33 | F119: 516.97 | G119: 492.63 | H119: 590.03 | I119: 614.37 | J119: 638.73 | K119: 590 | L119: 541.3 | M119: 2.2346
A120: 111 | B120: DLF | C120: 183.65 | D120: 183.12 | E120: 180.93 | F120: 178.22 | G120: 176.03 | H120: 185.83 | I120: 188.02 | J120: 190.73 | K120: 185.3 | L120: 180.4 | M120: 53.11932
A121: 112 | B121: DABUR | C121: 406.25 | D121: 403.60 | E121: 399.95 | F121: 393.65 | G121: 390.00 | H121: 409.90 | I121: 413.55 | J121: 419.85 | K121: 407.25 | L121: 397.3 | M121: 16.26488
A122: 113 | B122: DEEPAKFERT | C122: 106.35 | D122: 106.30 | E122: 104.60 | F122: 102.85 | G122: 101.15 | H122: 108.05 | I122: 109.75 | J122: 111.50 | K122: 108 | L122: 104.55 | M122: 1.61918
A123: 114 | B123: DEEPAKNTR | C123: 299.2 | D123: 299.87 | E123: 295.83 | F123: 292.47 | G123: 288.43 | H123: 303.23 | I123: 307.27 | J123: 310.63 | K123: 303.9 | L123: 296.5 | M123: 1.33029
A124: 115 | B124: DELTACORP | C124: 165.95 | D124: 165.97 | E124: 163.98 | F124: 162.02 | G124: 160.03 | H124: 167.93 | I124: 169.92 | J124: 171.88 | K124: 167.95 | L124: 164 | M124: 9.98745
A125: 116 | B125: DHFL | C125: 71 | D125: 72.85 | E125: 66.85 | F125: 62.70 | G125: 56.70 | H125: 77.00 | I125: 83.00 | J125: 87.15 | K125: 78.85 | L125: 68.7 | M125: 254.63821
A126: 117 | B126: DBL | C126: 428.55 | D126: 426.55 | E126: 415.60 | F126: 402.65 | G126: 391.70 | H126: 439.50 | I126: 450.45 | J126: 463.40 | K126: 437.5 | L126: 413.6 | M126: 3.99132
A127: 118 | B127: DISHTV | C127: 27.9 | D127: 28.48 | E127: 26.82 | F127: 25.73 | G127: 24.07 | H127: 29.57 | I127: 31.23 | J127: 32.32 | K127: 30.15 | L127: 27.4 | M127: 421.38711
A128: 119 | B128: DCAL | C128: 214.9 | D128: 214.93 | E128: 211.02 | F128: 207.13 | G128: 203.22 | H128: 218.82 | I128: 222.73 | J128: 226.62 | K128: 218.85 | L128: 211.05 | M128: 0.40391
A129: 120 | B129: DIVISLAB | C129: 1605.1 | D129: 1596.30 | E129: 1576.75 | F129: 1548.40 | G129: 1528.85 | H129: 1624.65 | I129: 1644.20 | J129: 1672.55 | K129: 1615.85 | L129: 1567.95 | M129: 5.48646
A130: 121 | B130: DIXON | C130: 2228.15 | D130: 2216.40 | E130: 2192.80 | F130: 2157.45 | G130: 2133.85 | H130: 2251.75 | I130: 2275.35 | J130: 2310.70 | K130: 2240 | L130: 2181.05 | M130: 0.01273
A131: 122 | B131: LALPATHLAB | C131: 1104.15 | D131: 1110.37 | E131: 1081.73 | F131: 1059.32 | G131: 1030.68 | H131: 1132.78 | I131: 1161.42 | J131: 1183.83 | K131: 1139 | L131: 1087.95 | M131: 0.58422
A132: 123 | B132: DRREDDY | C132: 2598.85 | D132: 2598.38 | E132: 2571.77 | F132: 2544.68 | G132: 2518.07 | H132: 2625.47 | I132: 2652.08 | J132: 2679.17 | K132: 2625 | L132: 2571.3 | M132: 4.08296
A133: 124 | B133: EIDPARRY | C133: 169.15 | D133: 169.63 | E133: 166.17 | F133: 163.18 | G133: 159.72 | H133: 172.62 | I133: 176.08 | J133: 179.07 | K133: 173.1 | L133: 166.65 | M133: 0.61002
A134: 125 | B134: EIHOTEL | C134: 176.8 | D134: 177.12 | E134: 175.73 | F134: 174.67 | G134: 173.28 | H134: 178.18 | I134: 179.57 | J134: 180.63 | K134: 178.5 | L134: 176.05 | M134: 0.27976
A135: 126 | B135: EDELWEISS | C135: 157.65 | D135: 159.28 | E135: 153.92 | F135: 150.18 | G135: 144.82 | H135: 163.02 | I135: 168.38 | J135: 172.12 | K135: 164.65 | L135: 155.55 | M135: 21.81862
A136: 127 | B136: EICHERMOT | C136: 19038.6 | D136: 19021.35 | E136: 18747.30 | F136: 18456.00 | G136: 18181.95 | H136: 19312.65 | I136: 19586.70 | J136: 19878.00 | K136: 19295.4 | L136: 18730.05 | M136: 1.29564
A137: 128 | B137: ELGIEQUIP | C137: 258.35 | D137: 259.22 | E137: 255.73 | F137: 253.12 | G137: 249.63 | H137: 261.83 | I137: 265.32 | J137: 267.93 | K137: 262.7 | L137: 256.6 | M137: 0.02249
A138: 129 | B138: EMAMILTD | C138: 301 | D138: 298.82 | E138: 293.53 | F138: 286.07 | G138: 280.78 | H138: 306.28 | I138: 311.57 | J138: 319.03 | K138: 304.1 | L138: 291.35 | M138: 8.80179
A139: 130 | B139: ENDURANCE | C139: 1000.1 | D139: 1003.03 | E139: 990.67 | F139: 981.23 | G139: 968.87 | H139: 1012.47 | I139: 1024.83 | J139: 1034.27 | K139: 1015.4 | L139: 993.6 | M139: 0.67725
A140: 131 | B140: ENGINERSIN | C140: 109.7 | D140: 109.22 | E140: 107.68 | F140: 105.67 | G140: 104.13 | H140: 111.23 | I140: 112.77 | J140: 114.78 | K140: 110.75 | L140: 107.2 | M140: 8.91021
A141: 132 | B141: EQUITAS | C141: 117.15 | D141: 116.97 | E141: 115.08 | F141: 113.02 | G141: 111.13 | H141: 119.03 | I141: 120.92 | J141: 122.98 | K141: 118.85 | L141: 114.9 | M141: 20.48271
A142: 133 | B142: ERIS | C142: 494.95 | D142: 491.65 | E142: 484.30 | F142: 473.65 | G142: 466.30 | H142: 502.30 | I142: 509.65 | J142: 520.30 | K142: 499 | L142: 481 | M142: 0.27658
A143: 134 | B143: ESCORTS | C143: 535.55 | D143: 529.97 | E143: 519.08 | F143: 502.62 | G143: 491.73 | H143: 546.43 | I143: 557.32 | J143: 573.78 | K143: 540.85 | L143: 513.5 | M143: 27.50805
A144: 135 | B144: ESSELPACK | C144: 130.45 | D144: 130.45 | E144: 130.15 | F144: 129.85 | G144: 129.55 | H144: 130.75 | I144: 131.05 | J144: 131.35 | K144: 130.75 | L144: 130.15 | M144: 0.85641
A145: 136 | B145: EXIDEIND | C145: 199.8 | D145: 199.12 | E145: 197.78 | F145: 195.77 | G145: 194.43 | H145: 201.13 | I145: 202.47 | J145: 204.48 | K145: 200.45 | L145: 197.1 | M145: 7.92009
A146: 137 | B146: FDC | C146: 173.2 | D146: 174.28 | E146: 171.62 | F146: 170.03 | G146: 167.37 | H146: 175.87 | I146: 178.53 | J146: 180.12 | K146: 176.95 | L146: 172.7 | M146: 0.22585
A147: 138 | B147: FEDERALBNK | C147: 106.75 | D147: 105.85 | E147: 104.45 | F147: 102.15 | G147: 100.75 | H147: 108.15 | I147: 109.55 | J147: 111.85 | K147: 107.25 | L147: 103.55 | M147: 69.71536
A148: 139 | B148: FINEORG | C148: 1397.2 | D148: 1394.07 | E148: 1363.08 | F148: 1328.97 | G148: 1297.98 | H148: 1428.18 | I148: 1459.17 | J148: 1493.28 | K148: 1425.05 | L148: 1359.95 | M148: 0.0586
A149: 140 | B149: FINCABLES | C149: 400 | D149: 396.95 | E149: 387.05 | F149: 374.10 | G149: 364.20 | H149: 409.90 | I149: 419.80 | J149: 432.75 | K149: 406.85 | L149: 384 | M149: 5.33809
A150: 141 | B150: FINPIPE | C150: 505.9 | D150: 505.95 | E150: 501.10 | F150: 496.30 | G150: 491.45 | H150: 510.75 | I150: 515.60 | J150: 520.40 | K150: 510.8 | L150: 501.15 | M150: 0.61064
A151: 142 | B151: FSL | C151: 51.2 | D151: 50.43 | E151: 49.42 | F151: 47.63 | G151: 46.62 | H151: 52.22 | I151: 53.23 | J151: 55.02 | K151: 51.45 | L151: 48.65 | M151: 11.55081
A152: 143 | B152: FORTIS | C152: 129.8 | D152: 130.05 | E152: 129.00 | F152: 128.20 | G152: 127.15 | H152: 130.85 | I152: 131.90 | J152: 132.70 | K152: 131.1 | L152: 129.25 | M152: 2.96994
A153: 144 | B153: FCONSUMER | C153: 40.35 | D153: 40.05 | E153: 39.50 | F153: 38.65 | G153: 38.10 | H153: 40.90 | I153: 41.45 | J153: 42.30 | K153: 40.6 | L153: 39.2 | M153: 6.00084
A154: 145 | B154: FLFL | C154: 471.8 | D154: 473.55 | E154: 468.30 | F154: 464.80 | G154: 459.55 | H154: 477.05 | I154: 482.30 | J154: 485.80 | K154: 478.8 | L154: 470.05 | M154: 0.11249
A155: 146 | B155: FRETAIL | C155: 478.45 | D155: 472.50 | E155: 465.00 | F155: 451.55 | G155: 444.05 | H155: 485.95 | I155: 493.45 | J155: 506.90 | K155: 480 | L155: 459.05 | M155: 4.18977
A156: 147 | B156: GAIL | C156: 147.1 | D156: 148.35 | E156: 144.50 | F156: 141.90 | G156: 138.05 | H156: 150.95 | I156: 154.80 | J156: 157.40 | K156: 152.2 | L156: 145.75 | M156: 71.04004
A157: 148 | B157: GEPIL | C157: 870.05 | D157: 859.70 | E157: 845.40 | F157: 820.75 | G157: 806.45 | H157: 884.35 | I157: 898.65 | J157: 923.30 | K157: 874 | L157: 835.05 | M157: 0.21255
A158: 149 | B158: GET&D | C158: 232.2 | D158: 230.07 | E158: 224.13 | F158: 216.07 | G158: 210.13 | H158: 238.13 | I158: 244.07 | J158: 252.13 | K158: 236 | L158: 222 | M158: 0.39178
A159: 150 | B159: GHCL | C159: 225.35 | D159: 225.10 | E159: 222.60 | F159: 219.85 | G159: 217.35 | H159: 227.85 | I159: 230.35 | J159: 233.10 | K159: 227.6 | L159: 222.35 | M159: 0.55582
A160: 151 | B160: GMRINFRA | C160: 15.3 | D160: 15.17 | E160: 14.93 | F160: 14.57 | G160: 14.33 | H160: 15.53 | I160: 15.77 | J160: 16.13 | K160: 15.4 | L160: 14.8 | M160: 85.00098
A161: 152 | B161: GALAXYSURF | C161: 1243.6 | D161: 1246.35 | E161: 1232.70 | F161: 1221.80 | G161: 1208.15 | H161: 1257.25 | I161: 1270.90 | J161: 1281.80 | K161: 1260 | L161: 1235.45 | M161: 0.08938
A162: 153 | B162: GDL | C162: 124.05 | D162: 124.78 | E162: 122.67 | F162: 121.28 | G162: 119.17 | H162: 126.17 | I162: 128.28 | J162: 129.67 | K162: 126.9 | L162: 123.4 | M162: 0.30236
A163: 154 | B163: GAYAPROJ | C163: 150.85 | D163: 149.65 | E163: 148.30 | F163: 145.75 | G163: 144.40 | H163: 152.20 | I163: 153.55 | J163: 156.10 | K163: 151 | L163: 147.1 | M163: 1.1768
A164: 155 | B164: GICRE | C164: 224.35 | D164: 224.85 | E164: 222.40 | F164: 220.45 | G164: 218.00 | H164: 226.80 | I164: 229.25 | J164: 231.20 | K164: 227.3 | L164: 222.9 | M164: 1.04856
A165: 156 | B165: GILLETTE | C165: 7117.1 | D165: 7155.37 | E165: 7011.73 | F165: 6906.37 | G165: 6762.73 | H165: 7260.73 | I165: 7404.37 | J165: 7509.73 | K165: 7299 | L165: 7050 | M165: 0.05006
A166: 157 | B166: GSKCONS | C166: 7653.35 | D166: 7661.57 | E166: 7593.18 | F166: 7533.02 | G166: 7464.63 | H166: 7721.73 | I166: 7790.12 | J166: 7850.28 | K166: 7729.95 | L166: 7601.4 | M166: 0.11112
A167: 158 | B167: GLAXO | C167: 1167.05 | D167: 1169.27 | E167: 1158.58 | F167: 1150.12 | G167: 1139.43 | H167: 1177.73 | I167: 1188.42 | J167: 1196.88 | K167: 1179.95 | L167: 1160.8 | M167: 0.35821
A168: 159 | B168: GLENMARK | C168: 449.2 | D168: 446.17 | E168: 439.58 | F168: 429.97 | G168: 423.38 | H168: 455.78 | I168: 462.37 | J168: 471.98 | K168: 452.75 | L168: 436.55 | M168: 24.23296
A169: 160 | B169: GODFRYPHLP | C169: 791.25 | D169: 794.20 | E169: 783.60 | F169: 775.95 | G169: 765.35 | H169: 801.85 | I169: 812.45 | J169: 820.10 | K169: 804.8 | L169: 786.55 | M169: 0.48968
A170: 161 | B170: GODREJAGRO | C170: 497.6 | D170: 492.53 | E170: 485.07 | F170: 472.53 | G170: 465.07 | H170: 505.07 | I170: 512.53 | J170: 525.07 | K170: 500 | L170: 480 | M170: 0.71995
A171: 162 | B171: GODREJCP | C171: 646.75 | D171: 646.53 | E171: 639.87 | F171: 632.98 | G171: 626.32 | H171: 653.42 | I171: 660.08 | J171: 666.97 | K171: 653.2 | L171: 639.65 | M171: 13.09462
A172: 163 | B172: GODREJIND | C172: 484.15 | D172: 486.75 | E172: 478.50 | F172: 472.85 | G172: 464.60 | H172: 492.40 | I172: 500.65 | J172: 506.30 | K172: 495 | L172: 481.1 | M172: 1.52031
A173: 164 | B173: GODREJPROP | C173: 899.3 | D173: 895.18 | E173: 872.87 | F173: 846.43 | G173: 824.12 | H173: 921.62 | I173: 943.93 | J173: 970.37 | K173: 917.5 | L173: 868.75 | M173: 7.35921
A174: 165 | B174: GRANULES | C174: 96.65 | D174: 95.80 | E174: 94.35 | F174: 92.05 | G174: 90.60 | H174: 98.10 | I174: 99.55 | J174: 101.85 | K174: 97.25 | L174: 93.5 | M174: 3.2558
A175: 166 | B175: GRAPHITE | C175: 304.35 | D175: 307.42 | E175: 300.43 | F175: 296.52 | G175: 289.53 | H175: 311.33 | I175: 318.32 | J175: 322.23 | K175: 314.4 | L175: 303.5 | M175: 6.24346
A176: 167 | B176: GRASIM | C176: 910.95 | D176: 902.32 | E176: 891.13 | F176: 871.32 | G176: 860.13 | H176: 922.13 | I176: 933.32 | J176: 953.13 | K176: 913.5 | L176: 882.5 | M176: 13.03425
A177: 168 | B177: GESHIP | C177: 248.45 | D177: 250.18 | E177: 245.37 | F177: 242.28 | G177: 237.47 | H177: 253.27 | I177: 258.08 | J177: 261.17 | K177: 255 | L177: 247.1 | M177: 0.35032
A178: 169 | B178: GREAVESCOT | C178: 137.8 | D178: 137.50 | E178: 136.10 | F178: 134.40 | G178: 133.00 | H178: 139.20 | I178: 140.60 | J178: 142.30 | K178: 138.9 | L178: 135.8 | M178: 1.32053
A179: 170 | B179: GRINDWELL | C179: 598.7 | D179: 591.68 | E179: 578.47 | F179: 558.23 | G179: 545.02 | H179: 611.92 | I179: 625.13 | J179: 645.37 | K179: 604.9 | L179: 571.45 | M179: 0.15394
A180: 171 | B180: GRUH | C180: 280.5 | D180: 280.67 | E180: 277.48 | F180: 274.47 | G180: 271.28 | H180: 283.68 | I180: 286.87 | J180: 289.88 | K180: 283.85 | L180: 277.65 | M180: 3.6109
A181: 172 | B181: GUJALKALI | C181: 498.45 | D181: 498.72 | E181: 493.68 | F181: 488.92 | G181: 483.88 | H181: 503.48 | I181: 508.52 | J181: 513.28 | K181: 503.75 | L181: 493.95 | M181: 0.09517
A182: 173 | B182: GUJFLUORO | C182: 908.75 | D182: 904.88 | E182: 897.37 | F182: 885.98 | G182: 878.47 | H182: 916.27 | I182: 923.78 | J182: 935.17 | K182: 912.4 | L182: 893.5 | M182: 0.26487
A183: 174 | B183: GUJGASLTD | C183: 164.3 | D183: 163.18 | E183: 160.87 | F183: 157.43 | G183: 155.12 | H183: 166.62 | I183: 168.93 | J183: 172.37 | K183: 165.5 | L183: 159.75 | M183: 1.62147
A184: 175 | B184: GMDCLTD | C184: 71.05 | D184: 71.07 | E184: 70.48 | F184: 69.92 | G184: 69.33 | H184: 71.63 | I184: 72.22 | J184: 72.78 | K184: 71.65 | L184: 70.5 | M184: 1.5263
A185: 176 | B185: GNFC | C185: 235 | D185: 234.83 | E185: 231.07 | F185: 227.13 | G185: 223.37 | H185: 238.77 | I185: 242.53 | J185: 246.47 | K185: 238.6 | L185: 230.9 | M185: 2.63777
A186: 177 | B186: GPPL | C186: 82.95 | D186: 82.33 | E186: 81.42 | F186: 79.88 | G186: 78.97 | H186: 83.87 | I186: 84.78 | J186: 86.32 | K186: 83.25 | L186: 80.8 | M186: 3.44138
A187: 178 | B187: GSFC | C187: 87.5 | D187: 87.62 | E187: 86.48 | F187: 85.47 | G187: 84.33 | H187: 88.63 | I187: 89.77 | J187: 90.78 | K187: 88.75 | L187: 86.6 | M187: 7.20542
A188: 179 | B188: GSPL | C188: 184.95 | D188: 184.03 | E188: 181.07 | F188: 177.18 | G188: 174.22 | H188: 187.92 | I188: 190.88 | J188: 194.77 | K188: 187 | L188: 180.15 | M188: 1.70935
A189: 180 | B189: GULFOILLUB | C189: 858.95 | D189: 847.22 | E189: 832.43 | F189: 805.92 | G189: 791.13 | H189: 873.73 | I189: 888.52 | J189: 915.03 | K189: 862 | L189: 820.7 | M189: 0.89535
A190: 181 | B190: HEG | C190: 1276.35 | D190: 1280.45 | E190: 1255.90 | F190: 1235.45 | G190: 1210.90 | H190: 1300.90 | I190: 1325.45 | J190: 1345.90 | K190: 1305 | L190: 1260 | M190: 1.8737
A191: 182 | B191: HCLTECH | C191: 1020.75 | D191: 1025.52 | E191: 1003.23 | F191: 985.72 | G191: 963.43 | H191: 1043.03 | I191: 1065.32 | J191: 1082.83 | K191: 1047.8 | L191: 1008 | M191: 16.02967
A192: 183 | B192: HDFCAMC | C192: 1946.1 | D192: 1938.67 | E192: 1907.43 | F192: 1868.77 | G192: 1837.53 | H192: 1977.33 | I192: 2008.57 | J192: 2047.23 | K192: 1969.9 | L192: 1900 | M192: 1.939
A193: 184 | B193: HDFCBANK | C193: 2379.15 | D193: 2387.65 | E193: 2364.50 | F193: 2349.85 | G193: 2326.70 | H193: 2402.30 | I193: 2425.45 | J193: 2440.10 | K193: 2410.8 | L193: 2373 | M193: 41.20672
A194: 185 | B194: HDFCLIFE | C194: 455.75 | D194: 458.15 | E194: 450.70 | F194: 445.65 | G194: 438.20 | H194: 463.20 | I194: 470.65 | J194: 475.70 | K194: 465.6 | L194: 453.1 | M194: 20.5351
A195: 186 | B195: HATHWAY | C195: 21.65 | D195: 21.88 | E195: 21.27 | F195: 20.88 | G195: 20.27 | H195: 22.27 | I195: 22.88 | J195: 23.27 | K195: 22.5 | L195: 21.5 | M195: 0.39998
A196: 187 | B196: HATSUN | C196: 707.95 | D196: 708.03 | E196: 696.37 | F196: 684.78 | G196: 673.12 | H196: 719.62 | I196: 731.28 | J196: 742.87 | K196: 719.7 | L196: 696.45 | M196: 0.04553
A197: 188 | B197: HAVELLS | C197: 738.85 | D197: 738.28 | E197: 724.57 | F197: 710.28 | G197: 696.57 | H197: 752.57 | I197: 766.28 | J197: 780.57 | K197: 752 | L197: 724 | M197: 17.90858
A198: 189 | B198: HEIDELBERG | C198: 191.55 | D198: 191.18 | E198: 187.37 | F198: 183.18 | G198: 179.37 | H198: 195.37 | I198: 199.18 | J198: 203.37 | K198: 195 | L198: 187 | M198: 2.19789
A199: 190 | B199: HERITGFOOD | C199: 401.55 | D199: 400.68 | E199: 396.52 | F199: 391.48 | G199: 387.32 | H199: 405.72 | I199: 409.88 | J199: 414.92 | K199: 404.85 | L199: 395.65 | M199: 0.15672
A200: 191 | B200: HEROMOTOCO | C200: 2444.1 | D200: 2425.40 | E200: 2392.30 | F200: 2340.50 | G200: 2307.40 | H200: 2477.20 | I200: 2510.30 | J200: 2562.10 | K200: 2458.5 | L200: 2373.6 | M200: 7.63513
A201: 192 | B201: HEXAWARE | C201: 355.45 | D201: 357.23 | E201: 351.07 | F201: 346.68 | G201: 340.52 | H201: 361.62 | I201: 367.78 | J201: 372.17 | K201: 363.4 | L201: 352.85 | M201: 4.74146
A202: 193 | B202: HFCL | C202: 19.85 | D202: 19.70 | E202: 19.50 | F202: 19.15 | G202: 18.95 | H202: 20.05 | I202: 20.25 | J202: 20.60 | K202: 19.9 | L202: 19.35 | M202: 12.03592
A203: 194 | B203: HSCL | C203: 99.7 | D203: 99.70 | E203: 98.50 | F203: 97.30 | G203: 96.10 | H203: 100.90 | I203: 102.10 | J203: 103.30 | K203: 100.9 | L203: 98.5 | M203: 1.9119
A204: 195 | B204: HIMATSEIDE | C204: 152.65 | D204: 153.75 | E204: 150.00 | F204: 147.35 | G204: 143.60 | H204: 156.40 | I204: 160.15 | J204: 162.80 | K204: 157.5 | L204: 151.1 | M204: 0.37043
A205: 196 | B205: HINDALCO | C205: 197.9 | D205: 196.67 | E205: 194.33 | F205: 190.77 | G205: 188.43 | H205: 200.23 | I205: 202.57 | J205: 206.13 | K205: 199 | L205: 193.1 | M205: 63.55556
A206: 197 | B206: HAL | C206: 677.75 | D206: 678.18 | E206: 671.57 | F206: 665.38 | G206: 658.77 | H206: 684.37 | I206: 690.98 | J206: 697.17 | K206: 684.8 | L206: 672 | M206: 0.05633
... 320 more rows

Sheet Bulk Deals
E6: Back To Main Page
A7: Subject : | B7: BULK DEAL | D7: =Main!B10 -> 2019-07-10
A9: Date | B9: Scrip code | C9: Scrip Name | D9: Client Name | E9: Buy / Sell | F9: Quantity Traded | G9: Trade Price / Wt.Avg.trade price | H9: Exchange
A10: 2019-07-09 | B10: 537766 | C10: BCP | D10: DEEPEN BHARAT SHAH | E10: SELL | F10: 350,500 | G10: 44.83 | H10: BSE
A11: 2019-07-09 | B11: 537766 | C11: BCP | D11: SIDDHARTH CHIMANLAL SHAH | E11: BUY | F11: 350,500 | G11: 44.83 | H11: BSE
A12: 2019-07-09 | B12: 537766 | C12: BCP | D12: INDIAN BOBBIN MANUFACTURING COMPANY PRIVATE LIMITED | E12: BUY | F12: 365,483 | G12: 44.89 | H12: BSE
A13: 2019-07-09 | B13: 537766 | C13: BCP | D13: INDIAN BOBBIN MANUFACTURING COMPANY PRIVATE LIMITED | E13: SELL | F13: 365,483 | G13: 44.92 | H13: BSE
A14: 2019-07-09 | B14: 542724 | C14: EARUM | D14: SMIRAL ASHWINKUMAR PATEL | E14: SELL | F14: 45,000 | G14: 34.22 | H14: BSE
A15: 2019-07-09 | B15: 540519 | C15: MEERA | D15: ARYAMAN BROKING LIMITED | E15: BUY | F15: 32,000 | G15: 222.63 | H15: BSE
A16: 2019-07-09 | B16: 540519 | C16: MEERA | D16: ARYAMAN BROKING LIMITED | E16: SELL | F16: 6,000 | G16: 223.9 | H16: BSE
A17: 2019-07-09 | B17: 540519 | C17: MEERA | D17: BABULAL VADILAL SHAH | E17: SELL | F17: 22,500 | G17: 221.58 | H17: BSE
A18: 2019-07-09 | B18: 538446 | C18: MONEYBOXX | D18: MONEYBOXX CAPITAL PRIVATE LIMITED | E18: BUY | F18: 90,000 | G18: 22.96 | H18: BSE
A19: 2019-07-09 | B19: 530733 | C19: NOVAPUB | D19: JAYABEN SHIVABHAI PATEL | E19: BUY | F19: 19,500 | G19: 15.90 | H19: BSE
A20: 2019-07-09 | B20: 541112 | C20: SHREESHAY | D20: ARYAMAN BROKING LIMITED | E20: SELL | F20: 112,000 | G20: 16.8 | H20: BSE
A21: 2019-07-09 | B21: 541112 | C21: SHREESHAY | D21: EMRALD COMMERCIAL LIMITED | E21: BUY | F21: 296,000 | G21: 16.80 | H21: BSE
A22: 2019-07-09 | B22: 541112 | C22: SHREESHAY | D22: MUKESH COMMOTRADE LTD | E22: SELL | F22: 184,000 | G22: 16.80 | H22: BSE
A23: 2019-07-09 | B23: 540736 | C23: SIDDH | D23: REENA VINAY BHAGWAT | E23: SELL | F23: 68,000 | G23: 29.5 | H23: BSE
A24: 2019-07-09 | B24: 540736 | C24: SIDDH | D24: PINNAMANENI AVINASH | E24: BUY | F24: 68,000 | G24: 29.50 | H24: BSE
A25: 2019-07-09 | B25: 539026 | C25: SSPNFIN | D25: CHANDU KESHRIMAL JAIN | E25: SELL | F25: 18,000 | G25: 40 | H25: BSE
A26: 2019-07-09 | B26: 541545 | C26: TALWGYM | D26: KAMADGIRI EXPORTS PRIVATE LIMITED | E26: BUY | F26: 215,000 | G26: 103.85 | H26: BSE
A27: 2019-07-09 | B27: 541545 | C27: TALWGYM | D27: KAMADGIRI EXPORTS PRIVATE LIMITED | E27: SELL | F27: 2,400 | G27: 103.85 | H27: BSE
A28: 2019-07-09 | B28: 541545 | C28: TALWGYM | D28: SADHANA DOSHI | E28: BUY | F28: 368,802 | G28: 104.32 | H28: BSE
A29: 2019-07-09 | B29: 541545 | C29: TALWGYM | D29: SADHANA DOSHI | E29: SELL | F29: 368,802 | G29: 103.85 | H29: BSE
A30: 2019-07-09 | B30: 519152 | C30: VADILENT | D30: SPS FINQUEST PRIVATE LIMITED | E30: BUY | F30: 6,001 | G30: 950 | H30: BSE
A31: 2019-07-09 | B31: 519152 | C31: VADILENT | D31: KALPANA PRAMOD SHAH | E31: SELL | F31: 6,001 | G31: 950 | H31: BSE
A32: 2019-07-09 | B32: BLISSGVS | C32: Bliss GVS Pharma Ltd | D32: ANIRUDH DAMANI | E32: BUY | F32: 521,899 | G32: 158.08 | H32: NSE
A33: 2019-07-09 | B33: DHFL | C33: Dewan Housing Fin Corp | D33: TOWER RESEARCH CAPITAL MARKETS INDIA PRIVATE LIMITED | E33: BUY | F33: 1,644,692 | G33: 73.8 | H33: NSE
A34: 2019-07-09 | B34: EROSMEDIA | C34: Eros Intl Media Ltd | D34: SWAPNIL MEHTA | E34: BUY | F34: 542,421 | G34: 16.63 | H34: NSE
A35: 2019-07-09 | B35: EROSMEDIA | C35: Eros Intl Media Ltd | D35: DHARMESH MALDEVBHAI GODHANIA | E35: BUY | F35: 634,469 | G35: 15.95 | H35: NSE
A36: 2019-07-09 | B36: FIEMIND | C36: Fiem Industries Limited | D36: MAYANK SECURITIES PVT. LTD | E36: BUY | F36: 99,057 | G36: 450 | H36: NSE
A37: 2019-07-09 | B37: ISFT | C37: Intrasoft Tech. Ltd | D37: WASHINGTON UNIVERSITY | E37: BUY | F37: 455,701 | G37: 99 | H37: NSE
A38: 2019-07-09 | B38: JUSTDIAL | C38: Justdial Ltd. | D38: ALPHAGREP SECURITIES PRIVATE LIMITED | E38: BUY | F38: 384,224 | G38: 795.92 | H38: NSE
A39: 2019-07-09 | B39: JUSTDIAL | C39: Justdial Ltd. | D39: TOWER RESEARCH CAPITAL MARKETS INDIA PRIVATE LIMITED | E39: BUY | F39: 371,533 | G39: 789.66 | H39: NSE
A40: 2019-07-09 | B40: RELCAPITAL | C40: Reliance Capital Limited | D40: TOWER RESEARCH CAPITAL MARKETS INDIA PRIVATE LIMITED | E40: BUY | F40: 2,012,410 | G40: 59.89 | H40: NSE
A41: 2019-07-09 | B41: RELINFRA | C41: Reliance Infrastructu Ltd | D41: TOWER RESEARCH CAPITAL MARKETS INDIA PRIVATE LIMITED | E41: BUY | F41: 1,942,947 | G41: 49.5 | H41: NSE
A42: 2019-07-09 | B42: RELINFRA | C42: Reliance Infrastructu Ltd | D42: ALPHAGREP SECURITIES PRIVATE LIMITED | E42: BUY | F42: 1,405,965 | G42: 49.33 | H42: NSE
A43: 2019-07-09 | B43: SAKETH | C43: Saketh Exim Limited | D43: SHAH BABULAL VADILAL | E43: BUY | F43: 32,000 | G43: 110 | H43: NSE
A44: 2019-07-09 | B44: SANCO | C44: Sanco Industries Ltd. | D44: EURO PLUS CAPITAL LIMITED | E44: BUY | F44: 2,497 | G44: 17.9 | H44: NSE
A45: 2019-07-09 | B45: DHFL | C45: Dewan Housing Fin Corp | D45: TOWER RESEARCH CAPITAL MARKETS INDIA PRIVATE LIMITED | E45: SELL | F45: 1,644,692 | G45: 73.86 | H45: NSE
A46: 2019-07-09 | B46: EROSMEDIA | C46: Eros Intl Media Ltd | D46: DHARMESH MALDEVBHAI GODHANIA | E46: SELL | F46: 634469 | G46: 16.59 | H46: NSE
A47: 2019-07-09 | B47: EROSMEDIA | C47: Eros Intl Media Ltd | D47: SWAPNIL MEHTA | E47: SELL | F47: 542421 | G47: 16.19 | H47: NSE
A48: 2019-07-09 | B48: ISFT | C48: Intrasoft Tech. Ltd | D48: WASHINGTON UNIVERSITY | E48: SELL | F48: 566260 | G48: 99 | H48: NSE
A49: 2019-07-09 | B49: JAKHARIA | C49: JAKHARIA FABRIC LIMITED | D49: ARYAMAN CAPITAL MARKETS LIMITED | E49: SELL | F49: 32800 | G49: 182 | H49: NSE
A50: 2019-07-09 | B50: JUSTDIAL | C50: Justdial Ltd. | D50: ALPHAGREP SECURITIES PRIVATE LIMITED | E50: SELL | F50: 382891 | G50: 796.27 | H50: NSE
A51: 2019-07-09 | B51: JUSTDIAL | C51: Justdial Ltd. | D51: TOWER RESEARCH CAPITAL MARKETS INDIA PRIVATE LIMITED | E51: SELL | F51: 371533 | G51: 788.63 | H51: NSE
A52: 2019-07-09 | B52: RELCAPITAL | C52: Reliance Capital Limited | D52: TOWER RESEARCH CAPITAL MARKETS INDIA PRIVATE LIMITED | E52: SELL | F52: 2012410 | G52: 59.87 | H52: NSE
A53: 2019-07-09 | B53: RELINFRA | C53: Reliance Infrastructu Ltd | D53: ALPHAGREP SECURITIES PRIVATE LIMITED | E53: SELL | F53: 1405965 | G53: 49.34 | H53: NSE
A54: 2019-07-09 | B54: RELINFRA | C54: Reliance Infrastructu Ltd | D54: TOWER RESEARCH CAPITAL MARKETS INDIA PRIVATE LIMITED | E54: SELL | F54: 1942947 | G54: 49.49 | H54: NSE
A55: 2019-07-09 | B55: RPPINFRA | C55: R.P.P. Infra Projects Ltd | D55: HSQUARE GLOBETRADE LLP | E55: SELL | F55: 147000 | G55: 110.29 | H55: NSE
A56: 2019-07-09 | B56: SAKETH | C56: Saketh Exim Limited | D56: ARYAMAN CAPITAL MARKETS LIMITED | E56: SELL | F56: 34000 | G56: 110 | H56: NSE
A57: 2019-07-09 | B57: SANCO | C57: Sanco Industries Ltd. | D57: EURO PLUS CAPITAL LIMITED | E57: SELL | F57: 87592 | G57: 17.56 | H57: NSE

Sheet Call Tracker (Equity & F&O)
M5: Back To Main Page
A6: Retail Research Technical Calls & Fundamental Performance Report for the month of July-2019
M7: =Main!B10 -> 2019-07-10
B8: Positional Call
A9: Sr.no | B9: Date | D9: Company | E9: Rec | F9: Rec Price | G9: Stop Loss*** | H9: Call Closed At | I9: Target | J9: Remark | K9: Profit / Loss per Share | L9: Gain / Loss % | M9: Status | N9: Closed Date | O9: NSE Closed Price
A10: 1 | B10: 2019-05-27 | D10: TATAELXSI | E10: Buy | F10: 874 | G10: 818.7 | H10: 915 | I10: 970-990 | J10: Part Profit of Rs.41 /- | K10: =H10-F10 -> 41 | L10: =K10/F10 -> 4.69% | M10: Successful | N10: 2019-07-02 | R10: R
A11: 2 | B11: 2019-05-28 | D11: BAJAJFINSV | E11: Sell | F11: 8175 | G11: 8625 | H11: 7925 | I11: 7300 | J11: Profit of Rs.250/- | K11: =F11-H11 -> 250 | L11: 3.06% | M11: Successful | N11: 2019-07-08 | R11: H
A12: 3 | B12: 2019-05-31 | D12: ITC | E12: Buy | F12: 285-287 | G12: 268.3 | I12: 315-325 | J12: Open | O12: =VLOOKUP(D12,Sheet2!A61:M1856,6,0) -> 273.1 | R12: R
A13: 4 | B13: 2019-06-13 | D13: GODREJCP | E13: Buy | F13: 675-680 | G13: 644 | I13: 740-750 | J13: Open | O13: =VLOOKUP(D13,Sheet2!A66:M1861,6,0) -> 646.75 | R13: H
A14: 5 | B14: 2019-06-17 | D14: SUNTV | E14: Buy | F14: 517 | G14: 476 | H14: 507 | I14: 575-585 | J14: Loss of Rs.10/- | K14: =H14-F14 -> -10 | L14: =K14/F14 -> -1.93% | M14: Unsuccessful | N14: 2019-07-08 | R14: R
A15: 6 | B15: 2019-06-21 | D15: AJANTPHARM | E15: Buy | F15: 950-960 | G15: 897.7 | I15: 1060-1080 | J15: Open | O15: =VLOOKUP(D15,Sheet2!A2:M1641,6,0) -> 916.2 | R15: R
A16: 7 | B16: 2019-06-24 | D16: ESCORTS | E16: Buy | F16: 549.5 | G16: 518 | H16: 545.25 | I16: 600 | J16: Loss of Rs.4.25/- | K16: -4.25 | L16: -0.77% | M16: Neutral | N16: 2019-07-08 | R16: H
A17: 8 | B17: 2019-06-25 | D17: JUBLFOOD | E17: Buy | F17: 1260-1265 | G17: 1158.3 | I17: 1450 -1470 | J17: Open | O17: =VLOOKUP(D17,Sheet2!A4:M1643,6,0) -> 1221.75 | R17: R
A18: 9 | B18: 2019-07-04 | D18: TORNTPHARM | E18: Buy | F18: 1540-1550 | G18: 1454 | I18: 1730-1750 | J18: Open | O18: =VLOOKUP(D18,Sheet2!A5:M1644,6,0) -> 1546.25 | R18: R
A25: CLBS = Closing Basis *** | F25: Reinitiated $
A26: Dividend adjusted <> | F26: Revised stoploss #
A27: Part book {}
B29: Momentum Call
A30: Sr.no | B30: Date | D30: Company | E30: Rec | F30: Rec Price | G30: Stop Loss | H30: Call Closed At | I30: Target | J30: Remark | K30: Profit / Loss per Share/Lot | L30: Gain / Loss % | M30: Gain / Loss per Lot | N30: Lot | O30: Status | P30: Closed Date
A31: 1 | B31: 2019-06-26 | D31: INDUSINDBK | E31: Buy | F31: 1437.5 | G31: 1395 | H31: 1475.5 | I31: 1480-1500 | J31: Profit of Rs.38 /- | K31: =H31-F31 -> 38 | L31: =K31/F31 -> 2.64% | O31: Successful | P31: 2019-07-03 | R31: H
A32: 2 | B32: 2019-06-26 | D32: HEROMOTOCO | E32: Buy | F32: 2590 | G32: 2490 | H32: 2530 | I32: 2750-2800 | J32: Loss of Rs.9.5 /- | K32: =H32-F32 -> -60 | L32: -2.32% | O32: Unsuccessful | P32: 2019-07-05 | R32: H
A33: 3 | B33: 2019-06-27 | D33: ASIANPAINT JUL FUT | E33: Buy | F33: 1372 | G33: 1352 | H33: 1352 | I33: 1400 -1410 | J33: Loss of Rs.20 /- | K33: =H33-F33 -> -20 | M33: =K33*N33 -> -12000 | N33: 600 | O33: Unsuccessful | P33: 2019-07-02 | R33: N
A34: 4 | B34: 2019-06-27 | D34: TITAN JULY FUT | E34: Sell | F34: 1331 | G34: 1350 | H34: 1322 | I34: 1290 | J34: Profit of Rs.9 /- | K34: =F34-H34 -> 9 | M34: 6750 | N34: 750 | O34: Successful | P34: 2019-07-02 | R34: H
A35: 5 | B35: 2019-06-27 | D35: COLPAL JUL FUT | E35: Buy | F35: 1137 | G35: 1120 | H35: 1149 | I35: 1170 | J35: Profit of Rs.12 /- | K35: =H35-F35 -> 12 | M35: 8400 | N35: 700 | O35: Successful | P35: 2019-07-02 | R35: N
A36: 6 | B36: 2019-06-28 | D36: CIPLA JULY FUT | E36: Buy | F36: 556 | G36: 545 | H36: 545 | I36: 575-580 | J36: Loss of Rs.11 /- | K36: =H36-F36 -> -11 | M36: -11000 | N36: 1000 | O36: Unsuccessful | P36: 2019-07-08 | R36: H
A37: 7 | B37: 2019-06-28 | D37: NIITTECH JUL FUT | E37: Sell | F37: 1326.5 | G37: 1345 | H37: 1318 | I37: 1290 | J37: Profit of Rs.8.5 /- | K37: =F37-H37 -> 8.5 | M37: 6375 | N37: 750 | O37: Successful | P37: 2019-07-05 | R37: R
A38: 8 | B38: 2019-06-28 | D38: POWERGRID JUL FUT | E38: Buy | F38: 206.25 | G38: 203 | H38: 208.5 | I38: 213 | J38: Profit of Rs.2.25 /- | K38: =H38-F38 -> 2.25 | M38: 9000 | N38: 4000 | O38: Successful | P38: 2019-07-01 | R38: N
A39: 9 | B39: 2019-06-28 | D39: LT JUL FUT | E39: Buy | F39: 1549 | G39: 1519 | H39: 1568 | I39: 1600 | J39: Profit of Rs.19 /- | K39: =H39-F39 -> 19 | M39: 7125 | N39: 375 | O39: Successful | P39: 2019-07-03 | R39: N
A40: 10 | B40: 2019-07-01 | D40: BATAINDIA JUL FUT | E40: Sell | F40: 1435 | G40: 1458.7 | H40: 1458.7 | I40: 1400 | J40: Loss of Rs.23.7 /- | K40: =F40-H40 -> -23.7 | M40: -13035 | N40: 550 | O40: Unsuccessful | P40: 2019-07-03 | R40: R
A41: 11 | B41: 2019-07-01 | D41: CADILAHC JUL FUT | E41: Buy | F41: 242.5 | G41: 235 | H41: 235 | I41: 260 | J41: Loss of Rs.7.5 /- | K41: =H41-F41 -> -7.5 | M41: -12000 | N41: 1600 | O41: Unsuccessful | P41: 2019-07-02 | R41: H
A42: 12 | B42: 2019-07-01 | D42: MCDOWELL-N | E42: Sell | F42: 592.5 | G42: 610 | H42: 580 | I42: 565-560 | J42: Profit of Rs.12.5 /- | K42: =F42-H42 -> 12.5 | L42: =K42/F42 -> 2.11% | O42: Successful | P42: 2019-07-03 | R42: H
A43: 13 | B43: 2019-07-02 | D43: HDFC JULY FUT | E43: Sell | F43: 2239 | G43: 2262 | H43: 2259 | I43: 2200 | J43: Loss of Rs.20/- | K43: =F43-H43 -> -20 | M43: =K43*N43 -> -10000 | N43: 500 | O43: Unsuccessful | P43: 2019-07-02 | R43: H
A44: 14 | B44: 2019-07-02 | D44: BHARTIARTL JUL FUT | E44: Buy | F44: 351 | G44: 344.3 | H44: 355.5 | I44: 362-365 | J44: Profit of Rs.4.5 /- | K44: =H44-F44 -> 4.5 | M44: =K44*N44 -> 8329.5 | N44: 1851 | O44: Successful | P44: 2019-07-02 | R44: R
A45: 15 | B45: 2019-07-02 | D45: TVSMOTOR JUL FUT | E45: Sell | F45: 429 | G45: 441 | H45: 429 | I45: 410 | J45: Neutral | K45: =H45-F45 -> 0 | M45: =K45*N45 -> 0 | N45: 1100 | O45: Neutral | P45: 2019-07-05 | R45: N
A46: 16 | B46: 2019-07-02 | D46: RECLTD | E46: Sell | F46: 163.5 | G46: 168.2 | H46: 166.5 | I46: 156-154 | J46: Loss of Rs.3/- | K46: =F46-H46 -> -3 | L46: =K46/F46 -> -1.83% | O46: Unsuccessful | P46: 2019-07-03 | R46: R
A47: 17 | B47: 2019-07-02 | D47: TITAN JUL FUT | E47: Sell | F47: 1333.5 | G47: 1353 | H47: 1324.5 | I47: 1300-1290 | J47: Profit of Rs.9 /- | K47: =F47-H47 -> 9 | M47: =K47*N47 -> 6750 | N47: 750 | O47: Successful | P47: 2019-07-03 | R47: H
A48: 18 | B48: 2019-07-02 | D48: RAYMOND JUL FUT | E48: Buy | F48: 745 | G48: 730 | H48: 754.5 | I48: 765-770 | J48: Profit of Rs.9.5 /- | K48: =H48-F48 -> 9.5 | M48: =K48*N48 -> 7600 | N48: 800 | O48: Successful | P48: 2019-07-03 | R48: N
A49: 19 | B49: 2019-07-03 | D49: IGL | E49: Buy | F49: 307.5 | G49: 298 | H49: 298 | I49: 325-339 | J49: Loss of Rs.9.5 /- | K49: =H49-F49 -> -9.5 | L49: =K49/F49 -> -3.09% | O49: Unsuccessful | P49: 2019-07-05 | R49: H
A50: 20 | B50: 2019-07-03 | D50: SUNPHARMA | E50: Buy | F50: 395.5 | G50: 379 | H50: 385.5 | I50: 420-425 | J50: Loss of Rs.10 /- | K50: =H50-F50 -> -10 | L50: =K50/F50 -> -2.53% | O50: Unsuccessful | P50: 2019-07-05 | R50: H
A51: 21 | B51: 2019-07-03 | D51: BANKBARODA | E51: Buy | F51: 121.5 | G51: 118 | H51: 124.1 | I51: 128 | J51: Profit of Rs.2.6 /- | K51: =H51-F51 -> 2.6 | L51: =K51/F51 -> 2.14% | O51: Successful | P51: 2019-07-03 | R51: H
A52: 22 | B52: 2019-07-03 | D52: M&MFIN JUL FUT | E52: Buy | F52: 387.5 | G52: 379 | H52: 394 | I52: 408 | J52: Profit of Rs.6.5 /- | K52: =H52-F52 -> 6.5 | M52: =K52*N52 -> 8125 | N52: 1250 | O52: Successful | P52: 2019-07-04 | R52: H
A53: 23 | B53: 2019-07-04 | D53: UPL JUL FUT | E53: Sell | F53: 667 | G53: 681 | H53: 681 | I53: 645 | J53: Loss of Rs.14/- | K53: =F53-H53 -> -14 | M53: =K53*N53 -> -12600 | N53: 900 | O53: Unsuccessful | P53: 2019-07-04 | R53: R
A54: 24 | B54: 2019-07-04 | D54: INDUSINDBK JUL FUT | E54: Buy | F54: 1497.5 | G54: 1467 | H54: 1517.5 | I54: 1550-1560 | J54: Profit of Rs.20 /- | K54: =H54-F54 -> 20 | M54: =K54*N54 -> 8000 | N54: 400 | O54: Successful | P54: 2019-07-05 | R54: N
A55: 25 | B55: 2019-07-05 | D55: BERGEPAINT | E55: Buy | F55: 314 | G55: 304 | H55: 304 | I55: 330-333 | J55: Loss of Rs.10/- | K55: =H55-F55 -> -10 | L55: =K55/F55 -> -3.18% | O55: Unsuccessful | P55: 8 Ju;y | R55: H
A56: 26 | B56: 2019-07-05 | D56: WIPRO JULY FUT | E56: Sell | F56: 278 | G56: 282 | H56: 274.75 | I56: 270 | J56: Profit of Rs.3.25/- | K56: =F56-H56 -> 3.25 | M56: =K56*N56 -> 10400 | N56: 3200 | O56: Successful | P56: 2019-07-05 | R56: H
A57: 27 | B57: 2019-07-05 | D57: MUTHOOTFIN JUL FUT | E57: Buy | F57: 635 | G57: 625 | H57: 629 | I57: 655 | J57: Loss of Rs.6 /- | K57: =H57-F57 -> -6 | M57: -9000 | N57: 1500 | O57: Unsuccessful | P57: 2019-07-05 | R57: N
A58: 28 | B58: 2019-07-05 | D58: EXIDEIND JUL FUT | E58: Buy | F58: 204 | G58: 199.5 | H58: 199.5 | I58: 215 | J58: Loss of Rs.4.5 /- | K58: -4.5 | M58: -10800 | N58: 2400 | O58: Unsuccessful | P58: 2019-07-08 | R58: N
A59: 29 | B59: 2019-07-05 | D59: TVSMOTOR JUL FUT | E59: Buy | F59: 429 | G59: 417.3 | H59: 417.3 | I59: 450 | J59: Loss of Rs.11.7/- | K59: -11.7 | M59: -12870 | N59: 1100 | O59: Unsuccessful | P59: 2019-07-08 | R59: R
A60: 30 | B60: 2019-07-08 | D60: CANBK JUL FUT | E60: Buy | F60: 289 | G60: 284 | H60: 284 | I60: 300 | J60: Loss of Rs.5 /- | K60: -5 | M60: -10000 | N60: 2000 | O60: Unsuccessful | P60: 2019-07-08 | R60: H
A61: 31 | B61: 2019-07-08 | D61: KOTAKBANK JUL FUT | E61: Buy | F61: 1500 | G61: 1470 | H61: 1470 | I61: 1550-1560 | J61: Loss of Rs.30 /- | K61: -30 | M61: -12000 | N61: 400 | O61: Unsuccessful | P61: 2019-07-09 | R61: H
A62: 32 | B62: 2019-07-09 | D62: RELIANCE | E62: Buy | F62: 1255 | G62: 1218 | H62: 1276 | I62: 1320-1330 | J62: Profit of Rs.21/- | K62: 21 | L62: =K62/F62 -> 1.67% | O62: Successful | P62: 9 Ju;y | R62: H
A63: 33 | B63: 2019-07-09 | D63: NIFTY JUL FUT | E63: Buy | F63: 11525 | G63: 11470 | H63: 11575 | I63: 11600 | J63: Profit of Rs.50/- | K63: 50 | M63: =K63*N63 -> 3750 | N63: 75 | O63: Successful | P63: 2019-07-09 | R63: R
A64: 34 | B64: 2019-07-09 | D64: M&MFIN | E64: Buy | F64: 389-392 | G64: 378 | I64: 410-415 | J64: Open | R64: H
A65: 35 | B65: 2019-07-09 | D65: RBLBANK JUL FUT | E65: Buy | F65: 627-629 | G65: 618 | I65: 645-650 | J65: Open | R65: N
A66: 36 | B66: 2019-07-09 | D66: BANKNIFTY JUL FUT | E66: Buy | F66: 30560 | G66: 30440 | H66: 30670 | I66: 30750-30800 | J66: Profit of Rs.110/- | K66: =H66-F66 -> 110 | M66: =K66*N66 -> 2200 | N66: 20 | O66: Successful | P66: 9 Ju;y | R66: R
A70: CLBS = Closing Basis ***
A71: Dividend adjusted <> | F71: Reinitiated $
F72: Revised stoploss #
A74: Master Trade High Risk
A75: Sr.no | B75: Date | D75: Company | E75: Rec | F75: Rec Price | G75: Stop Loss | H75: Call Closed At | I75: Target | J75: Remark | K75: Profit / Loss per share | L75: Gain / Loss per Lot | M75: Lot | N75: Status | O75: Closed Date
A76: 1 | B76: 2019-07-01 | D76: GAIL JUL FUT | E76: Buy | F76: 310.5 | G76: 298 | H76: 314.25 | I76: 325 | J76: Profit of Rs.3 /- | K76: =H76-F76 -> 3.75 | L76: =3*M76 -> 8001 | M76: 2667 | N76: Successful | O76: 2019-07-01 | R76: H
D77: GAIL 320 CE | E77: Sell | F77: 6 | H77: 6.75 | K77: =F77-H77 -> -0.75
A78: 2 | B78: 2019-07-03 | D78: BIOCON JUL FUT | E78: Buy | F78: 252 | G78: 243 | H78: 244 | I78: 265-268 | J78: Loss of Rs.8 /- | K78: =H78-F78 -> -8 | L78: =K78*M78 -> -14400 | M78: 1800 | N78: Unsuccessful | O78: 2019-07-05 | R78: R
A79: 3 | B79: 2019-07-03 | D79: GAIL JUL FUT | E79: Buy | F79: 153.25 | G79: 148.5 | H79: 148.5 | I79: 162.5 | J79: Loss of Rs.2.75 /- | K79: =H79-F79 -> -4.75 | L79: =-2.75*M79 -> -14668.5 | M79: 5334 | N79: Unsuccessful | O79: 2019-07-09 | R79: H
D80: GAIL 315 CE | E80: Sell | F80: 3 | H80: 1 | K80: =F80-H80 -> 2
A85: Master Trade Medium Risk
A86: Sr.no | B86: Date | D86: Company | E86: Rec | F86: Rec Price | G86: Stop Loss | H86: Call Closed At | I86: Target | J86: Remark | K86: Profit/ Loss per lot | L86: Gain / Loss per Lot | M86: Lot | N86: Status | O86: Closed Date
A87: 1 | B87: 2019-06-28 | D87: NIFTY 11950 CE 4-JULY | E87: Buy | F87: 39.5 | G87: 18 | H87: 18 | I87: 70-80 | J87: Loss of Rs.21.5 /- | K87: =H87-F87 -> -21.5 | L87: =K87*M87 -> -1612.5 | M87: 75 | N87: Unsuccessful | O87: 2019-07-02 | R87: H
A88: 2 | B88: 2019-07-04 | D88: NIFTY 4-Jul 11950 PE | E88: Buy | F88: 16 | H88: 27 | I88: 45 | J88: Profit of Rs.11 /- | K88: 11 | L88: 825 | M88: 75 | N88: Successful | O88: 2019-07-04 | R88: R
A89: 3 | B89: 2019-07-05 | D89: NIFTY 11-Jul 11850 PE | E89: Buy | F89: 45 | H89: 60 | I89: 100 | J89: Profit of Rs.15 /- | K89: 15 | L89: 1125 | M89: 75 | N89: Successful | O89: 2019-07-05 | R89: H
A90: 4 | B90: 2019-07-05 | D90: NIFTY 11-Jul 11850 PE | E90: Buy | F90: 49 | H90: 64.5 | I90: 100 | J90: Profit of Rs.15.5 /- | K90: 15.5 | L90: 1162.5 | M90: 75 | N90: Successful | O90: 2019-07-05 | R90: H
A91: 5 | B91: 2019-07-05 | D91: NIFTY 11-Jul 11850 PE | E91: Buy | F91: 45 | H91: 59 | I91: 100 | J91: Profit of Rs.14 /- | K91: 14 | L91: 1050 | M91: 75 | N91: Successful | O91: 2019-07-05 | R91: H
A92: 6 | B92: 2019-07-08 | D92: NIFTY 11-Jul 11750 CE | E92: Buy | F92: 29.31 | H92: 12 | I92: 60-80 | J92: Loss of Rs.17.31/- | K92: -17.31 | L92: -1298.25 | M92: 75 | N92: Unsuccessful | O92: 2019-07-08 | R92: H
A93: 7 | B93: 2019-07-09 | D93: NIFTY 11550 CE 11-JULY | E93: Buy | F93: 42.5 | G93: 18 | H93: 55.5 | I93: 80-90 | J93: Profit of Rs.13 /- | K93: 13 | L93: 975 | M93: 75 | N93: Successful | O93: 2019-07-09 | R93: H
A94: 8 | B94: 2019-07-09 | D94: COALINDIA 240 CE JULY | E94: Buy | F94: 3.25 | G94: 1.8 | H94: 1.9 | I94: 6-6.5 | J94: Loss of Rs.1.35/- | K94: -1.35 | L94: -2970 | M94: 2200 | N94: Unsuccessful | O94: 2019-07-09 | R94: H
A95: 9 | B95: 2019-07-09 | D95: NIFTY 11550 CE 11-JULY | E95: Buy | F95: 38.5 | G95: 13 | H95: 49 | I95: 80-90 | J95: Profit of Rs.10.5 /- | K95: =H95-F95 -> 10.5 | L95: =K95*M95 -> 787.5 | M95: 75 | N95: Successful | O95: 2019-07-09 | R95: H
A96: 10 | B96: 2019-07-09 | D96: NIFTY 11550 CE 11-JULY | E96: Buy | F96: 31.5 | G96: 10 | H96: 48 | I96: 70 | J96: Profit of Rs.16.5/- | K96: =H96-F96 -> 16.5 | L96: =K96*M96 -> 1237.5 | M96: 75 | N96: Successful | O96: 2019-07-09 | R96: H
A100: Techno -Funda (positional)
A101: Sr.no | B101: Date | D101: Company | E101: Rec | F101: Rec Price | G101: Stop Loss*** | H101: Call Closed At | I101: Target | J101: Remark | K101: Profit / Loss per Share | L101: Gain / Loss % | M101: Status | N101: Closed Date | O101: NSE Closed Price
A102: 1 | B102: 2019-04-04 | D102: FINPIPE | E102: Buy | F102: 474.5 | G102: 435 | H102: 524 | I102: 560 | J102: Profit of Rs.49.5 /- | K102: =H102-F102 -> 49.5 | L102: =K102/F102 -> 10.43% | M102: Successful | N102: 2019-07-01 | R102: H
A103: 2 | B103: 2019-05-24 | D103: APOLLOTYRE | E103: Buy | F103: 187.5 | G103: 178.7 | H103: 201.5 | I103: 220-230 | J103: Part Profit of Rs.14/- | K103: =H103-F103 -> 14 | L103: 7.47% | M103: Successful | N103: 2019-06-04 | R103: R
A106: CLBS = Closing Basis *** | F106: Reinitiated $
A107: Dividend adjusted <> | F107: Revised stoploss #
B112: Investment Idea
A113: Sr.no | B113: Date | D113: Company | E113: Rec | F113: Rec Price | G113: Point of Review | H113: Close Rate | I113: Target | J113: Remark | K113: Profit / Loss per Share | L113: Gain / Loss % | M113: Status | N113: Closed Date
A114: 1 | B114: 2013-11-01 | D114: L&T Finance Holding | E114: Accu | F114: 82.00 | G114: - | H114: 100 | I114: 100.00 | J114: Target Achieved | K114: =H114-F114 -> 18.00 | L114: =K114/F114 -> 21.95% | M114: Successful | N114: 2016-10-14
A115: 2 | B115: 2014-06-04 | D115: Finolex Inds | E115: Buy | F115: 257.00 | G115: - | H115: 300 | I115: 300.00 | J115: Target Achieved | K115: =H115-F115 -> 43.00 | L115: 16.73% | M115: Successful | N115: 2014-07-02
A116: =1+A115 -> 3 | B116: 2014-07-08 | D116: JK Cement | E116: Buy | F116: 393.00 | G116: - | H116: 468 | I116: 468.00 | J116: Target Achieved | K116: =H116-F116 -> 75.00 | L116: 19.08% | M116: Successful | N116: 2014-08-12
A117: 4 | B117: 2014-08-06 | D117: Finolex Cables | E117: Buy | F117: 205.00 | G117: - | H117: 275 | I117: 250.00 | J117: Target Achieved | K117: 70.00 | L117: 34.15% | M117: Successful | N117: 2014-11-19
A118: 5 | B118: 2014-09-04 | D118: Exide Inds | E118: Buy | F118: 162.00 | G118: - | H118: 190 | I118: 190.00 | J118: Target Achieved | K118: 28.00 | L118: 17.28% | M118: Successful | N118: 2015-01-02
A119: 6 | B119: 2014-09-04 | D119: Deepak Nitrite | E119: Buy | F119: 75.00 | G119: - | H119: 91.5 | I119: 95-100 | J119: Profit of Rs.16.50/- | K119: 16.50 | L119: 22.00% | M119: Successful | N119: 2014-11-11
A120: 7 | B120: 2014-10-01 | D120: Mercks | E120: Buy | F120: 850.00 | G120: - | H120: 982.5 | I120: 1050.00 | J120: Profit of Rs.132.50/- | K120: 132.50 | L120: 15.59% | M120: Successful | N120: 2015-02-04
A121: 8 | B121: 2014-10-01 | D121: Grindwell Norton | E121: Buy | F121: 475.00 | G121: - | H121: 515 | I121: 600.00 | J121: Profit of Rs.40/- | K121: 40.00 | L121: 8.42% | M121: Successful | N121: 2014-10-27
A122: 9 | B122: 2014-10-01 | D122: Snowman Logistics | E122: Buy | F122: 86.00 | G122: - | H122: 99 | I122: 140.00 | J122: Profit of Rs.13.00/- | K122: 13.00 | L122: 15.12% | M122: Successful | N122: 2014-10-27
A123: 10 | B123: 2014-10-14 | D123: Birla Corp | E123: Buy | F123: 496.60 | G123: - | H123: 621 | I123: 580.00 | J123: Target Achieved | K123: 124.40 | L123: 25.05% | M123: Successful | N123: 2016-08-23
A124: 11 | B124: 2014-10-14 | D124: Ultratech Cem | E124: Buy | F124: 2481.90 | G124: - | H124: 2840 | I124: 2870.00 | J124: Profit of Rs.358.10/- | K124: 358.10 | L124: 14.43% | M124: Successful | N124: 2015-01-13
A125: =1+A122 -> 10 | B125: 2014-10-16 | D125: Sintex Inds | E125: Buy | F125: 84.50 | G125: - | H125: 93 | I125: 110.00 | J125: Profit of Rs.8.50/- | K125: 8.50 | L125: 10.06% | M125: Successful | N125: 2014-10-27
A126: =1+A125 -> 11 | B126: 2014-10-16 | D126: HSIL | E126: Buy | F126: 401.00 | G126: - | H126: 428 | I126: 450.00 | J126: Profit of Rs.27.00/- | K126: 27.00 | L126: 6.73% | M126: Successful | N126: 2015-01-16
A127: 12 | B127: 2014-10-16 | D127: Eveready Inds | E127: Buy | F127: 101.00 | G127: - | H127: 112 | I127: 120.00 | J127: Profit of Rs.11.00/- | K127: 11.00 | L127: 10.89% | M127: Successful | N127: 2014-10-27
A128: 13 | B128: 2014-11-11 | D128: Pennar Inds | E128: Buy | F128: 59.00 | G128: - | H128: 76 | I128: 76.00 | J128: Target Achieved | K128: 17.00 | L128: 28.81% | M128: Successful | N128: 2017-10-24
A129: 14 | B129: 2014-11-11 | D129: Snowman Logistics | E129: Buy | F129: 99.00 | G129: - | H129: 120 | I129: 120.00 | J129: Profit of Rs.21/- | K129: 21.00 | L129: 21.21% | M129: Successful | N129: 2014-11-17
A130: 15 | B130: 2014-11-13 | D130: Dharamsi Morarji Chem | E130: Buy | F130: 22.00 | G130: - | H130: 33.55 | I130: 32.00 | J130: Profit of Rs 11.55/- | K130: 11.55 | L130: 52.50% | M130: Successful | N130: 2015-07-03
A131: 16 | B131: 2014-12-03 | D131: Tatachem | E131: Buy | F131: 440.00 | G131: - | H131: 520 | I131: 520.00 | J131: Profit of Rs 80.00/- | K131: 80.00 | L131: 18.18% | M131: Successful | N131: 2015-07-23
A132: 17 | B132: 2014-12-03 | D132: Advanta | E132: Buy | F132: 360.00 | G132: - | H132: 427 | I132: 425.00 | J132: Profit of Rs.67.00/- | K132: 67.00 | L132: 18.61% | M132: Successful | N132: 2015-02-23
A133: 18 | B133: 2015-01-08 | D133: GDL | E133: Buy | F133: 360.00 | G133: - | H133: 455 | I133: 420.00 | J133: Profit of Rs.95.00/- | K133: 95.00 | L133: 26.39% | M133: Successful | N133: 2015-01-20
A134: 19 | B134: 2015-01-08 | D134: NRB Bearing | E134: Buy | F134: 130.00 | H134: 175.5 | I134: 165.00 | J134: Profit of Rs 45.50/- | K134: 45.50 | L134: 35.00% | M134: Successful | N134: 2017-12-19
A135: 20 | B135: 2015-02-05 | D135: GSFC | E135: Accu | F135: 98.00 | H135: 120 | I135: 120.00 | J135: Target Achieved | K135: 22.00 | L135: 22.45% | M135: Successful | N135: 2017-01-18
A136: 21 | B136: 2015-02-05 | D136: Sundrmfast | E136: Accu | F136: 196.00 | H136: 262 | I136: 255.00 | J136: Target Achieved | K136: 66.00 | L136: 33.67% | M136: Successful | N136: 2016-08-17
A137: 22 | B137: 2015-03-04 | D137: GPPL | E137: Accu | F137: 235 | H137: 77.00 | I137: 280-285 | J137: Loss of Rs.158/- | K137: =H137-F137 -> -158.00 | L137: -67.23% | M137: Unsuccessful | N137: 2019-02-26
A138: 23 | B138: 2015-03-04 | D138: ORIENTCEM | E138: Accu | F138: 185.00 | H138: 224 | I138: 220-225 | J138: Target Achieved | K138: 39.00 | L138: =K138/F138 -> 21.08% | M138: Successful | N138: 2016-10-04
A139: 24 | B139: 2015-03-27 | D139: PFS | E139: Accu | F139: 49.5 | H139: 15.85 | I139: 67.00 | J139: Loss of Rs.33.65/- | K139: =H139-F139 -> -33.65 | L139: =K139/F139 -> -68% | M139: Unsuccessful | N139: 2019-06-11
A140: 25 | B140: 2015-03-30 | D140: Walchandnagar Ind Ltd | E140: Accu | F140: 183.50 | H140: 219 | I140: 218.00 | J140: Profit of Rs.35.50/- | K140: 35.50 | L140: =K140/F140 -> 19.35% | M140: Successful | N140: 2015-04-09
A141: 26 | B141: 2015-04-20 | D141: Kalpataru Power Transmission Ltd | E141: Accu | F141: =(227+237)/2 -> 232.00 | H141: 298 | I141: 298.00 | J141: Target Achieved | K141: 66.00 | L141: 28.45% | M141: Successful | N141: 2017-03-29
A142: 27 | B142: 2015-05-04 | D142: Mastek Ltd | E142: Buy | F142: 385.00 | H142: =212.5+331 -> 543.5 | I142: 510.00 | J142: Profit of Rs 158.50/- | K142: 158.50 | L142: 41.17% | M142: Successful | N142: 2015-08-19
A143: 28 | B143: 2015-05-04 | D143: Suprajit Eng | E143: Buy | F143: 115.50 | H143: 146 | I143: 142.00 | J143: Profit of Rs 30.50/- | K143: 30.50 | L143: 26.41% | M143: Successful | N143: 2015-07-17
A144: 29 | B144: 2015-05-27 | D144: TCI | E144: Buy | F144: 237.50 | H144: 279.5 | I144: 278.00 | J144: Target Achieved | K144: 42.00 | L144: 17.68% | M144: Successful | N144: 2015-08-06
A145: 30 | B145: 2015-06-19 | D145: HSIL | E145: Accu | F145: 340.00 | H145: 448 | I145: 448.00 | J145: Target Achieved | K145: 108.00 | L145: 31.76% | M145: Successful | N145: 2017-10-10
A146: 31 | B146: 2015-07-06 | D146: Capital First | E146: Accu | F146: 390.00 | H146: 460 | I146: 460.00 | J146: Target Achieved | K146: 70.00 | L146: 17.95% | M146: Successful | N146: 2016-04-18
A147: 32 | B147: 2015-07-10 | D147: Dolphin OffShore | E147: Accu | F147: 122.5 | H147: 61.00 | I147: 172.00 | J147: Loss of Rs.61.50/- | K147: -61.50 | L147: -50.20% | M147: Unsuccessful | N147: 2018-08-21
A148: 33 | B148: 2015-08-03 | D148: Allcargo logistics | E148: Accu | F148: 297.50 | H148: 350 | I148: 360.00 | J148: Profit of Rs 52.50/- | K148: 52.50 | L148: =K148/F148 -> 17.65% | M148: Successful | N148: 2015-08-16
A149: 34 | B149: 2015-08-03 | D149: Camline Fine | E149: Accu | F149: 115.50 | H149: 149 | I149: 140.00 | J149: Profit of Rs 33.50/- | K149: 33.50 | L149: 29.00% | M149: Successful | N149: 2017-01-05
A150: 35 | B150: 2015-09-04 | D150: TCI | E150: Accu | F150: 226.00 | H150: 292 | I150: 292.00 | J150: Target Achieved | K150: 66.00 | L150: 29.20% | M150: Successful | N150: 2015-10-09
A151: 36 | B151: 2015-09-07 | D151: Kalpataru Power Transmission Ltd | E151: Accu | F151: 232.50 | H151: 312.5 | I151: 310.00 | J151: Target Achieved | K151: 80.00 | L151: 34.41% | M151: Successful | N151: 2017-03-29
A152: 37 | B152: 2015-09-21 | D152: LLOYD ELECTRIC & ENG LTD | E152: Accu | F152: 196.50 | H152: 238 | I152: 238.00 | J152: Target Achieved | K152: 41.50 | L152: 21.12% | M152: Successful | N152: 2015-10-14
A153: 38 | B153: 2015-09-24 | D153: L&T Finance Holding | E153: Accu | F153: 65.00 | H153: 82 | I153: 82.00 | J153: Target Achieved | K153: 17.00 | L153: 26.15% | M153: Successful | N153: 2016-07-27
A154: 39 | B154: 2015-10-14 | D154: KEC International ltd | E154: Accu | F154: 144.00 | H154: 182.5 | I154: 181.00 | J154: Target Achieved | K154: 38.50 | L154: 26.74% | M154: Successful | N154: 2017-03-23
A155: 40 | B155: 2015-10-14 | D155: Gruh Finance | E155: Accu | F155: 264.00 | H155: 311 | I155: 311.00 | J155: Target Achieved | K155: 47.00 | L155: 17.80% | M155: Successful | N155: 2016-08-22
A156: 41 | B156: 2015-11-10 | D156: Pidilitind | E156: Buy | F156: 549.50 | H156: 630 | I156: 630.00 | J156: Target Achieved | K156: 80.50 | L156: 14.65% | M156: Successful | N156: 2016-02-19
A157: 42 | B157: 2015-12-04 | D157: Zensar Technology | E157: Accu | F157: 1027.50 | H157: 1315 | I157: 1250.00 | J157: Target Achieved | K157: =H157-F157 -> 287.50 | L157: 27.98% | M157: Successful | N157: 2018-05-24
A158: 43 | B158: 2015-12-29 | D158: Vinati Organics Ltd | E158: Accu | F158: 465.00 | H158: 540 | I158: 540.00 | J158: Target Achieved | K158: 75.00 | L158: =K158/F158 -> 16.13% | M158: Successful | N158: 2016-06-09
A159: 44 | B159: 2016-01-11 | D159: GSFC | E159: Buy | F159: 81.00 | H159: 110 | I159: 110.00 | J159: Target Achieved | K159: 29.00 | L159: 35.80% | M159: Successful | N159: 2017-01-10
A160: 45 | B160: 2016-01-13 | D160: SSWL | E160: Buy | F160: 417.50 | H160: 547 | I160: 535.00 | J160: Target Achieved | K160: 129.50 | L160: 31.02% | M160: Successful | N160: 2016-07-27 | T160: .
A161: 46 | B161: 2016-02-08 | D161: Persistent System Ltd | E161: Accu | F161: 650.00 | H161: 800 | I161: 800.00 | J161: Target Achieved | K161: 150.00 | L161: 23.08% | M161: Successful | N161: 2018-02-23
A162: 47 | B162: 2016-03-04 | D162: UPL | E162: Accu | F162: 437.50 | H162: 504.5 | I162: 522.00 | J162: Profit of Rs.67/- | K162: 67.00 | L162: 15.31% | M162: Successful | N162: 2016-04-20
A163: 48 | B163: 2016-03-09 | D163: Ashoka Buildcon Ltd | E163: Accu | F163: 189.50 | H163: 218 | I163: 218.00 | J163: Target Achieved | K163: 28.50 | L163: 15.04% | M163: Successful | N163: 2017-10-26
A164: 49 | B164: 2016-04-11 | D164: PTC INDIA FIN SERV LTD | E164: Accu | F164: 36.5 | H164: 15.85 | I164: 60.00 | J164: Loss of Rs.20.65/- | K164: -20.65 | L164: -56.58% | M164: Unsuccessful | N164: 2019-06-11
A165: 50 | B165: 2016-04-12 | D165: CAMLINFINE $ | E165: Accu | F165: 93.00 | H165: 149 | I165: 140.00 | J165: Profit of Rs 56/- | K165: 56.00 | L165: =K165/F165 -> 60.22% | M165: Successful | N165: 2017-01-05
A166: 51 | B166: 2016-04-12 | D166: Greaves Cotton Ltd. | E166: Accu | F166: 130.00 | H166: 150 | I166: 150-155 | J166: Target Achieved | K166: 20.00 | L166: 15.38% | M166: Successful | N166: 2016-07-13
A167: 52 | B167: 2016-04-13 | D167: DHFL | E167: Accu | F167: 196.00 | H167: 299 | I167: 299.00 | J167: Target Achieved | K167: 103.00 | L167: 52.55% | M167: Successful | N167: 2016-09-07
A168: 53 | B168: 2016-04-13 | D168: Magma | E168: Accu | F168: 88.00 | H168: 103 | I168: 103.00 | J168: Target Achieved | K168: 15.00 | L168: 17.05% | M168: Successful | N168: 2016-06-09
A169: 54 | B169: 2016-05-02 | D169: KEC International ltd $ | E169: Accu | F169: 127.50 | H169: 148 | I169: 148-150 | J169: Target Achieved | K169: 20.50 | L169: 16.08% | M169: Successful | N169: 2016-07-13
A170: 55 | B170: 2016-05-03 | D170: Mindtree | E170: Accu | F170: 675.00 | H170: 815 | I170: 790-800 | J170: Target Achieved | K170: 140.00 | L170: 20.74% | M170: Successful | N170: 2018-02-23
A171: 56 | B171: 2016-06-06 | D171: TRITURBINE | E171: Accu | F171: 110.00 | H171: 126.5 | I171: 125.00 | J171: Profit of Rs.16.50/- | K171: 16.50 | L171: =K171/F171 -> 15.00% | M171: Successful | N171: 2016-07-01
A172: 57 | B172: 2016-06-17 | D172: Pennar Industries Ltd | E172: Accu | F172: 44.00 | H172: 69.5 | I172: 69.50 | J172: Profit of Rs.25.50/- | K172: 25.50 | L172: 57.95% | M172: Successful | N172: 2017-08-30
A173: 58 | B173: 2016-06-28 | D173: EVEREADY INDS. IND. LTD. | E173: Accu | F173: 262.50 | H173: 340 | I173: 333.00 | J173: Profit of Rs.77.50/- | K173: 77.50 | L173: 29.52% | M173: Successful | N173: 2017-10-09
A174: 59 | B174: 2016-06-28 | D174: FIEM INDUSTRIES LIMITED | E174: Accu | F174: 840.00 | H174: 1230 | I174: 1230.00 | J174: Target Achieved | K174: 390.00 | L174: 46.43% | M174: Successful | N174: 2016-10-06
A175: 60 | B175: 2016-07-05 | D175: Bajaj Corp Ltd | E175: Accu | F175: 395 | H175: =(468.5+342.5)/2 -> 405.50 | I175: 510.00 | J175: Profit of Rs.10.50/- | K175: 10.50 | L175: 3% | M175: Neutral | N175: 2019-05-21
A176: 61 | B176: 2016-08-02 | D176: GPPL $ | E176: Buy | F176: 169.5 | H176: 77.00 | I176: 198-200 | J176: Loss of Rs.92.5/- | K176: -92.50 | L176: -54.57% | M176: Unsuccessful | N176: 2019-02-26
A177: 62 | B177: 2016-08-04 | D177: WONDERLA HOLIDAYS LTD | E177: Accu | F177: 400 | H177: 305.00 | I177: 475.00 | J177: Loss of Rs.95/- | K177: =H177-F177 -> -95.00 | L177: =K177/F177 -> -23.75% | M177: Unsuccessful | N177: 2019-05-21
A178: 63 | B178: 2016-08-11 | D178: CAMLINFINE | E178: Accu | F178: 86.50 | H178: 130 | I178: 130.00 | J178: Profit of Rs.43.50/- | K178: =H178-F178 -> 43.50 | L178: =K178/F178 -> 50.29% | M178: Successful | N178: 2017-12-22
A179: 64 | B179: 2016-08-18 | D179: GRANULES | E179: Accu | F179: 133.5 | H179: 126.50 | I179: 178.00 | J179: Exit | K179: -7.00 | L179: -5.24% | M179: Unsuccessful | N179: 2016-09-02
A180: 65 | B180: 2016-08-31 | D180: VA TECH WABAG | E180: Accu | F180: 560.00 | H180: 725 | I180: 725.00 | J180: Target Achieved | K180: 165.00 | L180: 29.46% | M180: Successful | N180: 2016-03-27
A181: 66 | B181: 2016-09-01 | D181: SKIPPER LIMITED | E181: Accu | F181: 160.50 | H181: 210 | I181: 210.00 | J181: Target Achieved | K181: 49.50 | L181: 30.84% | M181: Successful | N181: 2017-05-16
A182: 67 | B182: 2016-10-03 | D182: IFB Industries | E182: Accu | F182: 430.00 | H182: 596 | I182: 575.00 | J182: Profit of Rs.166/- | K182: 166.00 | L182: 38.60% | M182: Successful | N182: 2017-02-03
A183: 68 | B183: 2016-10-14 | D183: ASIANTILES | E183: Accu | F183: 280.00 | H183: 345 | I183: 345.00 | J183: Target Achieved | K183: 65.00 | L183: 23.21% | M183: Successful | N183: 2017-03-20
A184: 69 | B184: 2016-10-14 | D184: DEEPIND | E184: Accu | F184: 245.00 | H184: 325.5 | I184: 330.00 | J184: Profit of Rs.80.5/- | K184: 80.50 | L184: 32.86% | M184: Successful | N184: 2017-02-03
A185: 70 | B185: 2016-10-17 | D185: DCBBANK | E185: Accu | F185: 125.00 | H185: 160 | I185: 160.00 | J185: Target Achieved | K185: 35.00 | L185: 28.00% | M185: Successful | N185: 2017-03-09
A186: 71 | B186: 2016-10-17 | D186: ORIENTREF | E186: Accu | F186: 114.00 | H186: 145 | I186: 145.00 | J186: Target Achieved | K186: 31.00 | L186: =K186/F186 -> 27.19% | M186: Successful | N186: 2017-05-04
A187: 72 | B187: 2016-10-17 | D187: GANECOS | E187: Accu | F187: 212.00 | H187: 280 | I187: 276.00 | J187: Profit of Rs.68/- | K187: 68.00 | L187: =K187/F187 -> 32.08% | M187: Successful | N187: 2017-05-03
A188: 73 | B188: 2016-11-04 | D188: NBCC | E188: Accu | F188: 155.00 | H188: 210 | I188: 210.00 | J188: Profit of Rs.55/- | K188: 55.00 | L188: =K188/F188 -> 35.48% | M188: Successful | N188: 2017-07-28
A189: 74 | B189: 2016-12-06 | D189: PRECAM | E189: Accu | F189: 150.5 | H189: 72.50 | I189: 174.00 | J189: Loss of Rs.78/- | K189: -78.00 | L189: =K189/F189 -> -51.83% | M189: Unsuccessful | N189: 2018-08-21
A190: 75 | B190: 2016-12-08 | D190: INFRATEL | E190: Accu | F190: 380.00 | H190: 478 | I190: 468.00 | J190: Target Achieved | K190: 98.00 | L190: =K190/F190 -> 25.79% | M190: Successful | N190: 2017-10-17
A191: 76 | B191: 2016-12-30 | D191: GODREJPROP | E191: Accu | F191: 305.00 | H191: 375 | I191: 375.00 | J191: Target Achieved | K191: 70.00 | L191: 22.95% | M191: Successful | N191: 2017-02-02
A192: 77 | B192: 2017-01-04 | D192: DEEPAKNTR | E192: Accu | F192: 99.50 | H192: 158 | I192: 158.00 | J192: Target Achieved | K192: 58.50 | L192: 58.79% | M192: Successful | N192: 2017-06-12
A193: 78 | B193: 2017-02-20 | D193: SUBROS | E193: Accu | F193: 202.50 | H193: 234 | I193: 234.00 | J193: Target Achieved | K193: 31.50 | L193: 15.56% | M193: Successful | N193: 2017-04-11
A194: 79 | B194: 2017-02-20 | D194: RECLTD | E194: Accu | F194: 140.50 | H194: 220 | I194: 220.00 | J194: Target Achieved | K194: 79.50 | L194: 56.58% | M194: Successful | N194: 2017-05-09
A195: 80 | B195: 2017-03-24 | D195: VRLLOG | E195: Accu | F195: 300.50 | H195: 417.5 | I195: 420.00 | J195: Profit of Rs.117/- | K195: 117.00 | L195: 38.94% | M195: Successful | N195: 2017-12-01
A196: 81 | B196: 2017-03-24 | D196: FIEMIND | E196: Accu | F196: 850.00 | H196: 1042.5 | I196: 1023.00 | J196: Profit of Rs 192.50/- | K196: 192.50 | L196: 22.65% | M196: Successful | N196: 2017-04-05
A197: 82 | B197: 2017-04-05 | D197: RATNAMANI | E197: Accu | F197: 785.00 | H197: 930 | I197: 920.00 | J197: Profit of Rs.145/- | K197: 145.00 | L197: 18.47% | M197: Successful | N197: 2017-08-29
A198: 83 | B198: 2017-04-06 | D198: ZEEMEDIA | E198: Accu | F198: 40 | H198: 13.10 | I198: 60.00 | J198: Loss of Rs.26.9/- | K198: =H198-F198 -> -26.90 | L198: -67.25% | M198: Unsuccessful | N198: 2018-02-07
A199: 84 | B199: 2017-04-12 | D199: DABUR | E199: Accu | F199: 289.50 | H199: 354 | I199: 360.00 | J199: Profit of Rs.64.5/- | K199: 64.50 | L199: =K199/F199 -> 22.28% | M199: Successful | N199: 2017-11-01
A200: 85 | B200: 2017-04-20 | D200: KPRMILL | E200: Accu | F200: 700.00 | H200: 840 | I200: 840.00 | J200: Profit of Rs.140/- | K200: 140.00 | L200: =K200/F200 -> 20.00% | M200: Successful | N200: 2017-06-07
A201: 86 | B201: 2017-05-22 | D201: GREAVESCOT | E201: Accu | F201: 153-158 | I201: 190.00 | J201: Open
A202: 87 | B202: 2017-06-01 | D202: ESSELPACK | E202: Accu | F202: 130 | H202: 155.50 | I202: 170.00 | J202: Part profit of Rs.51/- | K202: =H202-F202 -> 25.50 | L202: =K202/F202 -> 20% | M202: Successful | N202: 2017-11-17
A203: 88 | B203: 2017-06-15 | D203: KEI | E203: Accu | F203: 214.50 | H203: 262 | I203: 262.00 | J203: Profit of Rs.47.5/- | K203: =H203-F203 -> 47.50 | L203: 22.14% | M203: Successful | N203: 2017-08-30
A204: 89 | B204: 2017-07-17 | D204: MAYURUNIQ | E204: Accu | F204: 370.00 | H204: 447.5 | I204: 450.00 | J204: Target Achieved | K204: 77.50 | L204: 20.95% | M204: Successful | N204: 2017-10-27
A205: 90 | B205: 2017-07-27 | D205: RAMCOCEM | E205: Accu | F205: 657.50 | H205: 825 | I205: 820.00 | J205: Target Achieved | K205: 167.50 | L205: 25.48% | M205: Successful | N205: 2017-12-21
A206: 91 | B206: 2017-08-17 | D206: FINPIPE | E206: Accu | F206: 605.00 | H206: 750 | I206: 750.00 | J206: Profit of Rs.145/- | K206: 145.00 | L206: 23.97% | M206: Successful | N206: 2017-10-19
A207: 92 | B207: 2017-09-01 | D207: SHK | E207: Accu | F207: 255 | H207: 307.50 | I207: 320.00 | J207: Part profit of Rs.52.5/- | K207: 52.50 | L207: 21% | M207: Successful | N207: 2017-12-29
A208: 93 | B208: 2017-09-19 | D208: SKIPPER | E208: Accu | F208: 215.00 | H208: 258 | I208: 258.00 | J208: Target Achieved | K208: 43.00 | L208: 20.00% | M208: Successful | N208: 2017-11-01
A209: 94 | B209: 2017-09-20 | D209: CAMLINFINE | E209: Accu | F209: 75.00 | H209: 90 | I209: 90.00 | J209: Profit of Rs.15.00/- | K209: 15.00 | L209: 20.00% | M209: Successful | N209: 2017-10-11
A210: 95 | B210: 2017-10-03 | D210: GNA | E210: Accu | F210: 315.00 | H210: 392 | I210: 384.00 | J210: Profit of Rs.77/- | K210: 77.00 | L210: 24.44% | M210: Successful | N210: 2017-10-09
A211: 96 | B211: 2017-10-05 | D211: NOCIL | E211: Accu | F211: 145.00 | H211: 179 | I211: 180.00 | J211: Profit of Rs.34/- | K211: 34.00 | L211: 23.45% | M211: Successful | N211: 2017-10-17
A212: 97 | B212: 2017-10-06 | D212: CENTURYPLY | E212: Accu | F212: 256.00 | H212: 323 | I212: 320.00 | J212: Target Achieved | K212: 67.00 | L212: 26.17% | M212: Successful | N212: 2017-11-28
A213: 98 | B213: 2017-10-09 | D213: RECLTD | E213: Accu | F213: 152.5 | H213: 183.50 | I213: 210.00 | J213: Part Profit of Rs.31/- | K213: 31.00 | L213: 20% | M213: Successful | N213: 2017-11-03
A214: 99 | B214: 2017-10-09 | D214: EIHOTEL | E214: Accu | F214: 137.50 | H214: 184 | I214: 183.00 | J214: Profit of Rs.46.5/- | K214: 46.50 | L214: 33.82% | M214: Successful | N214: 2018-01-08
A215: 100 | B215: 2017-10-10 | D215: BOROSIL | E215: Accu | F215: 895.00 | H215: 1122.5 | I215: 1078.00 | J215: Profit of Rs.227.5/- | K215: 227.50 | L215: 25.42% | M215: Successful | N215: 2018-01-17
A216: 101 | B216: 2017-10-10 | D216: NRBBEARING | E216: Accu | F216: 125.50 | H216: 158 | I216: 155.00 | J216: Profit of Rs.32.5/- | K216: 32.50 | L216: 25.90% | M216: Successful | N216: 2017-11-28
A217: 102 | B217: 2017-10-12 | D217: CYIENT | E217: Accu | F217: 525.00 | H217: 629 | I217: 629.00 | J217: Target Achieved | K217: 104.00 | L217: 19.81% | M217: Successful | N217: 2018-01-19
A218: 103 | B218: 2017-11-07 | D218: HATSUN | E218: Accu | F218: 740.00 | H218: 892.5 | I218: 900.00 | J218: Profit of Rs.152.5/- | K218: 152.50 | L218: 20.61% | M218: Successful | N218: 2017-11-13
A219: 104 | B219: 2017-12-04 | D219: SANGHIIND | E219: Accu | F219: 118.50 | H219: 143.5 | I219: 145.00 | J219: Profit of Rs.25/- | K219: 25.00 | L219: 21.10% | M219: Successful | N219: 2017-12-28
A220: 105 | B220: 2017-12-05 | D220: ALLCARGO | E220: Accu | F220: 177.5 | H220: 215.00 | I220: 230.00 | J220: Part Profit of Rs.37.5/- | K220: 37.50 | L220: 21% | M220: Successful | N220: 2017-12-27
A221: 106 | B221: 2017-12-21 | D221: KAJARIACER | E221: Accu | F221: 710-720 | I221: 872.00 | J221: Open
A222: 107 | B222: 2017-12-29 | D222: GNA | E222: Accu | F222: 435.00 | H222: 542.5 | I222: 539.00 | J222: Target Achieved | K222: =H222-F222 -> 107.50 | L222: =K222/F222 -> 24.71% | M222: Successful | N222: 2018-04-16
A223: 108 | B223: 2017-12-29 | D223: ZENSARTECH | E223: Accu | F223: 885.00 | H223: 1090 | I223: 1084.00 | J223: Target Achieved | K223: =H223-F223 -> 205.00 | L223: =K223/F223 -> 23.16% | M223: Successful | N223: 2018-04-23
A224: 109 | B224: 2018-02-07 | D224: GREAVESCOT | E224: Accu | F224: 130-132 | I224: 190.00 | J224: Open
A225: 110 | B225: 2018-02-27 | D225: MOLDTKPAC | E225: Accu | F225: 320-330 | I225: 398.00 | J225: Open
A226: 111 | B226: 2018-03-05 | D226: LICHSGFIN | E226: Accu | F226: 505-515 | I226: 672.00 | J226: Open
A227: 112 | B227: 2018-04-02 | D227: EVERESTIND | E227: Accu | F227: 492.5 | H227: 589.00 | I227: 613.00 | J227: Part Profit of Rs.37.5/- | K227: =H227-F227 -> 96.50 | L227: =K227/F227 -> 20% | M227: Successful | N227: 2018-08-21
A228: 113 | B228: 2018-04-04 | D228: GPPL | E228: Accu | F228: 141.5 | H228: 77.00 | I228: 180.00 | J228: Loss of Rs.64.5/- | K228: =H228-F228 -> -64.50 | L228: =K228/F228 -> -45.58% | M228: Unsuccessful | N228: 2019-02-26
... 41 more rows

Sheet Sheet2 (hidden)
A1: SYMBOL | B1: SERIES | C1: OPEN | D1: HIGH | E1: LOW | F1: CLOSE | G1: LAST | H1: PREVCLOSE | I1: TOTTRDQTY | J1: TOTTRDVAL | K1: TIMESTAMP | L1: TOTALTRADES | M1: ISIN | N1: ISIN
A2: 20MICRONS | B2: EQ | C2: 37.85 | D2: 37.85 | E2: 36.2 | F2: 36.55 | G2: 36.95 | H2: 36.1 | I2: 11739 | J2: 430723.85 | K2: 2019-07-09 | L2: 256 | M2: INE144J01027
A3: 21STCENMGM | B3: EQ | C3: 17.6 | D3: 17.6 | E3: 17.6 | F3: 17.6 | G3: 17.6 | H3: 17.95 | I3: 56 | J3: 985.6 | K3: 2019-07-09 | L3: 3 | M3: INE253B01015
A4: 3IINFOTECH | B4: EQ | C4: 3.1 | D4: 3.3 | E4: 3 | F4: 3.25 | G4: 3.3 | H4: 3.1 | I4: 1359862 | J4: 4305505.25 | K4: 2019-07-09 | L4: 519 | M4: INE748C01020
A5: 3MINDIA | B5: EQ | C5: 22021.05 | D5: 22199.85 | E5: 21800 | F5: 21848.55 | G5: 21851 | H5: 22108.35 | I5: 2673 | J5: 58768399.45 | K5: 2019-07-09 | L5: 997 | M5: INE470A01017
A6: 3PLAND | B6: EQ | C6: 7.95 | D6: 8.3 | E6: 7.9 | F6: 8.3 | G6: 8.3 | H6: 8.3 | I6: 845 | J6: 6729.1 | K6: 2019-07-09 | L6: 8 | M6: INE105C01023
A7: 5PAISA | B7: EQ | C7: 220 | D7: 223.9 | E7: 215 | F7: 222.2 | G7: 223.65 | H7: 221.7 | I7: 1571 | J7: 346560.35 | K7: 2019-07-09 | L7: 134 | M7: INE618L01018
A8: 63MOONS | B8: EQ | C8: 100 | D8: 101.6 | E8: 96.8 | F8: 97.1 | G8: 97 | H8: 101.6 | I8: 231028 | J8: 22948912.1 | K8: 2019-07-09 | L8: 2033 | M8: INE111B01023
A9: 8KMILES | B9: EQ | C9: 88.9 | D9: 89.8 | E9: 84 | F9: 85.35 | G9: 85.85 | H9: 87.75 | I9: 112976 | J9: 9728950.15 | K9: 2019-07-09 | L9: 2052 | M9: INE650K01021
A10: A2ZINFRA | B10: EQ | C10: 10.6 | D10: 11.25 | E10: 10.6 | F10: 10.95 | G10: 10.9 | H10: 10.95 | I10: 121245 | J10: 1335196.55 | K10: 2019-07-09 | L10: 323 | M10: INE619I01012
A11: AARTIDRUGS | B11: EQ | C11: 506.25 | D11: 529 | E11: 506.25 | F11: 524.75 | G11: 529 | H11: 509.3 | I11: 6511 | J11: 3368714.25 | K11: 2019-07-09 | L11: 845 | M11: INE767A01016
A12: AARTIIND | B12: BE | C12: 1733.05 | D12: 1733.05 | E12: 1655.25 | F12: 1672.8 | G12: 1687 | H12: 1733.05 | I12: 82038 | J12: 138090382 | K12: 2019-07-09 | L12: 3259 | M12: INE769A01020
A13: AARVEEDEN | B13: EQ | C13: 17.9 | D13: 19.95 | E13: 17.15 | F13: 18.85 | G13: 19.1 | H13: 18.15 | I13: 2128 | J13: 39394.65 | K13: 2019-07-09 | L13: 61 | M13: INE273D01019
A14: AAVAS | B14: EQ | C14: 1513.9 | D14: 1540 | E14: 1485 | F14: 1496.65 | G14: 1489 | H14: 1498.15 | I14: 74064 | J14: 112015111.3 | K14: 2019-07-09 | L14: 3541 | M14: INE216P01012
A15: ABAN | B15: EQ | C15: 34.1 | D15: 37.4 | E15: 33.9 | F15: 37.4 | G15: 37.4 | H15: 35.65 | I15: 47379 | J15: 1715772.1 | K15: 2019-07-09 | L15: 613 | M15: INE421A01028
A16: ABB | B16: EQ | C16: 1485.1 | D16: 1558 | E16: 1474.5 | F16: 1531.6 | G16: 1524 | H16: 1482.2 | I16: 202265 | J16: 310523502.4 | K16: 2019-07-09 | L16: 10534 | M16: INE117A01022
A17: ABBOTINDIA | B17: EQ | C17: 8790 | D17: 8790 | E17: 8630.05 | F17: 8735.4 | G17: 8750 | H17: 8677 | I17: 1880 | J17: 16362499.1 | K17: 2019-07-09 | L17: 518 | M17: INE358A01014
A18: ABCAPITAL | B18: EQ | C18: 89.1 | D18: 91 | E18: 88.1 | F18: 89.9 | G18: 89.9 | H18: 89.1 | I18: 986561 | J18: 88762829.95 | K18: 2019-07-09 | L18: 19058 | M18: INE674K01013
A19: ABFRL | B19: EQ | C19: 209.95 | D19: 210.1 | E19: 202.2 | F19: 203.3 | G19: 203.4 | H19: 210.25 | I19: 304285 | J19: 62345769.75 | K19: 2019-07-09 | L19: 16088 | M19: INE647O01011
A20: ABSLNN50ET | B20: EQ | C20: 273.8 | D20: 273.8 | E20: 267 | F20: 268 | G20: 268 | H20: 283.63 | I20: 5 | J20: 1345.12 | K20: 2019-07-09 | L20: 5 | M20: INF209KB1B87
A21: ACC | B21: EQ | C21: 1504 | D21: 1559.8 | E21: 1480.65 | F21: 1554.3 | G21: 1554.3 | H21: 1502 | I21: 903575 | J21: 1381271551 | K21: 2019-07-09 | L21: 36894 | M21: INE012A01025
A22: ACCELYA | B22: EQ | C22: 862 | D22: 875.45 | E22: 856.1 | F22: 857.55 | G22: 856.6 | H22: 862 | I22: 1534 | J22: 1319928 | K22: 2019-07-09 | L22: 337 | M22: INE793A01012
A23: ACE | B23: EQ | C23: 88 | D23: 90 | E23: 86.4 | F23: 87.05 | G23: 87 | H23: 88 | I23: 133085 | J23: 11732259.55 | K23: 2019-07-09 | L23: 1722 | M23: INE731H01025
A24: ADANIENT | B24: EQ | C24: 138.05 | D24: 143.2 | E24: 135.75 | F24: 141.15 | G24: 142.1 | H24: 138.9 | I24: 7317997 | J24: 1023192144 | K24: 2019-07-09 | L24: 41597 | M24: INE423A01024
A25: ADANIGAS | B25: EQ | C25: 163.35 | D25: 167.4 | E25: 158.6 | F25: 164.4 | G25: 163.7 | H25: 163.45 | I25: 863251 | J25: 141999159.3 | K25: 2019-07-09 | L25: 9468 | M25: INE399L01023
A26: ADANIGREEN | B26: EQ | C26: 44.7 | D26: 51.8 | E26: 43.25 | F26: 49.6 | G26: 49.5 | H26: 44.85 | I26: 5877043 | J26: 286803123.8 | K26: 2019-07-09 | L26: 29498 | M26: INE364U01010
A27: ADANIPORTS | B27: EQ | C27: 397.7 | D27: 406 | E27: 392.65 | F27: 405 | G27: 405.35 | H27: 397.8 | I27: 1952280 | J27: 780684374.6 | K27: 2019-07-09 | L27: 25954 | M27: INE742F01042
A28: ADANIPOWER | B28: EQ | C28: 61.45 | D28: 68.75 | E28: 60.8 | F28: 67.15 | G28: 67.45 | H28: 62.1 | I28: 51654011 | J28: 3393819490 | K28: 2019-07-09 | L28: 100010 | M28: INE814H01011
A29: ADANITRANS | B29: EQ | C29: 223.3 | D29: 226.45 | E29: 220.7 | F29: 221.8 | G29: 223 | H29: 222.75 | I29: 97016 | J29: 21699482.45 | K29: 2019-07-09 | L29: 4743 | M29: INE931S01010
A30: ADFFOODS | B30: EQ | C30: 275.2 | D30: 288.9 | E30: 275 | F30: 283.05 | G30: 282.3 | H30: 278.25 | I30: 26571 | J30: 7513987.65 | K30: 2019-07-09 | L30: 880 | M30: INE982B01019
A31: ADHUNIK | B31: EQ | C31: 1.3 | D31: 1.35 | E31: 1.3 | F31: 1.35 | G31: 1.35 | H31: 1.35 | I31: 17933 | J31: 23431.85 | K31: 2019-07-09 | L31: 37 | M31: INE400H01019
A32: ADHUNIKIND | B32: EQ | C32: 84.75 | D32: 86.1 | E32: 82.85 | F32: 83.25 | G32: 82.85 | H32: 84.55 | I32: 2567 | J32: 217005.85 | K32: 2019-07-09 | L32: 77 | M32: INE452L01012
A33: ADLABS | B33: EQ | C33: 5.2 | D33: 5.2 | E33: 4.95 | F33: 5.05 | G33: 5.1 | H33: 5.2 | I33: 46978 | J33: 239355.75 | K33: 2019-07-09 | L33: 132 | M33: INE172N01012
A34: ADORWELD | B34: EQ | C34: 329.3 | D34: 340 | E34: 324.8 | F34: 337.25 | G34: 340 | H34: 329.4 | I34: 2487 | J34: 831254.75 | K34: 2019-07-09 | L34: 139 | M34: INE045A01017
A35: ADROITINFO | B35: EQ | C35: 10.1 | D35: 10.1 | E35: 10.1 | F35: 10.1 | G35: 10.1 | H35: 10.6 | I35: 50 | J35: 505 | K35: 2019-07-09 | L35: 1 | M35: INE737B01033
A36: ADSL | B36: EQ | C36: 13 | D36: 13.75 | E36: 12.9 | F36: 13.65 | G36: 13.5 | H36: 12.9 | I36: 7667 | J36: 102878.9 | K36: 2019-07-09 | L36: 26 | M36: INE102I01027
A37: ADVANIHOTR | B37: EQ | C37: 56.75 | D37: 58.05 | E37: 56.15 | F37: 57.35 | G37: 57.45 | H37: 57.45 | I37: 4298 | J37: 244721.4 | K37: 2019-07-09 | L37: 113 | M37: INE199C01026
A38: ADVENZYMES | B38: EQ | C38: 165 | D38: 165.85 | E38: 161.65 | F38: 163.55 | G38: 163.3 | H38: 164.95 | I38: 45079 | J38: 7390009.25 | K38: 2019-07-09 | L38: 1131 | M38: INE837H01020
A39: AEGISCHEM | B39: EQ | C39: 212.9 | D39: 215.25 | E39: 210 | F39: 214.05 | G39: 214.8 | H39: 211.55 | I39: 104901 | J39: 22354232.55 | K39: 2019-07-09 | L39: 6302 | M39: INE208C01025
A40: AGARIND | B40: EQ | C40: 122 | D40: 125 | E40: 117.1 | F40: 123.25 | G40: 122 | H40: 121.85 | I40: 5584 | J40: 684231.35 | K40: 2019-07-09 | L40: 106 | M40: INE204E01012
A41: AGCNET | B41: EQ | C41: 110 | D41: 110.45 | E41: 98 | F41: 104 | G41: 105 | H41: 111.5 | I41: 6313 | J41: 657587.55 | K41: 2019-07-09 | L41: 224 | M41: INE676A01019
A42: AGLSL | B42: EQ | C42: 49.1 | D42: 55 | E42: 49.1 | F42: 54 | G42: 54 | H42: 53.95 | I42: 367 | J42: 19317.3 | K42: 2019-07-09 | L42: 36 | M42: INE517U01013
A43: AGRITECH | B43: EQ | C43: 53.15 | D43: 57.5 | E43: 52.7 | F43: 54.15 | G43: 54.3 | H43: 54.7 | I43: 15225 | J43: 825614.55 | K43: 2019-07-09 | L43: 256 | M43: INE449G01018
A44: AGROPHOS | B44: BE | C44: 87.2 | D44: 91.55 | E44: 86.95 | F44: 88 | G44: 88 | H44: 87.2 | I44: 5338 | J44: 468393.9 | K44: 2019-07-09 | L44: 57 | M44: INE740V01019
A45: AHLEAST | B45: EQ | C45: 183 | D45: 190 | E45: 183 | F45: 188.3 | G45: 183.15 | H45: 192.35 | I45: 90 | J45: 16897.35 | K45: 2019-07-09 | L45: 43 | M45: INE926K01017
A46: AHLUCONT | B46: EQ | C46: 323 | D46: 332 | E46: 323 | F46: 330.75 | G46: 331.85 | H46: 334.4 | I46: 2640 | J46: 869880.3 | K46: 2019-07-09 | L46: 152 | M46: INE758C01029
A47: AHLWEST | B47: EQ | C47: 334.9 | D47: 334.9 | E47: 331.4 | F47: 332.1 | G47: 332.85 | H47: 327.85 | I47: 4 | J47: 1330.6 | K47: 2019-07-09 | L47: 4 | M47: INE915K01010
A48: AIAENG | B48: EQ | C48: 1770.1 | D48: 1809.95 | E48: 1765 | F48: 1775.3 | G48: 1772 | H48: 1797.2 | I48: 11388 | J48: 20312120.35 | K48: 2019-07-09 | L48: 4639 | M48: INE212H01026
A49: AIONJSW | B49: EQ | C49: 18.6 | D49: 19.4 | E49: 17.2 | F49: 19.1 | G49: 19.15 | H49: 18.6 | I49: 18823 | J49: 356077.8 | K49: 2019-07-09 | L49: 325 | M49: INE743C01021
A50: AIRAN | B50: EQ | C50: 21.7 | D50: 22.5 | E50: 21.7 | F50: 22.3 | G50: 22.5 | H50: 21.75 | I50: 42571 | J50: 941958.7 | K50: 2019-07-09 | L50: 72 | M50: INE645W01026
A51: AJANTPHARM | B51: EQ | C51: 929.7 | D51: 929.7 | E51: 911.1 | F51: 916.2 | G51: 914.45 | H51: 921.8 | I51: 204262 | J51: 187142194.8 | K51: 2019-07-09 | L51: 12731 | M51: INE031B01049
A52: AJMERA | B52: EQ | C52: 157 | D52: 162.1 | E52: 156.6 | F52: 160 | G52: 159.5 | H52: 158.5 | I52: 21936 | J52: 3497181.8 | K52: 2019-07-09 | L52: 796 | M52: INE298G01027
A53: AKSHARCHEM | B53: EQ | C53: 283.85 | D53: 292 | E53: 265 | F53: 272.85 | G53: 270 | H53: 271.5 | I53: 2178 | J53: 607285 | K53: 2019-07-09 | L53: 215 | M53: INE542B01011
A54: AKSHOPTFBR | B54: EQ | C54: 11.55 | D54: 11.8 | E54: 11.2 | F54: 11.6 | G54: 11.65 | H54: 11.55 | I54: 307680 | J54: 3561049.85 | K54: 2019-07-09 | L54: 749 | M54: INE523B01011
A55: AKZOINDIA | B55: EQ | C55: 1754 | D55: 1768.4 | E55: 1742.15 | F55: 1748 | G55: 1749.4 | H55: 1736.1 | I55: 1485 | J55: 2604320.75 | K55: 2019-07-09 | L55: 443 | M55: INE133A01011
A56: ALANKIT | B56: EQ | C56: 28.5 | D56: 29.3 | E56: 27.25 | F56: 28.85 | G56: 28.9 | H56: 28.15 | I56: 470826 | J56: 13188821.7 | K56: 2019-07-09 | L56: 3640 | M56: INE914E01040
A57: ALBERTDAVD | B57: EQ | C57: 381.1 | D57: 387.95 | E57: 381 | F57: 383.95 | G57: 384 | H57: 383.9 | I57: 1973 | J57: 755800.3 | K57: 2019-07-09 | L57: 86 | M57: INE155C01010
A58: ALBK | B58: EQ | C58: 46.5 | D58: 49.5 | E58: 45.8 | F58: 48.35 | G58: 49.4 | H58: 47.05 | I58: 3533905 | J58: 168003962.3 | K58: 2019-07-09 | L58: 8130 | M58: INE428A01015
A59: ALCHEM | B59: BE | C59: 1.15 | D59: 1.2 | E59: 1.1 | F59: 1.2 | G59: 1.2 | H59: 1.15 | I59: 3180 | J59: 3783.4 | K59: 2019-07-09 | L59: 10 | M59: INE964B01033
A60: ALEMBICLTD | B60: EQ | C60: 42.75 | D60: 43.2 | E60: 42.6 | F60: 42.8 | G60: 43.05 | H60: 42.95 | I60: 90826 | J60: 3895238.35 | K60: 2019-07-09 | L60: 767 | M60: INE426A01027
A61: ALICON | B61: EQ | C61: 532 | D61: 549.95 | E61: 532 | F61: 549.45 | G61: 549.95 | H61: 541.7 | I61: 604 | J61: 326287.1 | K61: 2019-07-09 | L61: 99 | M61: INE062D01024
A62: ALKALI | B62: EQ | C62: 40.15 | D62: 41 | E62: 39.35 | F62: 39.65 | G62: 39.45 | H62: 39.55 | I62: 1175 | J62: 46919.85 | K62: 2019-07-09 | L62: 63 | M62: INE773I01017
A63: ALKEM | B63: EQ | C63: 1770 | D63: 1778 | E63: 1743 | F63: 1772.95 | G63: 1770 | H63: 1772 | I63: 8391 | J63: 14836747.25 | K63: 2019-07-09 | L63: 2625 | M63: INE540L01014
A64: ALKYLAMINE | B64: EQ | C64: 806 | D64: 829.95 | E64: 806 | F64: 820 | G64: 817.15 | H64: 819.8 | I64: 32234 | J64: 26432499.5 | K64: 2019-07-09 | L64: 138 | M64: INE150B01021
A65: ALLCARGO | B65: EQ | C65: 99 | D65: 101.1 | E65: 95.85 | F65: 97.2 | G65: 97.35 | H65: 99.4 | I65: 116774 | J65: 11444189.45 | K65: 2019-07-09 | L65: 1699 | M65: INE418H01029
A66: ALLSEC | B66: EQ | C66: 299.35 | D66: 304.55 | E66: 280.95 | F66: 304.55 | G66: 304.55 | H66: 290.05 | I66: 1693 | J66: 499537.55 | K66: 2019-07-09 | L66: 83 | M66: INE835G01018
A67: ALOKTEXT | B67: EQ | C67: 3.3 | D67: 3.35 | E67: 3.15 | F67: 3.25 | G67: 3.25 | H67: 3.3 | I67: 3252405 | J67: 10647363.5 | K67: 2019-07-09 | L67: 1164 | M67: INE270A01011
A68: ALPA | B68: EQ | C68: 18.5 | D68: 18.5 | E68: 18 | F68: 18 | G68: 18.15 | H68: 18.3 | I68: 10898 | J68: 199356.75 | K68: 2019-07-09 | L68: 69 | M68: INE385I01010
A69: ALPHAGEO | B69: EQ | C69: 384.1 | D69: 388.6 | E69: 375.75 | F69: 382.3 | G69: 382 | H69: 384.15 | I69: 4801 | J69: 1828273.35 | K69: 2019-07-09 | L69: 553 | M69: INE137C01018
A70: ALPSINDUS | B70: BE | C70: 0.8 | D70: 0.8 | E70: 0.8 | F70: 0.8 | G70: 0.8 | H70: 0.8 | I70: 1237 | J70: 989.6 | K70: 2019-07-09 | L70: 6 | M70: INE093B01015
A71: AMARAJABAT | B71: EQ | C71: 633.2 | D71: 648.65 | E71: 627.3 | F71: 644.95 | G71: 645 | H71: 636.1 | I71: 372955 | J71: 237449624.7 | K71: 2019-07-09 | L71: 9797 | M71: INE885A01032
A72: AMBER | B72: EQ | C72: 820 | D72: 827.95 | E72: 806 | F72: 821.7 | G72: 821.2 | H72: 820.35 | I72: 17967 | J72: 14647216.15 | K72: 2019-07-09 | L72: 1325 | M72: INE371P01015
A73: AMBIKCO | B73: EQ | C73: 1036 | D73: 1050.05 | E73: 1023 | F73: 1046.8 | G73: 1050 | H73: 1035.85 | I73: 3090 | J73: 3208773.65 | K73: 2019-07-09 | L73: 333 | M73: INE540G01014
A74: AMBUJACEM | B74: EQ | C74: 205.75 | D74: 211.9 | E74: 203.75 | F74: 211.1 | G74: 210.6 | H74: 205.4 | I74: 2289398 | J74: 475675434.6 | K74: 2019-07-09 | L74: 39742 | M74: INE079A01024
A75: AMDIND | B75: EQ | C75: 17.7 | D75: 17.85 | E75: 17.55 | F75: 17.8 | G75: 17.8 | H75: 17.3 | I75: 2840 | J75: 50109.55 | K75: 2019-07-09 | L75: 42 | M75: INE005I01014
A76: AMJLAND | B76: EQ | C76: 17.05 | D76: 17.8 | E76: 17 | F76: 17.2 | G76: 17.5 | H76: 17.5 | I76: 12172 | J76: 209668.25 | K76: 2019-07-09 | L76: 68 | M76: INE606A01024
A77: AMRUTANJAN | B77: EQ | C77: 292.65 | D77: 298.5 | E77: 290.6 | F77: 291.9 | G77: 292.1 | H77: 294.8 | I77: 9928 | J77: 2923322.65 | K77: 2019-07-09 | L77: 612 | M77: INE098F01031
A78: ANANTRAJ | B78: EQ | C78: 29.6 | D78: 30.35 | E78: 29.5 | F78: 29.7 | G78: 29.5 | H78: 30 | I78: 285509 | J78: 8538113.65 | K78: 2019-07-09 | L78: 1114 | M78: INE242C01024
A79: ANDHRABANK | B79: EQ | C79: 22.95 | D79: 23.15 | E79: 22.6 | F79: 23 | G79: 23 | H79: 22.95 | I79: 465913 | J79: 10683109.65 | K79: 2019-07-09 | L79: 1474 | M79: INE434A01013
A80: ANDHRACEMT | B80: EQ | C80: 3.8 | D80: 3.95 | E80: 3.8 | F80: 3.9 | G80: 3.9 | H80: 3.9 | I80: 15352 | J80: 59690.9 | K80: 2019-07-09 | L80: 40 | M80: INE666E01012
A81: ANDHRSUGAR | B81: EQ | C81: 305.15 | D81: 312.05 | E81: 305.15 | F81: 310.3 | G81: 310 | H81: 309.85 | I81: 9858 | J81: 3059349.3 | K81: 2019-07-09 | L81: 305 | M81: INE715B01013
A82: ANIKINDS | B82: EQ | C82: 10.95 | D82: 10.95 | E82: 10 | F82: 10.05 | G82: 10 | H82: 10.25 | I82: 5024 | J82: 52372 | K82: 2019-07-09 | L82: 47 | M82: INE087B01017
A83: ANKITMETAL | B83: BE | C83: 0.4 | D83: 0.45 | E83: 0.4 | F83: 0.45 | G83: 0.45 | H83: 0.45 | I83: 550 | J83: 222.5 | K83: 2019-07-09 | L83: 2 | M83: INE106I01010
A84: ANSALAPI | B84: EQ | C84: 5.05 | D84: 5.4 | E84: 5.05 | F84: 5.2 | G84: 5.1 | H84: 5.25 | I84: 26658 | J84: 138487.2 | K84: 2019-07-09 | L84: 102 | M84: INE436A01026
A85: ANSALHSG | B85: EQ | C85: 5.6 | D85: 5.8 | E85: 5.4 | F85: 5.7 | G85: 5.65 | H85: 5.6 | I85: 38156 | J85: 214233.3 | K85: 2019-07-09 | L85: 113 | M85: INE880B01015
A86: ANTGRAPHIC | B86: BE | C86: 0.9 | D86: 0.9 | E86: 0.85 | F86: 0.9 | G86: 0.9 | H86: 0.9 | I86: 29005 | J86: 24876.7 | K86: 2019-07-09 | L86: 32 | M86: INE414B01021
A87: ANUP | B87: EQ | C87: 470 | D87: 482 | E87: 470 | F87: 474.75 | G87: 476.6 | H87: 480 | I87: 5096 | J87: 2434338.7 | K87: 2019-07-09 | L87: 216 | M87: INE294Z01018
A88: APARINDS | B88: EQ | C88: 555 | D88: 578 | E88: 555 | F88: 570.4 | G88: 576 | H88: 568.2 | I88: 12225 | J88: 6927921.05 | K88: 2019-07-09 | L88: 5671 | M88: INE372A01015
A89: APCL | B89: EQ | C89: 156.4 | D89: 164 | E89: 154.7 | F89: 161.65 | G89: 163.7 | H89: 156.55 | I89: 3512 | J89: 568973.6 | K89: 2019-07-09 | L89: 149 | M89: INE071F01012
A90: APCOTEXIND | B90: EQ | C90: 220.8 | D90: 220.8 | E90: 211.3 | F90: 217.45 | G90: 215.55 | H90: 219.9 | I90: 6488 | J90: 1403330.75 | K90: 2019-07-09 | L90: 416 | M90: INE116A01032
A91: APEX | B91: EQ | C91: 249.6 | D91: 254.35 | E91: 247.55 | F91: 252.2 | G91: 252.55 | H91: 250.95 | I91: 45108 | J91: 11295981.25 | K91: 2019-07-09 | L91: 2453 | M91: INE346W01013
A92: APLAPOLLO | B92: EQ | C92: 1625 | D92: 1630.95 | E92: 1570 | F92: 1597.95 | G92: 1588.6 | H92: 1613.95 | I92: 52676 | J92: 84277629.55 | K92: 2019-07-09 | L92: 2287 | M92: INE702C01019
A93: APLLTD | B93: EQ | C93: 545 | D93: 546 | E93: 525.05 | F93: 532.15 | G93: 526 | H93: 539.65 | I93: 46712 | J93: 24981898.15 | K93: 2019-07-09 | L93: 2883 | M93: INE901L01018
A94: APOLLO | B94: EQ | C94: 114.55 | D94: 116 | E94: 113.25 | F94: 114.3 | G94: 113.25 | H94: 114.55 | I94: 8223 | J94: 941445.55 | K94: 2019-07-09 | L94: 264 | M94: INE713T01010
A95: APOLLOHOSP | B95: EQ | C95: 1303.25 | D95: 1352.9 | E95: 1302.75 | F95: 1328.65 | G95: 1327.7 | H95: 1303.25 | I95: 806802 | J95: 1068643957 | K95: 2019-07-09 | L95: 41423 | M95: INE437A01024
A96: APOLLOTYRE | B96: EQ | C96: 186.2 | D96: 189.5 | E96: 185.15 | F96: 186.35 | G96: 187 | H96: 187.45 | I96: 1763656 | J96: 329834260.4 | K96: 2019-07-09 | L96: 16017 | M96: INE438A01022
A97: APOLSINHOT | B97: EQ | C97: 924.95 | D97: 925 | E97: 883 | F97: 884 | G97: 883.65 | H97: 899.3 | I97: 1556 | J97: 1389978.15 | K97: 2019-07-09 | L97: 114 | M97: INE451F01024
A98: APTECHT | B98: EQ | C98: 137.4 | D98: 141.7 | E98: 136.6 | F98: 140.5 | G98: 140.35 | H98: 138.15 | I98: 129559 | J98: 17948630.9 | K98: 2019-07-09 | L98: 3377 | M98: INE266F01018
A99: ARCHIDPLY | B99: EQ | C99: 30.1 | D99: 30.5 | E99: 29.4 | F99: 30.35 | G99: 30.5 | H99: 30.65 | I99: 11274 | J99: 338117.6 | K99: 2019-07-09 | L99: 249 | M99: INE877I01016
A100: ARCHIES | B100: EQ | C100: 20.15 | D100: 20.35 | E100: 20 | F100: 20.2 | G100: 20.2 | H100: 20.2 | I100: 11113 | J100: 224075 | K100: 2019-07-09 | L100: 96 | M100: INE731A01020
A101: ARCOTECH | B101: EQ | C101: 3 | D101: 3 | E101: 2.85 | F101: 2.9 | G101: 2.9 | H101: 2.95 | I101: 21971 | J101: 63640.05 | K101: 2019-07-09 | L101: 55 | M101: INE574I01035
A102: ARIES | B102: EQ | C102: 61.1 | D102: 62.3 | E102: 59.75 | F102: 61.05 | G102: 61.45 | H102: 59.65 | I102: 12006 | J102: 732679.6 | K102: 2019-07-09 | L102: 256 | M102: INE298I01015
A103: ARIHANT | B103: EQ | C103: 23 | D103: 23.95 | E103: 21.35 | F103: 22.25 | G103: 22.7 | H103: 23.25 | I103: 1557 | J103: 34997.15 | K103: 2019-07-09 | L103: 24 | M103: INE413D01011
A104: ARIHANTSUP | B104: EQ | C104: 50.05 | D104: 51.5 | E104: 48 | F104: 48.3 | G104: 48.3 | H104: 50.5 | I104: 48983 | J104: 2397335.45 | K104: 2019-07-09 | L104: 353 | M104: INE643K01018
A105: ARMANFIN | B105: EQ | C105: 411.7 | D105: 416.3 | E105: 408 | F105: 413.9 | G105: 415 | H105: 411.6 | I105: 1702 | J105: 705085.9 | K105: 2019-07-09 | L105: 60 | M105: INE109C01017
A106: AROGRANITE | B106: EQ | C106: 43.15 | D106: 45.5 | E106: 43.15 | F106: 43.9 | G106: 44 | H106: 43.65 | I106: 9042 | J106: 400634.2 | K106: 2019-07-09 | L106: 92 | M106: INE210C01013
A107: ARROWGREEN | B107: BE | C107: 78 | D107: 78 | E107: 78 | F107: 78 | G107: 78 | H107: 82.1 | I107: 805 | J107: 62790 | K107: 2019-07-09 | L107: 14 | M107: INE570D01018
A108: ARROWTEX | B108: EQ | C108: 12.2 | D108: 12.5 | E108: 11.7 | F108: 11.85 | G108: 11.85 | H108: 12.2 | I108: 2100 | J108: 25052.9 | K108: 2019-07-09 | L108: 45 | M108: INE933J01015
A109: ARSHIYA | B109: EQ | C109: 16.5 | D109: 16.5 | E109: 14.55 | F109: 15.2 | G109: 15.5 | H109: 15.95 | I109: 69643 | J109: 1058325.45 | K109: 2019-07-09 | L109: 340 | M109: INE968D01022
A110: ARSSINFRA | B110: EQ | C110: 35.6 | D110: 37.7 | E110: 35.55 | F110: 36.4 | G110: 36.15 | H110: 37.35 | I110: 2390 | J110: 87460.95 | K110: 2019-07-09 | L110: 48 | M110: INE267I01010
A111: ARVIND | B111: EQ | C111: 61.9 | D111: 63.65 | E111: 61.75 | F111: 63.2 | G111: 63.55 | H111: 62.75 | I111: 3245884 | J111: 204392972.9 | K111: 2019-07-09 | L111: 12907 | M111: INE034A01011
A112: ARVINDFASN | B112: EQ | C112: 666 | D112: 689.85 | E112: 648.15 | F112: 676.3 | G112: 686 | H112: 665.05 | I112: 28162 | J112: 18753300.25 | K112: 2019-07-09 | L112: 3181 | M112: INE955V01021
A113: ARVSMART | B113: EQ | C113: 93.8 | D113: 99.4 | E113: 92.25 | F113: 98.05 | G113: 98 | H113: 94.6 | I113: 17012 | J113: 1619406.25 | K113: 2019-07-09 | L113: 798 | M113: INE034S01021
A114: ASAHIINDIA | B114: EQ | C114: 210.65 | D114: 211 | E114: 209 | F114: 210.05 | G114: 210.1 | H114: 211.3 | I114: 8742 | J114: 1836131.8 | K114: 2019-07-09 | L114: 272 | M114: INE439A01020
A115: ASAHISONG | B115: EQ | C115: 133.05 | D115: 143 | E115: 133 | F115: 140.8 | G115: 140 | H115: 132.95 | I115: 3603 | J115: 496555.15 | K115: 2019-07-09 | L115: 161 | M115: INE228I01012
A116: ASAL | B116: EQ | C116: 42.75 | D116: 43 | E116: 42.7 | F116: 42.75 | G116: 42.7 | H116: 42.7 | I116: 645 | J116: 27585.9 | K116: 2019-07-09 | L116: 20 | M116: INE900C01027
A117: ASHAPURMIN | B117: EQ | C117: 18 | D117: 18.5 | E117: 17.75 | F117: 18.25 | G117: 18.45 | H117: 18.45 | I117: 23021 | J117: 416188.35 | K117: 2019-07-09 | L117: 132 | M117: INE348A01023
A118: ASHIANA | B118: EQ | C118: 117 | D118: 117.5 | E118: 112.35 | F118: 115.8 | G118: 116 | H118: 116.55 | I118: 97557 | J118: 11296056 | K118: 2019-07-09 | L118: 4774 | M118: INE365D01021
A119: ASHIMASYN | B119: EQ | C119: 9.3 | D119: 9.8 | E119: 9.25 | F119: 9.4 | G119: 9.5 | H119: 9.65 | I119: 30332 | J119: 286956.25 | K119: 2019-07-09 | L119: 223 | M119: INE440A01010
A120: ASHOKA | B120: EQ | C120: 132.65 | D120: 138.95 | E120: 129.15 | F120: 134.8 | G120: 134.85 | H120: 132.3 | I120: 148336 | J120: 19947765.05 | K120: 2019-07-09 | L120: 3714 | M120: INE442H01029
A121: ASHOKLEY | B121: EQ | C121: 85.1 | D121: 86.2 | E121: 82.85 | F121: 83.8 | G121: 83.7 | H121: 84.8 | I121: 17891519 | J121: 1503093469 | K121: 2019-07-09 | L121: 68893 | M121: INE208A01029
A122: ASIANHOTNR | B122: EQ | C122: 118.05 | D122: 126.75 | E122: 118.05 | F122: 125.9 | G122: 125.9 | H122: 125.55 | I122: 563 | J122: 70122.15 | K122: 2019-07-09 | L122: 290 | M122: INE363A01022
A123: ASIANPAINT | B123: EQ | C123: 1344.9 | D123: 1344.9 | E123: 1291.25 | F123: 1321 | G123: 1321 | H123: 1340.25 | I123: 2037332 | J123: 2663303960 | K123: 2019-07-09 | L123: 78098 | M123: INE021A01026
A124: ASIANTILES | B124: EQ | C124: 227.8 | D124: 230.2 | E124: 219 | F124: 220.85 | G124: 221 | H124: 229.8 | I124: 196581 | J124: 44078736.95 | K124: 2019-07-09 | L124: 3259 | M124: INE022I01019
A125: ASPINWALL | B125: EQ | C125: 135 | D125: 148.4 | E125: 135 | F125: 143.55 | G125: 144.95 | H125: 141.45 | I125: 1919 | J125: 271952.8 | K125: 2019-07-09 | L125: 65 | M125: INE991I01015
A126: ASSAMCO | B126: BE | C126: 1.55 | D126: 1.55 | E126: 1.45 | F126: 1.45 | G126: 1.45 | H126: 1.5 | I126: 94409 | J126: 141531.2 | K126: 2019-07-09 | L126: 92 | M126: INE442A01024
A127: ASTEC | B127: EQ | C127: 438 | D127: 438 | E127: 423.55 | F127: 429.05 | G127: 426.1 | H127: 431.2 | I127: 1359 | J127: 584014.2 | K127: 2019-07-09 | L127: 184 | M127: INE563J01010
A128: ASTERDM | B128: EQ | C128: 116.95 | D128: 119.25 | E128: 115.1 | F128: 115.4 | G128: 115.45 | H128: 117.8 | I128: 180308 | J128: 21003041.65 | K128: 2019-07-09 | L128: 4047 | M128: INE914M01019
A129: ASTRAL | B129: EQ | C129: 1281.2 | D129: 1318 | E129: 1277.55 | F129: 1292.35 | G129: 1282.4 | H129: 1290 | I129: 49363 | J129: 64076992.35 | K129: 2019-07-09 | L129: 3413 | M129: INE006I01046
A130: ASTRAMICRO | B130: EQ | C130: 80.6 | D130: 84.8 | E130: 80.6 | F130: 82.4 | G130: 81.75 | H130: 82.05 | I130: 63071 | J130: 5218137.7 | K130: 2019-07-09 | L130: 1032 | M130: INE386C01029
A131: ASTRAZEN | B131: EQ | C131: 1979 | D131: 2039 | E131: 1915.3 | F131: 1999.85 | G131: 1993 | H131: 1969.95 | I131: 7170 | J131: 14313214.7 | K131: 2019-07-09 | L131: 1322 | M131: INE203A01020
A132: ASTRON | B132: EQ | C132: 111.15 | D132: 111.8 | E132: 108 | F132: 108.4 | G132: 108.5 | H132: 111.8 | I132: 171790 | J132: 18945585.5 | K132: 2019-07-09 | L132: 995 | M132: INE646X01014
A133: ATFL | B133: EQ | C133: 485 | D133: 503 | E133: 485 | F133: 499.25 | G133: 495.4 | H133: 495.7 | I133: 1304 | J133: 647148.35 | K133: 2019-07-09 | L133: 167 | M133: INE209A01019
A134: ATLANTA | B134: EQ | C134: 9.3 | D134: 9.75 | E134: 8.95 | F134: 9.15 | G134: 9.2 | H134: 9.3 | I134: 32145 | J134: 292195.75 | K134: 2019-07-09 | L134: 247 | M134: INE285H01022
A135: ATLASCYCLE | B135: BE | C135: 34.55 | D135: 36.5 | E135: 34.2 | F135: 35 | G135: 35 | H135: 36 | I135: 8344 | J135: 286882.65 | K135: 2019-07-09 | L135: 98 | M135: INE446A01025
A136: ATNINTER | B136: BE | C136: 0.05 | D136: 0.05 | E136: 0.05 | F136: 0.05 | G136: 0.05 | H136: 0.1 | I136: 4552 | J136: 227.6 | K136: 2019-07-09 | L136: 3 | M136: INE803A01027
A137: ATUL | B137: EQ | C137: 3912 | D137: 3960.1 | E137: 3853.75 | F137: 3901.1 | G137: 3899.95 | H137: 3913.8 | I137: 40119 | J137: 156451821.2 | K137: 2019-07-09 | L137: 3606 | M137: INE100A01010
A138: ATULAUTO | B138: EQ | C138: 271.9 | D138: 273.75 | E138: 271 | F138: 272.2 | G138: 272 | H138: 272.5 | I138: 6160 | J138: 1674611.25 | K138: 2019-07-09 | L138: 175 | M138: INE951D01028
A139: AUBANK | B139: EQ | C139: 684.7 | D139: 689 | E139: 660 | F139: 663.8 | G139: 667 | H139: 680.05 | I139: 182166 | J139: 121540303.6 | K139: 2019-07-09 | L139: 26012 | M139: INE949L01017
A140: AURIONPRO | B140: EQ | C140: 104.05 | D140: 105.9 | E140: 102.5 | F140: 103.85 | G140: 103.9 | H140: 105.95 | I140: 5059 | J140: 526205.35 | K140: 2019-07-09 | L140: 137 | M140: INE132H01018
A141: AUROPHARMA | B141: EQ | C141: 586 | D141: 607.5 | E141: 581.8 | F141: 603.8 | G141: 602.5 | H141: 586.8 | I141: 2938178 | J141: 1752304614 | K141: 2019-07-09 | L141: 62988 | M141: INE406A01037
A142: AUSOMENT | B142: EQ | C142: 33.05 | D142: 36.2 | E142: 33.05 | F142: 34.25 | G142: 34.1 | H142: 34.5 | I142: 1378 | J142: 47640.45 | K142: 2019-07-09 | L142: 51 | M142: INE218C01016
A143: AUTOAXLES | B143: EQ | C143: 1032.6 | D143: 1032.6 | E143: 1002.1 | F143: 1020.8 | G143: 1010 | H143: 1027.95 | I143: 17999 | J143: 18302755.65 | K143: 2019-07-09 | L143: 3796 | M143: INE449A01011
A144: AUTOIND | B144: EQ | C144: 51.55 | D144: 51.55 | E144: 50 | F144: 50.25 | G144: 50.9 | H144: 49.95 | I144: 7586 | J144: 384215.95 | K144: 2019-07-09 | L144: 272 | M144: INE718H01014
A145: AVADHSUGAR | B145: EQ | C145: 307 | D145: 317.8 | E145: 299.2 | F145: 303.3 | G145: 303.1 | H145: 306.7 | I145: 31274 | J145: 9661404.15 | K145: 2019-07-09 | L145: 1445 | M145: INE349W01017
A146: AVANTIFEED | B146: EQ | C146: 335 | D146: 342.1 | E146: 331.1 | F146: 338.3 | G146: 338.85 | H146: 336.35 | I146: 137745 | J146: 46560020.4 | K146: 2019-07-09 | L146: 4916 | M146: INE871C01038
A147: AVTNPL | B147: EQ | C147: 23.25 | D147: 24.5 | E147: 23.25 | F147: 24.2 | G147: 24 | H147: 23.7 | I147: 15766 | J147: 380177.2 | K147: 2019-07-09 | L147: 92 | M147: INE488D01021
A148: AXISBANK | B148: EQ | C148: 778.5 | D148: 788.8 | E148: 776.4 | F148: 786.2 | G148: 785.7 | H148: 782.9 | I148: 6448920 | J148: 5051927487 | K148: 2019-07-09 | L148: 121086 | M148: INE238A01034
A149: AXISCADES | B149: EQ | C149: 64.65 | D149: 64.85 | E149: 60.75 | F149: 62.4 | G149: 62.05 | H149: 64.3 | I149: 137573 | J149: 8793964.1 | K149: 2019-07-09 | L149: 5889 | M149: INE555B01013
A150: AXISGOLD | B150: EQ | C150: 3088 | D150: 3088 | E150: 2972.25 | F150: 2975.2 | G150: 2975.2 | H150: 3021.85 | I150: 163 | J150: 488568.65 | K150: 2019-07-09 | L150: 38 | M150: INF846K01347
A151: AXISNIFTY | B151: EQ | C151: 1180 | D151: 1190.06 | E151: 1178.7 | F151: 1189.48 | G151: 1189.48 | H151: 1186.8 | I151: 113 | J151: 133813.32 | K151: 2019-07-09 | L151: 17 | M151: INF846K01ZL0
A152: AYMSYNTEX | B152: EQ | C152: 33.6 | D152: 36.8 | E152: 33.6 | F152: 34.1 | G152: 34 | H152: 34 | I152: 5194 | J152: 181117.4 | K152: 2019-07-09 | L152: 74 | M152: INE193B01039
A153: BAFNAPHARM | B153: BE | C153: 5.1 | D153: 5.6 | E153: 5.1 | F153: 5.6 | G153: 5.6 | H153: 5.35 | I153: 1564 | J153: 8524.5 | K153: 2019-07-09 | L153: 11 | M153: INE878I01014
A154: BAGFILMS | B154: EQ | C154: 3.4 | D154: 3.5 | E154: 3.3 | F154: 3.35 | G154: 3.4 | H154: 3.5 | I154: 40137 | J154: 134912.8 | K154: 2019-07-09 | L154: 261 | M154: INE116D01028
A155: BAJAJ-AUTO | B155: EQ | C155: 2774 | D155: 2796.5 | E155: 2755 | F155: 2786.4 | G155: 2786 | H155: 2777.8 | I155: 253454 | J155: 703415107.8 | K155: 2019-07-09 | L155: 19782 | M155: INE917I01010
A156: BAJAJCON | B156: EQ | C156: 322.7 | D156: 324 | E156: 318.05 | F156: 319.85 | G156: 319.65 | H156: 320.1 | I156: 23145 | J156: 7428319.65 | K156: 2019-07-09 | L156: 1170 | M156: INE933K01021
A157: BAJAJELEC | B157: EQ | C157: 504 | D157: 507.5 | E157: 475 | F157: 481.65 | G157: 481.9 | H157: 503.55 | I157: 140475 | J157: 69061341.05 | K157: 2019-07-09 | L157: 5338 | M157: INE193E01025
A158: BAJAJFINSV | B158: EQ | C158: 7590 | D158: 7934.35 | E158: 7418.95 | F158: 7855.4 | G158: 7812 | H158: 7593.05 | I158: 1267816 | J158: 9800493326 | K158: 2019-07-09 | L158: 154282 | M158: INE918I01018
A159: BAJAJHIND | B159: EQ | C159: 7.3 | D159: 7.35 | E159: 7.15 | F159: 7.25 | G159: 7.25 | H159: 7.25 | I159: 791097 | J159: 5717143.85 | K159: 2019-07-09 | L159: 1000 | M159: INE306A01021
A160: BAJAJHLDNG | B160: EQ | C160: 3528 | D160: 3643.95 | E160: 3484.05 | F160: 3618.85 | G160: 3610 | H160: 3505.55 | I160: 43802 | J160: 155225945.2 | K160: 2019-07-09 | L160: 6541 | M160: INE118A01012
A161: BAJFINANCE | B161: EQ | C161: 3410 | D161: 3625 | E161: 3336.4 | F161: 3603.1 | G161: 3604 | H161: 3413.3 | I161: 5196125 | J161: 1.827488199e+10 | K161: 2019-07-09 | L161: 254951 | M161: INE296A01024
A162: BALAJITELE | B162: EQ | C162: 52 | D162: 54.15 | E162: 52 | F162: 53.05 | G162: 53.05 | H162: 52.95 | I162: 34574 | J162: 1839163.05 | K162: 2019-07-09 | L162: 340 | M162: INE794B01026
A163: BALAMINES | B163: EQ | C163: 352.45 | D163: 354.55 | E163: 346.6 | F163: 349.85 | G163: 351.5 | H163: 352.45 | I163: 10080 | J163: 3536371.5 | K163: 2019-07-09 | L163: 632 | M163: INE050E01027
A164: BALAXI | B164: BE | C164: 65.85 | D164: 65.85 | E164: 65.85 | F164: 65.85 | G164: 65.85 | H164: 62.75 | I164: 1002 | J164: 65981.7 | K164: 2019-07-09 | L164: 9 | M164: INE618N01014
A165: BALKRISHNA | B165: EQ | C165: 28.3 | D165: 28.95 | E165: 28 | F165: 28.5 | G165: 28.85 | H165: 28.2 | I165: 2627 | J165: 74955.9 | K165: 2019-07-09 | L165: 55 | M165: INE875R01011
A166: BALKRISIND | B166: EQ | C166: 717 | D166: 732.95 | E166: 711.05 | F166: 726.6 | G166: 729 | H166: 717.7 | I166: 398285 | J166: 287629826.7 | K166: 2019-07-09 | L166: 12798 | M166: INE787D01026
A167: BALLARPUR | B167: EQ | C167: 1.65 | D167: 1.75 | E167: 1.55 | F167: 1.65 | G167: 1.65 | H167: 1.7 | I167: 872990 | J167: 1397212.45 | K167: 2019-07-09 | L167: 803 | M167: INE294A01037
A168: BALMLAWRIE | B168: EQ | C168: 174.4 | D168: 180.6 | E168: 174.4 | F168: 180.05 | G168: 180 | H168: 175.4 | I168: 27581 | J168: 4911943.55 | K168: 2019-07-09 | L168: 790 | M168: INE164A01016
A169: BALPHARMA | B169: EQ | C169: 52.15 | D169: 52.5 | E169: 51 | F169: 52.05 | G169: 52.15 | H169: 52.65 | I169: 5071 | J169: 263902.7 | K169: 2019-07-09 | L169: 101 | M169: INE083D01012
A170: BALRAMCHIN | B170: EQ | C170: 154.8 | D170: 155.9 | E170: 148.65 | F170: 149.5 | G170: 148.9 | H170: 154.95 | I170: 912051 | J170: 139347085.2 | K170: 2019-07-09 | L170: 15996 | M170: INE119A01028
A171: BANARBEADS | B171: EQ | C171: 46.3 | D171: 46.3 | E171: 44 | F171: 44 | G171: 44 | H171: 44.1 | I171: 1853 | J171: 82640.4 | K171: 2019-07-09 | L171: 12 | M171: INE655B01011
A172: BANARISUG | B172: EQ | C172: 1420 | D172: 1430.05 | E172: 1405.1 | F172: 1416.85 | G172: 1429.95 | H172: 1433 | I172: 117 | J172: 165931.7 | K172: 2019-07-09 | L172: 102 | M172: INE459A01010
A173: BANCOINDIA | B173: EQ | C173: 117 | D173: 120 | E173: 117 | F173: 118.65 | G173: 119.9 | H173: 117.05 | I173: 11219 | J173: 1326433.2 | K173: 2019-07-09 | L173: 249 | M173: INE213C01025
A174: BANDHANBNK | B174: EQ | C174: 533 | D174: 538.15 | E174: 522 | F174: 524.2 | G174: 523 | H174: 531.75 | I174: 343479 | J174: 180917087.9 | K174: 2019-07-09 | L174: 29500 | M174: INE545U01014
A175: BANG | B175: EQ | C175: 36.9 | D175: 36.9 | E175: 34.7 | F175: 35.65 | G175: 36.1 | H175: 35.2 | I175: 10213 | J175: 358755.65 | K175: 2019-07-09 | L175: 333 | M175: INE863I01016
A176: BANKBARODA | B176: EQ | C176: 123.9 | D176: 126.4 | E176: 122.75 | F176: 125.9 | G176: 125.85 | H176: 124.65 | I176: 14869226 | J176: 1862611538 | K176: 2019-07-09 | L176: 48204 | M176: INE028A01039
A177: BANKBEES | B177: EQ | C177: 3118.5 | D177: 3130.5 | E177: 3102.5 | F177: 3123.34 | G177: 3122.2 | H177: 3126.87 | I177: 3632 | J177: 11326431.77 | K177: 2019-07-09 | L177: 468 | M177: INF732E01078
A178: BANKINDIA | B178: EQ | C178: 84.25 | D178: 86.5 | E178: 83.45 | F178: 85.6 | G178: 85.65 | H178: 84.45 | I178: 11074406 | J178: 943305317.2 | K178: 2019-07-09 | L178: 33589 | M178: INE084A01016
A179: BANSWRAS | B179: EQ | C179: 65.75 | D179: 67 | E179: 65.75 | F179: 66.55 | G179: 67 | H179: 66.35 | I179: 1050 | J179: 70021.6 | K179: 2019-07-09 | L179: 24 | M179: INE629D01012
A180: BARTRONICS | B180: EQ | C180: 3.5 | D180: 3.75 | E180: 3.4 | F180: 3.5 | G180: 3.5 | H180: 3.6 | I180: 7640 | J180: 26826.5 | K180: 2019-07-09 | L180: 44 | M180: INE855F01034
A181: BASF | B181: EQ | C181: 1259.6 | D181: 1263.85 | E181: 1215 | F181: 1239.65 | G181: 1245 | H181: 1244.9 | I181: 8382 | J181: 10381110.9 | K181: 2019-07-09 | L181: 1065 | M181: INE373A01013
A182: BASML | B182: EQ | C182: 145.1 | D182: 147.95 | E182: 141.7 | F182: 143.35 | G182: 142.15 | H182: 149.85 | I182: 384 | J182: 55203.05 | K182: 2019-07-09 | L182: 52 | M182: INE186H01014
A183: BATAINDIA | B183: EQ | C183: 1413.9 | D183: 1413.9 | E183: 1357.75 | F183: 1389.9 | G183: 1385 | H183: 1426.1 | I183: 856652 | J183: 1184325113 | K183: 2019-07-09 | L183: 37395 | M183: INE176A01028
A184: BAYERCROP | B184: EQ | C184: 3476.9 | D184: 3476.9 | E184: 3305.5 | F184: 3376.45 | G184: 3306.65 | H184: 3450.5 | I184: 12215 | J184: 41036340.55 | K184: 2019-07-09 | L184: 3077 | M184: INE462A01022
A185: BBL | B185: EQ | C185: 1018 | D185: 1025 | E185: 1000.95 | F185: 1012.2 | G185: 1005 | H185: 1005.1 | I185: 4999 | J185: 5066524.25 | K185: 2019-07-09 | L185: 603 | M185: INE464A01028
A186: BBTC | B186: EQ | C186: 905 | D186: 913.95 | E186: 893.8 | F186: 898.35 | G186: 902.95 | H186: 904.1 | I186: 40015 | J186: 36130503.45 | K186: 2019-07-09 | L186: 3074 | M186: INE050A01025
A187: BCG | B187: EQ | C187: 3.85 | D187: 4 | E187: 3.8 | F187: 3.8 | G187: 3.8 | H187: 3.95 | I187: 265624 | J187: 1011991.15 | K187: 2019-07-09 | L187: 159 | M187: INE425B01027
A188: BDL | B188: EQ | C188: 298.05 | D188: 309.45 | E188: 292 | F188: 304 | G188: 305.5 | H188: 297.8 | I188: 59053 | J188: 17835662.15 | K188: 2019-07-09 | L188: 3049 | M188: INE171Z01018
A189: BEARDSELL | B189: EQ | C189: 14 | D189: 16.5 | E189: 13.85 | F189: 14.4 | G189: 14.8 | H189: 13.95 | I189: 7098 | J189: 105951.55 | K189: 2019-07-09 | L189: 95 | M189: INE520H01022
A190: BEDMUTHA | B190: EQ | C190: 15.25 | D190: 15.7 | E190: 14.75 | F190: 15.6 | G190: 15.4 | H190: 14.6 | I190: 1604 | J190: 24693.7 | K190: 2019-07-09 | L190: 45 | M190: INE844K01012
A191: BEL | B191: EQ | C191: 101 | D191: 108.1 | E191: 100 | F191: 107.35 | G191: 106.65 | H191: 101.2 | I191: 23959721 | J191: 2518069053 | K191: 2019-07-09 | L191: 71426 | M191: INE263A01024
A192: BEML | B192: EQ | C192: 886.1 | D192: 889 | E192: 864 | F192: 877.35 | G192: 872.8 | H192: 884.55 | I192: 889203 | J192: 777315836.7 | K192: 2019-07-09 | L192: 24022 | M192: INE258A01016
A193: BEPL | B193: EQ | C193: 62.05 | D193: 64.35 | E193: 61.15 | F193: 63.05 | G193: 64 | H193: 63 | I193: 372572 | J193: 23268551.75 | K193: 2019-07-09 | L193: 2359 | M193: INE922A01025
A194: BERGEPAINT | B194: EQ | C194: 305 | D194: 307.9 | E194: 300.1 | F194: 306.75 | G194: 306.5 | H194: 305.8 | I194: 590563 | J194: 179330540.6 | K194: 2019-07-09 | L194: 10430 | M194: INE463A01038
A195: BFINVEST | B195: EQ | C195: 286 | D195: 291.8 | E195: 260.15 | F195: 264.2 | G195: 262 | H195: 284.3 | I195: 500110 | J195: 139339096.8 | K195: 2019-07-09 | L195: 13264 | M195: INE878K01010
A196: BFUTILITIE | B196: EQ | C196: 211.95 | D196: 220.95 | E196: 199.4 | F196: 202.65 | G196: 203.3 | H196: 207.45 | I196: 3131491 | J196: 661824133.2 | K196: 2019-07-09 | L196: 55398 | M196: INE243D01012
A197: BGLOBAL | B197: BE | C197: 1.75 | D197: 1.8 | E197: 1.7 | F197: 1.7 | G197: 1.7 | H197: 1.75 | I197: 31144 | J197: 53603.75 | K197: 2019-07-09 | L197: 36 | M197: INE224M01013
A198: BGRENERGY | B198: EQ | C198: 48.7 | D198: 50.95 | E198: 48 | F198: 50.45 | G198: 50.6 | H198: 48.6 | I198: 59077 | J198: 2915284.6 | K198: 2019-07-09 | L198: 908 | M198: INE661I01014
A199: BHAGERIA | B199: EQ | C199: 261 | D199: 264.95 | E199: 250 | F199: 253.75 | G199: 252.1 | H199: 261.45 | I199: 17263 | J199: 4427414.6 | K199: 2019-07-09 | L199: 794 | M199: INE354C01027
A200: BHAGYANGR | B200: EQ | C200: 24.75 | D200: 24.8 | E200: 24 | F200: 24.1 | G200: 24 | H200: 24.7 | I200: 8132 | J200: 195707.75 | K200: 2019-07-09 | L200: 64 | M200: INE458B01036
... 1431 more rows

Sheet Sheet1 (hidden)

Sheet Sheet3 (hidden)

Sheet Sheet4 (hidden)
